{"text_format":"1","workbook":"xlsx","n_sheets":23,"sheets":["Portada.ORI","Copyright_Esp","Portada","1.General.ORI","1.General","2.Prestaciones.ORI","2.Prestaciones","3.Personal.ORI","3.Personal","4.Equip.ORI","4.Equip","5.Insumos.ORI","5.Insumos","6.Medicamentos.ORI","6.Medicamentos","7.Observ.ORI","7.Observ","Resource","Parameters","Dictionary","Messages","Dictionary_AUX","TAXI"],"not_rendered":{"charts":0,"images":1,"macros":1,"external_links":0,"defined_names":9,"comments":0,"pivot_tables":0},"unopened":[],"bounds":{"document_bytes":16777216,"sheet_cells":100000,"rows_first":2000,"rows_last":500,"rows_between":2000,"halvings":0,"cell_chars":16384,"cell_head_chars":4096},"cells_cut":0,"cells_raw":0,"read":"whole","date_system":"1900"}

{"sheet":"Portada.ORI","index":0,"n_rows":44,"n_cols":31,"rows_kept":44,"cut":false,"hidden":true,"merged":[[2,1,2,3],[10,6,10,13],[10,15,10,17],[0,1,0,35],[1,1,1,35],[2,28,3,35],[3,1,4,1],[3,2,4,9],[4,10,4,26],[4,28,4,35],[6,1,6,18],[6,20,6,35],[8,6,8,13],[8,15,8,17],[8,25,8,26],[2,4,2,27],[24,24,24,34],[12,6,12,13],[12,15,12,17],[14,6,14,13],[14,15,14,17],[16,6,16,17],[18,6,18,17],[18,21,18,34],[19,15,19,17],[20,6,20,17],[22,7,22,17],[22,24,22,34],[27,24,27,34],[31,1,31,35],[33,11,33,12],[33,16,36,16],[33,17,35,20],[33,21,36,21],[33,22,36,23],[33,24,36,25],[39,11,39,12],[39,19,39,20],[40,19,40,20],[41,11,41,12],[33,33,33,34],[35,11,35,12],[36,19,36,20],[37,11,37,12],[37,19,37,20],[38,19,38,20],[25,5,25,6],[25,8,25,9],[25,11,25,15],[27,5,27,6],[27,8,27,9],[27,11,27,15]]}
[null,"{ NOMBRE INSTITUCIÓN / MINISTERIO }  -  { PAÍS }"]
[null,"{ NOMBRE PROYECTO }"]
[null,"V.01",null,null,"ENCUESTA DE CENTROS DE SALUD - { AÑO }",null,null,null,null,null,null,null,null,null,null,null,null,null,null,null,null,null,null,null,null,null,null,null,"IDENTIFICADOR DEL ESTABLECIMIENTO DE SALUD"]
[null,1,"NOMBRE DEL ESTABLECIMIENTO:"]
[]
[]
[null,"A.- DIRECCIÓN EXACTA DEL ESTABLECIMIENTO",null,null,null,null,null,null,null,null,null,null,null,null,null,null,null,null,null,null,"B.- TIPO Y CONTACTOS"]
[]
[null,2,"{ REGIÓN/ESTADO }",null,null,null,null,null,null,null,null,null,null,null,null,null,null,null,null,null,12,"TIPO:"]
[]
[null,3,"{ PROVINCIA }",null,null,null,null,null,null,null,null,null,null,null,null,null,null,null,null,null,null,1,"HOSPITAL BÁSICO",null,null,null,null,null,null,4,"PUESTO DE SALUD"]
[]
[null,4,"{ MUNICIPIO }",null,null,null,null,null,null,null,null,null,null,null,null,null,null,null,null,null,null,2,"CLINICA PRIVADA",null,null,null,null,null,null,5,"{ AGREGAR TIPO - 1}"]
[]
[null,5,"{ LOCALIDAD }",null,null,null,null,null,null,null,null,null,null,null,null,null,null,null,null,null,null,3,"CENTRO DE SALUD",null,null,null,null,null,null,6,"{ AGREGAR TIPO - 2}"]
[]
[null,6,"{ ZONA / BARRIO }",null,null,null,null,null,null,null,null,null,null,null,null,null,null,null,null,null,13,"NOMBRE DEL DIRECTOR/A:"]
[]
[null,7,"CALLE"]
[]
[null,8,"NÚMERO",null,null,null,null,null,null,null,null,null,null,null,null,null,null,null,null,null,14,"TELÉFONOS:"]
[]
[null,9,"OTRAS REFERENCIAS",null,null,null,null,null,null,null,null,null,null,null,null,null,null,null,null,null,null,null,null,-1]
[]
[null,null,null,null,null,"GEOREFERENCIACIÓN:",null,null,null,null,null,null,null,null,null,null,null,null,null,null,null,null,null,-2]
[null,null,"C10",null,"S",null,null,"°",null,null,"'",null,null,null,null,null,"''"]
[]
[null,null,"C11",null,"W",null,null,"°",null,null,"'",null,null,null,null,null,"''",null,null,null,null,null,null,-3]
[]
[]
[]
[null,"C. INFORMACIÓN SOBRE LA ENTREVISTA"]
[]
[null,15,"ENCUESTADOR/A",null,null,null,null,null,null,null,null,null,null,null,"C-20",null,"VISITA","FECHA",null,null,null,"RESULTADO","HORA INICIO",null,"HORA FIN",null,22,"IDIOMA DE LA ENTREVISTA"]
[null,null,null,null,null,null,null,null,null,null,null,null,null,null,null,null,null,null,null,null,null,null,null,null,null,null,null,1,"CASTELLANO"]
[null,16,"SUPERVISOR/A",null,null,null,null,null,null,null,null,null,null,null,null,null,null,null,null,null,null,null,null,null,null,null,null,2,"{ OTRA LENGUA - 1 }"]
[null,null,null,null,null,null,null,null,null,null,null,null,null,null,null,null,null,"DD","MM","AAAA",null,null,null,null,null,null,null,3,"{ OTRA LENGUA - 2 }"]
[null,17,"{ OTRO PERSONAL - 1 }",null,null,null,null,null,null,null,null,null,null,null,null,null,1,null,null,null,null,null,null,null,null,null,null,4,"{ OTRA LENGUA - 3 }"]
[null,null,null,null,null,null,null,null,null,null,null,null,null,null,null,null,2,null,null,null,null,null,null,null,null,null,null,5,"{ OTRA LENGUA - 4 }"]
[null,18,"{ OTRO PERSONAL - 2 }",null,null,null,null,null,null,null,null,null,null,null,null,null,3,null,null,null,null,null,null,null,null,null,null,6,"{ OTRA LENGUA - 5 }"]
[null,null,null,null,null,null,null,null,null,null,null,null,null,null,null,null,4]
[null,19,"{ OTRO PERSONAL - 3 }",null,null,null,null,null,null,null,null,null,null,null,21,"CÓDIGOS RESULTADO"]
[null,null,null,null,null,null,null,null,null,null,null,null,null,null,null,1,"COMPLETA",null,null,3,"RECHAZO",null,null,null,5,"NO LO ENCONTRÓ"]
[null,null,null,null,null,null,null,null,null,null,null,null,null,null,null,2,"PARCIAL",null,null,4,"NO CONTACTÓ",null,null,null,6,"OTRO"]

{"sheet":"Copyright_Esp","index":1,"n_rows":0,"n_cols":0,"rows_kept":0,"cut":false,"hidden":false,"merged":[]}

{"sheet":"Portada","index":2,"n_rows":44,"n_cols":31,"rows_kept":44,"cut":false,"hidden":false,"merged":[[39,11,39,12],[33,16,36,16],[41,11,41,12],[33,22,36,23],[38,19,38,20],[39,19,39,20],[40,19,40,20],[33,17,35,20],[33,21,36,21],[36,19,36,20],[37,19,37,20],[33,33,33,34],[33,24,36,25],[33,11,33,12],[35,11,35,12],[37,11,37,12],[0,1,0,35],[1,1,1,35],[31,1,31,35],[8,6,8,13],[8,15,8,17],[6,20,6,35],[6,1,6,18],[10,6,10,13],[10,15,10,17],[12,6,12,13],[27,24,27,34],[14,15,14,17],[20,6,20,17],[18,6,18,17],[16,6,16,17],[22,7,22,17],[22,24,22,34],[24,24,24,34],[3,2,4,9],[2,28,3,35],[4,28,4,35],[4,10,4,26],[8,25,8,26],[12,15,12,17],[2,1,2,3],[2,4,2,27],[19,15,19,17],[14,6,14,13],[3,1,4,1],[18,21,18,34],[25,8,25,9],[25,11,25,15],[27,5,27,6],[27,8,27,9],[27,11,27,15],[25,5,25,6]]}
[null,"{ NOMBRE INSTITUCIÓN / MINISTERIO }  -  { PAÍS }"]
[null,"{ NOMBRE PROYECTO }"]
[null,"V.01",null,null,"ENCUESTA DE CENTROS DE SALUD - { AÑO }",null,null,null,null,null,null,null,null,null,null,null,null,null,null,null,null,null,null,null,null,null,null,null,"IDENTIFICADOR DEL ESTABLECIMIENTO DE SALUD"]
[null,1,"NOMBRE DEL ESTABLECIMIENTO:"]
[]
[]
[null,"A.- DIRECCIÓN EXACTA DEL ESTABLECIMIENTO",null,null,null,null,null,null,null,null,null,null,null,null,null,null,null,null,null,null,"B.- TIPO Y CONTACTOS"]
[]
[null,2,"{ REGIÓN/ESTADO }",null,null,null,null,null,null,null,null,null,null,null,null,null,null,null,null,null,12,"TIPO:"]
[]
[null,3,"{ PROVINCIA }",null,null,null,null,null,null,null,null,null,null,null,null,null,null,null,null,null,null,1,"HOSPITAL BÁSICO",null,null,null,null,null,null,4,"PUESTO DE SALUD"]
[]
[null,4,"{ MUNICIPIO }",null,null,null,null,null,null,null,null,null,null,null,null,null,null,null,null,null,null,2,"CLINICA PRIVADA",null,null,null,null,null,null,5,"{ AGREGAR TIPO - 1}"]
[]
[null,5,"{ LOCALIDAD }",null,null,null,null,null,null,null,null,null,null,null,null,null,null,null,null,null,null,3,"CENTRO DE SALUD",null,null,null,null,null,null,6,"{ AGREGAR TIPO - 2}"]
[]
[null,6,"{ ZONA / BARRIO }",null,null,null,null,null,null,null,null,null,null,null,null,null,null,null,null,null,13,"NOMBRE DEL DIRECTOR/A:"]
[]
[null,7,"CALLE"]
[]
[null,8,"NÚMERO",null,null,null,null,null,null,null,null,null,null,null,null,null,null,null,null,null,14,"TELÉFONOS:"]
[]
[null,9,"OTRAS REFERENCIAS",null,null,null,null,null,null,null,null,null,null,null,null,null,null,null,null,null,null,null,null,-1]
[]
[null,null,null,null,null,"GEOREFERENCIACIÓN:",null,null,null,null,null,null,null,null,null,null,null,null,null,null,null,null,null,-2]
[null,null,"C10",null,"S",null,null,"°",null,null,"'",null,null,null,null,null,"''"]
[]
[null,null,"C11",null,"W",null,null,"°",null,null,"'",null,null,null,null,null,"''",null,null,null,null,null,null,-3]
[]
[]
[]
[null,"C. INFORMACIÓN SOBRE LA ENTREVISTA"]
[]
[null,15,"ENCUESTADOR/A",null,null,null,null,null,null,null,null,null,null,null,"C-20",null,"VISITA","FECHA",null,null,null,"RESULTADO","HORA INICIO",null,"HORA FIN",null,22,"IDIOMA DE LA ENTREVISTA"]
[null,null,null,null,null,null,null,null,null,null,null,null,null,null,null,null,null,null,null,null,null,null,null,null,null,null,null,1,"CASTELLANO"]
[null,16,"SUPERVISOR/A",null,null,null,null,null,null,null,null,null,null,null,null,null,null,null,null,null,null,null,null,null,null,null,null,2,"{ OTRA LENGUA - 1 }"]
[null,null,null,null,null,null,null,null,null,null,null,null,null,null,null,null,null,"DD","MM","AAAA",null,null,null,null,null,null,null,3,"{ OTRA LENGUA - 2 }"]
[null,17,"{ OTRO PERSONAL - 1 }",null,null,null,null,null,null,null,null,null,null,null,null,null,1,null,null,null,null,null,null,null,null,null,null,4,"{ OTRA LENGUA - 3 }"]
[null,null,null,null,null,null,null,null,null,null,null,null,null,null,null,null,2,null,null,null,null,null,null,null,null,null,null,5,"{ OTRA LENGUA - 4 }"]
[null,18,"{ OTRO PERSONAL - 2 }",null,null,null,null,null,null,null,null,null,null,null,null,null,3,null,null,null,null,null,null,null,null,null,null,6,"{ OTRA LENGUA - 5 }"]
[null,null,null,null,null,null,null,null,null,null,null,null,null,null,null,null,4]
[null,19,"{ OTRO PERSONAL - 3 }",null,null,null,null,null,null,null,null,null,null,null,21,"CÓDIGOS RESULTADO"]
[null,null,null,null,null,null,null,null,null,null,null,null,null,null,null,1,"COMPLETA",null,null,3,"RECHAZO",null,null,null,5,"NO LO ENCONTRÓ"]
[null,null,null,null,null,null,null,null,null,null,null,null,null,null,null,2,"PARCIAL",null,null,4,"NO CONTACTÓ",null,null,null,6,"OTRO"]

{"sheet":"1.General.ORI","index":3,"n_rows":107,"n_cols":32,"rows_kept":107,"cut":false,"hidden":true,"merged":[[27,13,27,14],[93,8,93,11],[11,7,11,11],[19,7,19,11],[61,7,61,12],[71,7,71,12],[29,1,30,15],[31,13,31,14],[59,13,59,14],[60,13,60,14],[61,13,61,14],[86,7,86,8],[14,13,14,14],[18,31,18,32],[22,13,22,14],[25,1,26,16],[25,24,25,25],[26,24,26,25],[26,31,26,32],[4,5,4,15],[6,5,6,15],[6,27,6,28],[6,31,6,32],[9,13,9,14],[9,31,9,32],[31,23,31,24],[31,31,31,32],[58,13,58,14],[43,19,44,32],[44,13,44,14],[45,31,45,32],[46,25,46,26],[48,31,48,32],[50,31,50,32],[35,31,35,32],[64,31,64,32],[51,25,51,26],[53,31,53,32],[54,25,54,26],[56,31,56,32],[57,25,57,26],[61,31,61,32],[62,25,62,26],[72,31,72,32],[65,25,65,26],[66,13,66,14],[66,19,67,33],[67,13,67,14],[68,13,68,14],[68,31,68,32],[69,13,69,14],[69,25,69,26],[70,13,70,14],[70,19,71,33],[71,13,71,14],[91,25,91,28],[73,25,73,26],[74,13,74,14],[76,31,76,32],[85,13,85,14],[85,18,92,18],[85,25,85,27],[85,29,85,33],[92,29,92,33],[86,25,88,28],[86,29,88,33],[88,19,89,24],[89,13,89,14],[79,26,79,29],[95,1,96,13],[95,25,95,28],[95,29,95,33],[96,25,96,28],[96,29,96,33],[99,25,99,28],[99,29,99,33],[93,25,93,28],[93,29,93,33],[94,25,94,28],[94,29,94,33],[97,13,97,14],[97,25,97,28],[97,29,97,33],[98,25,98,28],[98,29,98,33],[105,31,105,32],[100,25,100,28],[100,29,100,33],[101,19,101,24],[101,25,101,28],[101,29,101,33],[103,19,104,33]]}
["SECCIÓN 1: INFORMACIÓN GENERAL"]
["RESPONDE:  DIRECTOR/A DEL ESTABLECIMIENTO O AL SUBDIRECTOR"]
[]
[-1.01,"ENTREVISTADO:",null,null,null,null,null,null,null,null,null,null,null,null,null,null,null,null,"ELECTRICIDAD"]
[null,"A.","NOMBRE:  ",null,null,null,null,null,null,null,null,null,null,null,null,null,null,null,{"$f":"A30-0.01","v":-1.07},"¿Cuál es la principal fuente de electricidad en este establecimiento de salud?"]
[null,null,null,null,null,null,null,null,null,null,null,null,null,null,null,null,null,null,null,null,1,"SI"]
[null,"B.","TELÉFONOS:  ",null,null,null,null,null,null,null,null,null,null,null,null,null,null,null,null,null,2,"NO TIENEN ELECTRICIDAD",null,null,null,null,"►",{"$f":"A44","v":-1.1300000000000001}]
[]
[{"$f":"A4-0.01","v":-1.02},"¿Qué cargo tiene usted en este establecimiento?",null,null,null,null,null,null,null,null,null,null,null,null,null,null,null,null,{"$f":"S5-0.01","v":-1.08}," ¿Con qué frecuencia se interrumpe el servicio eléctrico?"]
[null,null,1,"DIRECTOR/A",null,null,null,null,null,null,null,null,null,null,null,null,null,null,null,"LEER EN VOZ ALTA:"]
[null,null,2,"SUB-DIRECTOR/A",null,null,null,null,null,null,null,null,null,null,null,null,null,null,null,null,1,"Casi a diario"]
[null,null,3,"OTRO (ESPECIFIQUE)",null,null,null,null,null,null,null,null,null,null,null,null,null,null,null,null,2,"Algunas veces por semana"]
[null,null,null,null,null,null,null,null,null,null,null,null,null,null,null,null,null,null,null,null,3,"Algunas veces al mes"]
[{"$f":"A9-0.01","v":-1.03},"¿De quién depende este establecimiento de salud?",null,null,null,null,null,null,null,null,null,null,null,null,null,null,null,null,null,null,4,"Algunas veces al año"]
[null,null,1,"MINISTERIO DE SALUD",null,null,null,null,null,null,null,null,null,null,null,null,null,null,null,null,5,"Nunca o casi nunca"]
[null,null,2,"ENTIDAD PRIVADA",null,null,null,null,null,null,null,null,null,null,null,null,null,null,"AGUA"]
[null,null,3,"ORGANIZACIÓN NO-GUBERNAMENTAL (ONG)",null,null,null,null,null,null,null,null,null,null,null,null,null,null,{"$f":"S9-0.01","v":-1.0900000000000001}," ¿Cuál es la fuente de abastecimiento del agua que es utilizada en la unidad de salud?"]
[null,null,4,"MISIÓN/ORGANIZACIÓN RELIGIOSA"]
[null,null,5,"MILITAR",null,null,null,null,null,null,null,null,null,null,null,null,null,null,null,null,1,"RED PÚBLICA (AGUA CORRIENTE)"]
[null,null,6,"OTRA (ESPECIFIQUE)",null,null,null,null,null,null,null,null,null,null,null,null,null,null,null,null,2,"DE PERFORACIÓN CON BOMBA MOTOR"]
[null,null,null,null,null,null,null,null,null,null,null,null,null,null,null,null,null,null,null,null,3,"DE PERFORACIÓN CON BOMBA MANUAL"]
[{"$f":"A14-0.01","v":-1.04},"¿En qué año comenzó este establecimiento a operar?",null,null,null,null,null,null,null,null,null,null,null,null,null,null,null,null,null,null,4,"DE POZO CON BOMBA"]
[null,null,null,null,null,null,null,null,null,null,null,null,"AÑO:  ",null,null,null,null,null,null,null,5,"DE POZO SIN BOMBA"]
[null,null,null,null,null,null,null,null,null,null,null,null,null,null,null,null,null,null,null,null,6,"{ OTRA }"]
["ÁREA DE INFLUENCIA",null,null,null,null,null,null,null,null,null,null,null,null,null,null,null,null,null,{"$f":"S17-0.01","v":-1.1000000000000001}," Esta fuente, ¿está situada dentro de la unidad?"]
[{"$f":"A22-0.01","v":-1.05},"¿Cuál es el número estimado de población que el establecimiento tiene a cargo en su zona de influencia.",null,null,null,null,null,null,null,null,null,null,null,null,null,null,null,null,null,null,null,1,"SI","►",{"$f":"S34","v":-1.1200000000000001}]
[null,null,null,null,null,null,null,null,null,null,null,null,null,null,null,null,null,null,null,null,null,2,"NO"]
[null,null,null,null,null,null,null,null,null,null,null,null,"NÚMERO PERSONAS:  ",null,null,null,null,null,{"$f":"S25-0.01","v":-1.1100000000000001}," ¿Qué tan lejos está la fuente de agua de este establecimiento?"]
[null,null,null,null,null,null,null,null,null,null,null,null,null,null,null,null,null,null,null,null,null,null,null,null,null,null,null,null,null,null,1,"KILÓMETROS"]
[{"$f":"A26-0.01","v":-1.06},"Considerando el total de la población que se atiende en este establecimiento ¿Me podría señalar el porcentaje que tiene cobertura de salud?",null,null,null,null,null,null,null,null,null,null,null,null,null,null,null,null,null,null,null,null,null,null,null,null,null,null,null,null,2,"METROS"]
[]
[null,null,null,null,null,null,null,null,null,null,null,null,"PORCENTAJE:  ",null,null,null,null,null,null,null,null,null,"DISTANCIA:  ",null,null,null,null,null,null,null,"UNIDAD DISTANCIA:  "]
[null,null,null,null,null,null,null,null,null,null,null,null,null,null,null,null,null,null,"SERVICIO SANITARIO"]
[null,null,null,null,null,null,null,null,null,null,null,null,null,null,null,null,null,null,{"$f":"S28-0.01","v":-1.1200000000000001}," ¿Qué tipo de servicio sanitario está disponible en este establecimiento?"]
[]
[null,null,null,null,null,null,null,null,null,null,null,null,null,null,null,null,null,null,null,null,1,"INODORO CONECTADO AL SISTEMA DE DRENAJE"]
[null,null,null,null,null,null,null,null,null,null,null,null,null,null,null,null,null,null,null,null,2,"INODORO CONECTADO A FOSA SÉPTICA"]
[null,null,null,null,null,null,null,null,null,null,null,null,null,null,null,null,null,null,null,null,3,"LETRINA"]
[null,null,null,null,null,null,null,null,null,null,null,null,null,null,null,null,null,null,null,null,4,"{ OTRA }"]
[]
["SECCIÓN 1: INFORMACIÓN GENERAL"]
[]
["COMUNICACIONES",null,null,null,null,null,null,null,null,null,null,null,null,null,null,null,null,null,"SUPERVISIÓN"]
[{"$f":"S34-0.01","v":-1.1300000000000001}," ¿Cuál es la forma de comunicación principal en este establecimiento de salud?",null,null,null,null,null,null,null,null,null,null,null,null,null,null,null,null,{"$f":"A73-0.01","v":-1.1700000000000002},"El establecimiento de salud ¿ha recibido alguna visita de supervisión los últimos 6 meses?"]
[null,null,1,"TELEFONÍA FIJA"]
[null,null,2,"TELEFONÍA CELULAR","TELEFONÍA CELULAR",null,null,null,null,null,null,null,null,null,null,null,null,null,null,null,null,null,1,"SI"]
[null,null,3,"RADIO/HANDY",null,null,null,null,null,null,null,null,null,null,null,null,null,null,null,null,null,null,2,"NO","►",{"$f":"S61","v":-1.2200000000000002}]
[null,null,4,"INTERNET",null,null,null,null,null,null,null,null,null,null,null,null,null,null,{"$f":"S44-0.01","v":-1.1800000000000002},"¿Cuántas veces recibió visitas de supervisión los últimos 6 meses?"]
[null,null,5,"TELÉFONO SEMIPÚBLICO",null,null,null,null,null,null,null,null,null,null,null,null,null,null,null,null,null,null,null,null,null,null,null,null,null,null,"NÚMERO DE VECES:  "]
[null,null,6,"LÍNEA CENTREX",null,null,null,null,null,null,null,null,null,null,null,null,null,null,{"$f":"S48-0.01","v":-1.1900000000000002},"Alguna visita(s) de supervisión ¿fue realizada por la { Red de Salud }?"]
[null,null,7,"NO POSEE",null,null,null,null,null,null,null,null,null,null,null,null,null,null,null,null,null,null,1,"SI"]
[null,null,8,"{ OTRA }",null,null,null,null,null,null,null,null,null,null,null,null,null,null,null,null,null,null,2,"NO"]
[null,null,null,null,null,null,null,null,null,null,null,null,null,null,null,null,null,null,{"$f":"S50-0.01","v":-1.2000000000000002},"Alguna visita(s) de supervisión ¿fue realizada por el { Nivel Central }?"]
["ELIMINACIÓN DE DESECHOS MÉDICOS/BIOLÓGICOS",null,null,null,null,null,null,null,null,null,null,null,null,null,null,null,null,null,null,null,null,null,1,"SI"]
[{"$f":"A44-0.01","v":-1.1400000000000001},"¿De qué manera son desechadas la agujas que se utilizan?",null,null,null,null,null,null,null,null,null,null,null,null,null,null,null,null,null,null,null,null,2,"NO"]
[null,null,null,null,null,null,null,null,null,null,null,null,null,1,"SI",null,null,null,{"$f":"S53-0.01","v":-1.2100000000000002},"¿En alguna visita de supervisión se observó la atención de niños/as menores de 5 años?"]
[null,null,null,null,null,null,null,null,null,null,null,null,null,2,"NO",null,null,null,null,null,null,null,1,"SI"]
[null,null,null,null,null,null,null,null,null,null,null,null,null,null,null,null,null,null,null,null,null,null,2,"NO"]
[null,null,1,"Descartador de agujas (recipiente rojo rígido especial)"]
[null,null,2,"En bolsas rojas especiales",null,null,null,null,null,null,null,null,null,null,null,null,null,null,"CALIDAD"]
[null,null,3,"Igual que el resto de la basura",null,null,null,null,null,null,null,null,null,null,null,null,null,null,{"$f":"S56-0.01","v":-1.2200000000000002},"En el establecimiento de salud ¿existe personal asignado como Gestor de Calidad? "]
[null,null,4,"Otra (ESPECIFIQUE)",null,null,null,null,null,null,null,null,null,null,null,null,null,null,null,null,null,null,1,"SI"]
[{"$f":"A55-0.01","v":-1.1500000000000001},"¿De qué manera son comúnmente eliminados los residuos biológico-infecciosos?",null,null,null,null,null,null,null,null,null,null,null,null,null,null,null,null,null,null,null,null,2,"NO"]
[null,null,null,null,null,null,null,null,null,null,null,null,null,1,"SI",null,null,null,{"$f":"S61-0.01","v":-1.2300000000000002},"¿Se ha realizado alguna auditoría técnica interna de servicio durante la última gestión?"]
[null,null,null,null,null,null,null,null,null,null,null,null,null,2,"NO",null,null,null,null,null,null,null,1,"SI"]
[null,null,null,null,null,null,null,null,null,null,null,null,null,null,null,null,null,null,null,null,null,null,2,"NO"]
[null,null,1,"Servicio recolector especial",null,null,null,null,null,null,null,null,null,null,null,null,null,null,{"$f":"S64-0.01","v":-1.2400000000000002},"Durante el último mes ¿han existido quejas o denuncias que fueron tratadas por el personal del establecimiento?"]
[null,null,2,"Trasladándolo a un centro de acopio especial"]
[null,null,3,"Servicio de recolector público",null,null,null,null,null,null,null,null,null,null,null,null,null,null,null,null,null,null,1,"SI"]
[null,null,4,"Incineración en el mismo sitio",null,null,null,null,null,null,null,null,null,null,null,null,null,null,null,null,null,null,2,"NO"]
[null,null,5,"Enterrándolos en el mismo sitio",null,null,null,null,null,null,null,null,null,null,null,null,null,null,{"$f":"S67-0.01","v":-1.2500000000000002}," El establecimiento de salud, ¿cuenta con un plan de gestión de riesgos y seguridad del paciente? "]
[null,null,6,"Otra (ESPECIFIQUE)"]
[{"$f":"A63-0.01","v":-1.1600000000000001},"¿Con qué frecuencia se ven obligados en este establecimiento a reutilizar la misma aguja?",null,null,null,null,null,null,null,null,null,null,null,null,null,null,null,null,null,null,null,null,1,"SI"]
[null,null,null,null,null,null,null,null,null,null,null,null,null,null,null,null,null,null,null,null,null,null,2,"NO"]
[null,null,1,"NUNCA",null,null,null,null,null,null,null,null,null,null,null,null,null,null,{"$f":"S71-0.01","v":-1.2600000000000002},"Habitualmente, ¿quién realiza el mantenimiento de los equipos médicos del Establecimiento de Salud? "]
[null,null,2,"RARA VEZ"]
[null,null,3,"ALGUNAS VECES",null,null,null,null,null,null,null,null,null,null,null,null,null,null,null,null,null,1,"SERVICIO PRIVADO"]
[null,null,4,"FRECUENTEMENTE",null,null,null,null,null,null,null,null,null,null,null,null,null,null,null,null,null,2,"SERVICIO PÚBLICO"]
[null,null,null,null,null,null,null,null,null,null,null,null,null,null,null,null,null,null,null,null,null,3,"PERSONAL DEL ESTABLECIMIENTO DE SALUD"]
[null,null,null,null,null,null,null,null,null,null,null,null,null,null,null,null,null,null,null,null,null,4,"OTRO (ESPECIFIQUE)"]
[]
["SECCIÓN 1: INFORMACIÓN GENERAL"]
[]
["DERIVACIONES",null,null,null,null,null,null,null,null,null,null,null,null,null,null,null,null,null,"FINANCIAMIENTO"]
[{"$f":"S75-0.01","v":-1.2700000000000002},"Este establecimiento, ¿deriva pacientes a otros establecimientos de salud?"]
[null,null,null,null,1,"SI",null,null,null,null,null,null,null,null,null,null,null,null,"CÓDIGO FUENTE",null,null,null,null,null,null,{"$f":"A96-0.01","v":-1.3000000000000003},null,null,null,{"$f":"Z86-0.01","v":-1.3100000000000003}]
[null,null,null,null,2,"NO","►",{"$f":"Z86","v":-1.3000000000000003},null,null,null,null,null,null,null,null,null,null,null,null,null,null,null,null,null,"¿Durante el último año (AÑO), recibió ingresos de [FUENTE]?",null,null,null,"¿Cuánto recibió de [FUENTE] durante el último año (AÑO)?"]
[]
[{"$f":"A85-0.01","v":-1.2800000000000002},"¿A dónde derivan principalmente a los pacientes?",null,null,null,null,null,null,null,null,null,null,null,null,null,null,null,null,null,"FUENTE DE FINANCIAMIENTO"]
[null,null,null,1,"A UN HOSPITAL",null,null,null,null,null,null,null,null,null,null,null,null,null,null,null,null,null,null,null,null,1,"SI"]
[null,null,null,2,"A UNA CLÍNICA PRIVADA",null,null,null,null,null,null,null,null,null,null,null,null,null,null,null,null,null,null,null,null,2,"NO"]
[null,null,null,3,"A UN CENTRO DE SALUD",null,null,null,null,null,null,null,null,null,null,null,null,null,null,null,null,null,null,null,null,"► PRÓXIMA FUENTE"]
[null,null,null,4,"A UN PUESTO DE SALUD",null,null,null,null,null,null,null,null,null,null,null,null,null,null,null,null,null,null,null,null,null,null,null,null,"MONTO { $ }"]
[null,null,null,5,"OTRO (ESPECIFIQUE)",null,null,null,null,null,null,null,null,null,null,null,null,null,1,"Ministerio de salud"]
[null,null,null,null,null,null,null,null,null,null,null,null,null,null,null,null,null,null,2,"Cargos a los usuarios"]
[{"$f":"A89-0.01","v":-1.2900000000000003},"¿A qué distancia queda ese establecimiento de salud al que ustedes derivan principalmente a los pacientes?",null,null,null,null,null,null,null,null,null,null,null,null,null,null,null,null,3,"Venta de medicamentos"]
[null,null,null,null,null,null,null,null,null,null,null,null,null,null,null,null,null,null,4,"Entidad privada"]
[null,null,null,null,null,null,null,null,null,null,null,null,"KILÓMETROS:  ",null,null,null,null,null,5,"Organización no-gubernamental (ONG)"]
[null,null,null,null,null,null,null,null,null,null,null,null,null,null,null,null,null,null,6,"Misión/organización religiosa"]
[null,null,null,null,null,null,null,null,null,null,null,null,null,null,null,null,null,null,7,"{ AGREGAR OTRO 1 }"]
[null,null,null,null,null,null,null,null,null,null,null,null,null,null,null,null,null,null,8,"{ AGREGAR OTRO 2 }"]
[null,null,null,null,null,null,null,null,null,null,null,null,null,null,null,null,null,null,9,"TOTAL RECIBIDO"]
[]
[null,null,null,null,null,null,null,null,null,null,null,null,null,null,null,null,null,null,{"$f":"AD86-0.01","v":-1.3200000000000003},"ENCUESTADOR: ANOTE LA FUENTE PRINCIPAL DE INFORMACIÓN CONSULTADA PARA RESPONDER LA PREGUNTA ANTERIOR"]
[]
[null,null,null,null,null,null,null,null,null,null,null,null,null,null,null,null,null,null,null,null,null,1,"REGISTROS OFICIALES DEL ESTABLECIMIENTO"]
[null,null,null,null,null,null,null,null,null,null,null,null,null,null,null,null,null,null,null,null,null,2,"INFORME VERBAL"]

{"sheet":"1.General","index":4,"n_rows":107,"n_cols":32,"rows_kept":107,"cut":false,"hidden":false,"merged":[[101,19,101,24],[105,31,105,32],[103,19,104,33],[93,25,93,28],[101,25,101,28],[94,25,94,28],[95,25,95,28],[100,25,100,28],[93,29,93,33],[100,29,100,33],[97,25,97,28],[98,25,98,28],[99,25,99,28],[101,29,101,33],[97,29,97,33],[98,29,98,33],[85,29,85,33],[86,29,88,33],[92,29,92,33],[76,31,76,32],[96,25,96,28],[79,26,79,29],[94,29,94,33],[95,29,95,33],[96,29,96,33],[85,18,92,18],[88,19,89,24],[85,25,85,27],[86,25,88,28],[91,25,91,28],[50,31,50,32],[9,13,9,14],[14,13,14,14],[22,13,22,14],[68,31,68,32],[43,19,44,32],[51,25,51,26],[53,31,53,32],[54,25,54,26],[56,31,56,32],[57,25,57,26],[45,31,45,32],[46,25,46,26],[48,31,48,32],[66,19,67,33],[26,24,26,25],[72,31,72,32],[73,25,73,26],[61,31,61,32],[62,25,62,26],[64,31,64,32],[65,25,65,26],[69,25,69,26],[70,19,71,33],[25,24,25,25],[31,23,31,24],[59,13,59,14],[61,13,61,14],[60,13,60,14],[6,27,6,28],[26,31,26,32],[31,31,31,32],[6,31,6,32],[35,31,35,32],[9,31,9,32],[18,31,18,32],[70,13,70,14],[67,13,67,14],[95,1,96,13],[68,13,68,14],[44,13,44,14],[61,7,61,12],[71,7,71,12],[93,8,93,11],[74,13,74,14],[66,13,66,14],[99,29,99,33],[4,5,4,15],[6,5,6,15],[85,13,85,14],[86,7,86,8],[89,13,89,14],[11,7,11,11],[19,7,19,11],[97,13,97,14],[25,1,26,16],[27,13,27,14],[29,1,30,15],[31,13,31,14],[71,13,71,14],[58,13,58,14],[69,13,69,14]]}
["SECCIÓN 1: INFORMACIÓN GENERAL"]
["RESPONDE:  DIRECTOR/A DEL ESTABLECIMIENTO O AL SUBDIRECTOR"]
[]
[-1.01,"ENTREVISTADO:",null,null,null,null,null,null,null,null,null,null,null,null,null,null,null,null,"ELECTRICIDAD"]
[null,"A.","NOMBRE:  ",null,null,null,null,null,null,null,null,null,null,null,null,null,null,null,{"$f":"A30-0.01","v":-1.07},"¿Cuál es la principal fuente de electricidad en este establecimiento de salud?"]
[null,null,null,null,null,null,null,null,null,null,null,null,null,null,null,null,null,null,null,null,1,"SI"]
[null,"B.","TELÉFONOS:  ",null,null,null,null,null,null,null,null,null,null,null,null,null,null,null,null,null,2,"NO TIENEN ELECTRICIDAD",null,null,null,null,"►",{"$f":"A44","v":-1.1300000000000001}]
[]
[{"$f":"A4-0.01","v":-1.02},"¿Qué cargo tiene usted en este establecimiento?",null,null,null,null,null,null,null,null,null,null,null,null,null,null,null,null,{"$f":"S5-0.01","v":-1.08}," ¿Con qué frecuencia se interrumpe el servicio eléctrico?"]
[null,null,1,"DIRECTOR/A",null,null,null,null,null,null,null,null,null,null,null,null,null,null,null,"LEER EN VOZ ALTA:"]
[null,null,2,"SUB-DIRECTOR/A",null,null,null,null,null,null,null,null,null,null,null,null,null,null,null,null,1,"Casi a diario"]
[null,null,3,"OTRO (ESPECIFIQUE)",null,null,null,null,null,null,null,null,null,null,null,null,null,null,null,null,2,"Algunas veces por semana"]
[null,null,null,null,null,null,null,null,null,null,null,null,null,null,null,null,null,null,null,null,3,"Algunas veces al mes"]
[{"$f":"A9-0.01","v":-1.03},"¿De quién depende este establecimiento de salud?",null,null,null,null,null,null,null,null,null,null,null,null,null,null,null,null,null,null,4,"Algunas veces al año"]
[null,null,1,"MINISTERIO DE SALUD",null,null,null,null,null,null,null,null,null,null,null,null,null,null,null,null,5,"Nunca o casi nunca"]
[null,null,2,"ENTIDAD PRIVADA",null,null,null,null,null,null,null,null,null,null,null,null,null,null,"AGUA"]
[null,null,3,"ORGANIZACIÓN NO-GUBERNAMENTAL (ONG)",null,null,null,null,null,null,null,null,null,null,null,null,null,null,{"$f":"S9-0.01","v":-1.0900000000000001}," ¿Cuál es la fuente de abastecimiento del agua que es utilizada en la unidad de salud?"]
[null,null,4,"MISIÓN/ORGANIZACIÓN RELIGIOSA"]
[null,null,5,"MILITAR",null,null,null,null,null,null,null,null,null,null,null,null,null,null,null,null,1,"RED PÚBLICA (AGUA CORRIENTE)"]
[null,null,6,"OTRA (ESPECIFIQUE)",null,null,null,null,null,null,null,null,null,null,null,null,null,null,null,null,2,"DE PERFORACIÓN CON BOMBA MOTOR"]
[null,null,null,null,null,null,null,null,null,null,null,null,null,null,null,null,null,null,null,null,3,"DE PERFORACIÓN CON BOMBA MANUAL"]
[{"$f":"A14-0.01","v":-1.04},"¿En qué año comenzó este establecimiento a operar?",null,null,null,null,null,null,null,null,null,null,null,null,null,null,null,null,null,null,4,"DE POZO CON BOMBA"]
[null,null,null,null,null,null,null,null,null,null,null,null,"AÑO:  ",null,null,null,null,null,null,null,5,"DE POZO SIN BOMBA"]
[null,null,null,null,null,null,null,null,null,null,null,null,null,null,null,null,null,null,null,null,6,"{ OTRA }"]
["ÁREA DE INFLUENCIA",null,null,null,null,null,null,null,null,null,null,null,null,null,null,null,null,null,{"$f":"S17-0.01","v":-1.1000000000000001}," Esta fuente, ¿está situada dentro de la unidad?"]
[{"$f":"A22-0.01","v":-1.05},"¿Cuál es el número estimado de población que el establecimiento tiene a cargo en su zona de influencia.",null,null,null,null,null,null,null,null,null,null,null,null,null,null,null,null,null,null,null,1,"SI","►",{"$f":"S34","v":-1.1200000000000001}]
[null,null,null,null,null,null,null,null,null,null,null,null,null,null,null,null,null,null,null,null,null,2,"NO"]
[null,null,null,null,null,null,null,null,null,null,null,null,"NÚMERO PERSONAS:  ",null,null,null,null,null,{"$f":"S25-0.01","v":-1.1100000000000001}," ¿Qué tan lejos está la fuente de agua de este establecimiento?"]
[null,null,null,null,null,null,null,null,null,null,null,null,null,null,null,null,null,null,null,null,null,null,null,null,null,null,null,null,null,null,1,"KILÓMETROS"]
[{"$f":"A26-0.01","v":-1.06},"Considerando el total de la población que se atiende en este establecimiento ¿Me podría señalar el porcentaje que tiene cobertura de salud?",null,null,null,null,null,null,null,null,null,null,null,null,null,null,null,null,null,null,null,null,null,null,null,null,null,null,null,null,2,"METROS"]
[]
[null,null,null,null,null,null,null,null,null,null,null,null,"PORCENTAJE:  ",null,null,null,null,null,null,null,null,null,"DISTANCIA:  ",null,null,null,null,null,null,null,"UNIDAD DISTANCIA:  "]
[null,null,null,null,null,null,null,null,null,null,null,null,null,null,null,null,null,null,"SERVICIO SANITARIO"]
[null,null,null,null,null,null,null,null,null,null,null,null,null,null,null,null,null,null,{"$f":"S28-0.01","v":-1.1200000000000001}," ¿Qué tipo de servicio sanitario está disponible en este establecimiento?"]
[]
[null,null,null,null,null,null,null,null,null,null,null,null,null,null,null,null,null,null,null,null,1,"INODORO CONECTADO AL SISTEMA DE DRENAJE"]
[null,null,null,null,null,null,null,null,null,null,null,null,null,null,null,null,null,null,null,null,2,"INODORO CONECTADO A FOSA SÉPTICA"]
[null,null,null,null,null,null,null,null,null,null,null,null,null,null,null,null,null,null,null,null,3,"LETRINA"]
[null,null,null,null,null,null,null,null,null,null,null,null,null,null,null,null,null,null,null,null,4,"{ OTRA }"]
[]
["SECCIÓN 1: INFORMACIÓN GENERAL"]
[]
["COMUNICACIONES",null,null,null,null,null,null,null,null,null,null,null,null,null,null,null,null,null,"SUPERVISIÓN"]
[{"$f":"S34-0.01","v":-1.1300000000000001}," ¿Cuál es la forma de comunicación principal en este establecimiento de salud?",null,null,null,null,null,null,null,null,null,null,null,null,null,null,null,null,{"$f":"A73-0.01","v":-1.1700000000000002},"El establecimiento de salud ¿ha recibido alguna visita de supervisión los últimos 6 meses?"]
[null,null,1,"TELEFONÍA FIJA"]
[null,null,2,"TELEFONÍA CELULAR","TELEFONÍA CELULAR",null,null,null,null,null,null,null,null,null,null,null,null,null,null,null,null,null,1,"SI"]
[null,null,3,"RADIO/HANDY",null,null,null,null,null,null,null,null,null,null,null,null,null,null,null,null,null,null,2,"NO","►",{"$f":"S61","v":-1.2200000000000002}]
[null,null,4,"INTERNET",null,null,null,null,null,null,null,null,null,null,null,null,null,null,{"$f":"S44-0.01","v":-1.1800000000000002},"¿Cuántas veces recibió visitas de supervisión los últimos 6 meses?"]
[null,null,5,"TELÉFONO SEMIPÚBLICO",null,null,null,null,null,null,null,null,null,null,null,null,null,null,null,null,null,null,null,null,null,null,null,null,null,null,"NÚMERO DE VECES:  "]
[null,null,6,"LÍNEA CENTREX",null,null,null,null,null,null,null,null,null,null,null,null,null,null,{"$f":"S48-0.01","v":-1.1900000000000002},"Alguna visita(s) de supervisión ¿fue realizada por la { Red de Salud }?"]
[null,null,7,"NO POSEE",null,null,null,null,null,null,null,null,null,null,null,null,null,null,null,null,null,null,1,"SI"]
[null,null,8,"{ OTRA }",null,null,null,null,null,null,null,null,null,null,null,null,null,null,null,null,null,null,2,"NO"]
[null,null,null,null,null,null,null,null,null,null,null,null,null,null,null,null,null,null,{"$f":"S50-0.01","v":-1.2000000000000002},"Alguna visita(s) de supervisión ¿fue realizada por el { Nivel Central }?"]
["ELIMINACIÓN DE DESECHOS MÉDICOS/BIOLÓGICOS",null,null,null,null,null,null,null,null,null,null,null,null,null,null,null,null,null,null,null,null,null,1,"SI"]
[{"$f":"A44-0.01","v":-1.1400000000000001},"¿De qué manera son desechadas la agujas que se utilizan?",null,null,null,null,null,null,null,null,null,null,null,null,null,null,null,null,null,null,null,null,2,"NO"]
[null,null,null,null,null,null,null,null,null,null,null,null,null,1,"SI",null,null,null,{"$f":"S53-0.01","v":-1.2100000000000002},"¿En alguna visita de supervisión se observó la atención de niños/as menores de 5 años?"]
[null,null,null,null,null,null,null,null,null,null,null,null,null,2,"NO",null,null,null,null,null,null,null,1,"SI"]
[null,null,null,null,null,null,null,null,null,null,null,null,null,null,null,null,null,null,null,null,null,null,2,"NO"]
[null,null,1,"Descartador de agujas (recipiente rojo rígido especial)"]
[null,null,2,"En bolsas rojas especiales",null,null,null,null,null,null,null,null,null,null,null,null,null,null,"CALIDAD"]
[null,null,3,"Igual que el resto de la basura",null,null,null,null,null,null,null,null,null,null,null,null,null,null,{"$f":"S56-0.01","v":-1.2200000000000002},"En el establecimiento de salud ¿existe personal asignado como Gestor de Calidad? "]
[null,null,4,"Otra (ESPECIFIQUE)",null,null,null,null,null,null,null,null,null,null,null,null,null,null,null,null,null,null,1,"SI"]
[{"$f":"A55-0.01","v":-1.1500000000000001},"¿De qué manera son comúnmente eliminados los residuos biológico-infecciosos?",null,null,null,null,null,null,null,null,null,null,null,null,null,null,null,null,null,null,null,null,2,"NO"]
[null,null,null,null,null,null,null,null,null,null,null,null,null,1,"SI",null,null,null,{"$f":"S61-0.01","v":-1.2300000000000002},"¿Se ha realizado alguna auditoría técnica interna de servicio durante la última gestión?"]
[null,null,null,null,null,null,null,null,null,null,null,null,null,2,"NO",null,null,null,null,null,null,null,1,"SI"]
[null,null,null,null,null,null,null,null,null,null,null,null,null,null,null,null,null,null,null,null,null,null,2,"NO"]
[null,null,1,"Servicio recolector especial",null,null,null,null,null,null,null,null,null,null,null,null,null,null,{"$f":"S64-0.01","v":-1.2400000000000002},"Durante el último mes ¿han existido quejas o denuncias que fueron tratadas por el personal del establecimiento?"]
[null,null,2,"Trasladándolo a un centro de acopio especial"]
[null,null,3,"Servicio de recolector público",null,null,null,null,null,null,null,null,null,null,null,null,null,null,null,null,null,null,1,"SI"]
[null,null,4,"Incineración en el mismo sitio",null,null,null,null,null,null,null,null,null,null,null,null,null,null,null,null,null,null,2,"NO"]
[null,null,5,"Enterrándolos en el mismo sitio",null,null,null,null,null,null,null,null,null,null,null,null,null,null,{"$f":"S67-0.01","v":-1.2500000000000002}," El establecimiento de salud, ¿cuenta con un plan de gestión de riesgos y seguridad del paciente? "]
[null,null,6,"Otra (ESPECIFIQUE)"]
[{"$f":"A63-0.01","v":-1.1600000000000001},"¿Con qué frecuencia se ven obligados en este establecimiento a reutilizar la misma aguja?",null,null,null,null,null,null,null,null,null,null,null,null,null,null,null,null,null,null,null,null,1,"SI"]
[null,null,null,null,null,null,null,null,null,null,null,null,null,null,null,null,null,null,null,null,null,null,2,"NO"]
[null,null,1,"NUNCA",null,null,null,null,null,null,null,null,null,null,null,null,null,null,{"$f":"S71-0.01","v":-1.2600000000000002},"Habitualmente, ¿quién realiza el mantenimiento de los equipos médicos del Establecimiento de Salud? "]
[null,null,2,"RARA VEZ"]
[null,null,3,"ALGUNAS VECES",null,null,null,null,null,null,null,null,null,null,null,null,null,null,null,null,null,1,"SERVICIO PRIVADO"]
[null,null,4,"FRECUENTEMENTE",null,null,null,null,null,null,null,null,null,null,null,null,null,null,null,null,null,2,"SERVICIO PÚBLICO"]
[null,null,null,null,null,null,null,null,null,null,null,null,null,null,null,null,null,null,null,null,null,3,"PERSONAL DEL ESTABLECIMIENTO DE SALUD"]
[null,null,null,null,null,null,null,null,null,null,null,null,null,null,null,null,null,null,null,null,null,4,"OTRO (ESPECIFIQUE)"]
[]
["SECCIÓN 1: INFORMACIÓN GENERAL"]
[]
["DERIVACIONES",null,null,null,null,null,null,null,null,null,null,null,null,null,null,null,null,null,"FINANCIAMIENTO"]
[{"$f":"S75-0.01","v":-1.2700000000000002},"Este establecimiento, ¿deriva pacientes a otros establecimientos de salud?"]
[null,null,null,null,1,"SI",null,null,null,null,null,null,null,null,null,null,null,null,"CÓDIGO FUENTE",null,null,null,null,null,null,{"$f":"A96-0.01","v":-1.3000000000000003},null,null,null,{"$f":"Z86-0.01","v":-1.3100000000000003}]
[null,null,null,null,2,"NO","►",{"$f":"Z86","v":-1.3000000000000003},null,null,null,null,null,null,null,null,null,null,null,null,null,null,null,null,null,"¿Durante el último año (AÑO), recibió ingresos de [FUENTE]?",null,null,null,"¿Cuánto recibió de [FUENTE] durante el último año (AÑO)?"]
[]
[{"$f":"A85-0.01","v":-1.2800000000000002},"¿A dónde derivan principalmente a los pacientes?",null,null,null,null,null,null,null,null,null,null,null,null,null,null,null,null,null,"FUENTE DE FINANCIAMIENTO"]
[null,null,null,1,"A UN HOSPITAL",null,null,null,null,null,null,null,null,null,null,null,null,null,null,null,null,null,null,null,null,1,"SI"]
[null,null,null,2,"A UNA CLÍNICA PRIVADA",null,null,null,null,null,null,null,null,null,null,null,null,null,null,null,null,null,null,null,null,2,"NO"]
[null,null,null,3,"A UN CENTRO DE SALUD",null,null,null,null,null,null,null,null,null,null,null,null,null,null,null,null,null,null,null,null,"► PRÓXIMA FUENTE"]
[null,null,null,4,"A UN PUESTO DE SALUD",null,null,null,null,null,null,null,null,null,null,null,null,null,null,null,null,null,null,null,null,null,null,null,null,"MONTO { $ }"]
[null,null,null,5,"OTRO (ESPECIFIQUE)",null,null,null,null,null,null,null,null,null,null,null,null,null,1,"Ministerio de salud"]
[null,null,null,null,null,null,null,null,null,null,null,null,null,null,null,null,null,null,2,"Cargos a los usuarios"]
[{"$f":"A89-0.01","v":-1.2900000000000003},"¿A qué distancia queda ese establecimiento de salud al que ustedes derivan principalmente a los pacientes?",null,null,null,null,null,null,null,null,null,null,null,null,null,null,null,null,3,"Venta de medicamentos"]
[null,null,null,null,null,null,null,null,null,null,null,null,null,null,null,null,null,null,4,"Entidad privada"]
[null,null,null,null,null,null,null,null,null,null,null,null,"KILÓMETROS:  ",null,null,null,null,null,5,"Organización no-gubernamental (ONG)"]
[null,null,null,null,null,null,null,null,null,null,null,null,null,null,null,null,null,null,6,"Misión/organización religiosa"]
[null,null,null,null,null,null,null,null,null,null,null,null,null,null,null,null,null,null,7,"{ AGREGAR OTRO 1 }"]
[null,null,null,null,null,null,null,null,null,null,null,null,null,null,null,null,null,null,8,"{ AGREGAR OTRO 2 }"]
[null,null,null,null,null,null,null,null,null,null,null,null,null,null,null,null,null,null,9,"TOTAL RECIBIDO"]
[]
[null,null,null,null,null,null,null,null,null,null,null,null,null,null,null,null,null,null,{"$f":"AD86-0.01","v":-1.3200000000000003},"ENCUESTADOR: ANOTE LA FUENTE PRINCIPAL DE INFORMACIÓN CONSULTADA PARA RESPONDER LA PREGUNTA ANTERIOR"]
[]
[null,null,null,null,null,null,null,null,null,null,null,null,null,null,null,null,null,null,null,null,null,1,"REGISTROS OFICIALES DEL ESTABLECIMIENTO"]
[null,null,null,null,null,null,null,null,null,null,null,null,null,null,null,null,null,null,null,null,null,2,"INFORME VERBAL"]

{"sheet":"2.Prestaciones.ORI","index":5,"n_rows":40,"n_cols":32,"rows_kept":40,"cut":false,"hidden":true,"merged":[[4,1,9,3],[4,4,5,15],[4,17,13,17],[4,23,4,25],[4,26,4,27],[4,28,4,32],[5,23,8,25],[5,26,11,27],[5,28,6,34],[6,4,6,9],[10,4,10,9],[10,10,10,15],[11,4,11,9],[11,10,11,15],[11,23,12,25],[12,4,12,9],[12,10,12,15],[6,10,6,15],[6,18,7,22],[7,4,8,9],[7,10,8,15],[9,4,9,9],[9,10,9,15],[12,26,13,27],[13,4,13,9],[13,10,13,15],[13,28,13,30],[13,31,13,34],[14,4,14,9],[14,10,14,15],[14,23,14,25],[14,26,14,27],[14,28,14,30],[17,23,17,25],[17,26,17,27],[17,28,17,30],[18,23,18,25],[18,26,18,27],[18,28,18,30],[15,4,15,9],[15,10,15,15],[15,23,15,25],[15,26,15,27],[15,28,15,30],[16,4,16,9],[16,10,16,15],[16,23,16,25],[16,26,16,27],[16,28,16,30],[21,23,21,25],[21,26,21,27],[21,28,21,30],[22,13,22,14],[22,23,22,25],[22,26,22,27],[22,28,22,30],[19,13,19,14],[19,23,19,25],[19,26,19,27],[19,28,19,30],[20,23,20,25],[20,26,20,27],[20,28,20,30],[25,13,25,14],[25,23,25,25],[25,26,25,27],[25,28,25,30],[26,7,26,8],[26,23,26,25],[26,26,26,27],[26,28,26,30],[23,7,23,8],[23,23,23,25],[23,26,23,27],[23,28,23,30],[24,23,24,25],[24,26,24,27],[24,28,24,30],[29,13,29,14],[29,23,29,25],[29,26,29,27],[29,28,29,30],[30,23,30,25],[30,26,30,27],[30,28,30,30],[27,1,28,15],[27,23,27,25],[27,26,27,27],[27,28,27,30],[28,23,28,25],[28,26,28,27],[28,28,28,30],[39,7,39,8],[33,7,33,8],[33,23,33,25],[33,26,33,27],[33,28,33,30],[35,13,35,14],[38,13,38,14],[31,23,31,25],[31,26,31,27],[31,28,31,30],[32,13,32,14],[32,23,32,25],[32,26,32,27],[32,28,32,30]]}
["SECCIÓN 2: PRESTACIONES MÉDICAS"]
["RESPONDE:  DIRECTOR/A DEL ESTABLECIMIENTO O AL SUBDIRECTOR"]
["Ahora quiero hacerle unas preguntas sobre los servicios médicos prestados en este establecimiento de salud. "]
[]
[null,"DÍA",null,null,"De los últimos siete días, señale el total de horas en que el establecimiento de salud brindó…",null,null,null,null,null,null,null,null,null,null,null,null,"NÚMERO SERVICIO",null,null,null,null,null,{"$f":"K7-0.01","v":-2.0299999999999994},null,null,{"$f":"X5-0.01","v":-2.0399999999999991},null,{"$f":"AA5-0.01","v":-2.0499999999999989}]
[null,null,null,null,null,null,null,null,null,null,null,null,null,null,null,null,null,null,null,null,null,null,null,"¿Ofrece este establecimiento de salud [SERVICIO]?",null,null,"¿Cúantos días a la semana ofrecen [SERVICIO]?",null,"¿Cuál es el precio normalmente cobrado por este [SERVICIO]?"]
[null,null,null,null,-2.0099999999999998,null,null,null,null,null,{"$f":"E7-0.01","v":-2.0199999999999996},null,null,null,null,null,null,null,"SERVICIO"]
[null,null,null,null,"Servicio de consulta externa",null,null,null,null,null,"Servicio de urgencias"]
[]
[null,null,null,null,"NÚMERO TOTAL HORAS",null,null,null,null,null,"NÚMERO TOTAL HORAS",null,null,null,null,null,null,null,null,null,null,null,null,1,"SI"]
[null,1,"Lunes",null,null,null,null,null,null,null,null,null,null,null,null,null,null,null,null,null,null,null,null,2,"NO"]
[null,2,"Martes",null,null,null,null,null,null,null,null,null,null,null,null,null,null,null,null,null,null,null,null,"►PRÓXIMO SERVICIO"]
[null,3,"Miércoles",null,null,null,null,null,null,null,null,null,null,null,null,null,null,null,null,null,null,null,null,null,null,null,"NÚMERO DE DÍAS"]
[null,4,"Jueves",null,null,null,null,null,null,null,null,null,null,null,null,null,null,null,null,null,null,null,null,null,null,null,null,null,"MONTO { $ }",null,null,"UNIDAD"]
[null,5,"Viernes",null,null,null,null,null,null,null,null,null,null,null,null,null,null,1,"Consulta externa para niños",null,null,null,null,null,null,null,null,null,null,null,null,"POR CONSULTA"]
[null,6,"Sábado",null,null,null,null,null,null,null,null,null,null,null,null,null,null,2,"Consulta externa para adultos",null,null,null,null,null,null,null,null,null,null,null,null,"POR CONSULTA"]
[null,7,"Domingo",null,null,null,null,null,null,null,null,null,null,null,null,null,null,3,"Consulta dental",null,null,null,null,null,null,null,null,null,null,null,null,"POR EVENTO"]
[null,null,null,null,null,null,null,null,null,null,null,null,null,null,null,null,null,4,"Consulta de especialidad",null,null,null,null,null,null,null,null,null,null,null,null,"POR CONSULTA"]
[{"$f":"AC5-0.01","v":-2.0599999999999987}," ¿Hay personal médico las 24 horas del día?",null,null,null,null,null,null,null,null,null,null,null,null,null,null,null,5,"Hospitalización",null,null,null,null,null,null,null,null,null,null,null,null,"POR DÍA"]
[null,null,null,null,1,"SI",null,null,null,null,null,null,null,null,null,null,null,6,"Cirugía menor",null,null,null,null,null,null,null,null,null,null,null,null,"POR EVENTO"]
[null,null,null,null,2,"NO",null,null,null,null,null,null,null,null,null,null,null,7,"Urgencias (sutura)",null,null,null,null,null,null,null,null,null,null,null,null,"POR EVENTO"]
[{"$f":"A19-0.01","v":-2.0699999999999985},"¿Se atienden partos/cesáreas de embarazos de bajo riesgo en este establecimiento? ",null,null,null,null,null,null,null,null,null,null,null,null,null,null,null,8,"Atención de parto normal",null,null,null,null,null,null,null,null,null,null,null,null,"POR EVENTO"]
[null,null,null,null,1,"SI",null,null,null,null,null,null,null,null,null,null,null,9,"Control neonatal",null,null,null,null,null,null,null,null,null,null,null,null,"POR EXÁMEN"]
[null,null,null,null,2,"NO",null,null,null,null,null,null,null,null,null,null,null,10,"Vacunación / Inmunizaciones",null,null,null,null,null,null,null,null,null,null,null,null,"POR INMUNIZACION"]
[{"$f":"A22-0.01","v":-2.0799999999999983},"¿Se atienden partos/cesáreas de embarazos de alto riesgo en este establecimiento? ",null,null,null,null,null,null,null,null,null,null,null,null,null,null,null,11,"Transfusión sanguínea",null,null,null,null,null,null,null,null,null,null,null,null,"POR UNIDAD"]
[null,null,null,null,1,"SI",null,null,null,null,null,null,null,null,null,null,null,12,"Consulta pre-natal",null,null,null,null,null,null,null,null,null,null,null,null,"POR CONSULTA"]
[null,null,null,null,2,"NO",null,null,null,null,null,null,null,null,null,null,null,13,"Ecografías",null,null,null,null,null,null,null,null,null,null,null,null,"POR CONSULTA"]
[{"$f":"A25-0.01","v":-2.0899999999999981},"¿En este establecimiento de salud se cuenta con atención de urgencia de alta complejidad en niños?",null,null,null,null,null,null,null,null,null,null,null,null,null,null,null,14,"Rayos X",null,null,null,null,null,null,null,null,null,null,null,null,"POR CONSULTA"]
[null,null,null,null,null,null,null,null,null,null,null,null,null,null,null,null,null,15,"Hormonales orales",null,null,null,null,null,null,null,null,null,null,null,null,"POR CICLO"]
[null,null,null,null,1,"SI",null,null,null,null,null,null,null,null,null,null,null,16,"Hormonales inyectables",null,null,null,null,null,null,null,null,null,null,null,null,"POR INYEC MENSUAL"]
[null,null,null,null,2,"NO",null,null,null,null,null,null,null,null,null,null,null,17,"Inserción de DIU",null,null,null,null,null,null,null,null,null,null,null,null,"POR EVENTO"]
[{"$f":"A28-0.01","v":-2.0999999999999979},"¿En este establecimiento de salud se ofrece algún tipo de análisis clínico?",null,null,null,null,null,null,null,null,null,null,null,null,null,null,null,18,"Retiro de DIU",null,null,null,null,null,null,null,null,null,null,null,null,"POR EVENTO"]
[null,null,null,null,1,"SI",null,null,null,null,null,null,null,null,null,null,null,19,"Preservativos (condones)",null,null,null,null,null,null,null,null,null,null,null,null,"POR UNIDAD"]
[null,null,null,null,2,"NO",null,null,null,null,null,null,null,null,null,null,null,20,"Otros: ",null,null,null,null,null,null,null,null,null,null,null,null,"POR CONSULTA"]
[{"$f":"A32-0.01","v":-2.1099999999999977},"¿Dónde son procesadas las muestras?"]
[null,null,1,"EN UN LABORATORIO DE ESTE ESTABLECIMIENTO"]
[null,null,2,"EN UN LABORATORIO FUERA"]
[{"$f":"A35-0.01","v":-2.1199999999999974},"¿En este establecimiento de salud se ofrece servicio de imágenes?"]
[null,null,null,null,1,"SI"]
[null,null,null,null,2,"NO"]

{"sheet":"2.Prestaciones","index":6,"n_rows":40,"n_cols":32,"rows_kept":40,"cut":false,"hidden":false,"merged":[[19,13,19,14],[13,10,13,15],[14,4,14,9],[14,10,14,15],[15,4,15,9],[15,10,15,15],[9,4,9,9],[11,4,11,9],[11,10,11,15],[16,4,16,9],[16,10,16,15],[12,4,12,9],[12,10,12,15],[13,4,13,9],[4,17,13,17],[6,18,7,22],[4,1,9,3],[7,4,8,9],[7,10,8,15],[9,10,9,15],[6,10,6,15],[10,4,10,9],[10,10,10,15],[6,4,6,9],[4,4,5,15],[16,23,16,25],[16,26,16,27],[16,28,16,30],[18,23,18,25],[17,23,17,25],[17,26,17,27],[15,28,15,30],[4,28,4,32],[13,28,13,30],[13,31,13,34],[14,28,14,30],[5,23,8,25],[5,26,11,27],[11,23,12,25],[5,28,6,34],[14,26,14,27],[14,23,14,25],[15,23,15,25],[15,26,15,27],[4,23,4,25],[4,26,4,27],[12,26,13,27],[21,28,21,30],[22,23,22,25],[22,26,22,27],[22,28,22,30],[23,28,23,30],[24,23,24,25],[24,26,24,27],[24,28,24,30],[17,28,17,30],[18,26,18,27],[18,28,18,30],[19,28,19,30],[20,23,20,25],[20,26,20,27],[20,28,20,30],[21,23,21,25],[19,23,19,25],[19,26,19,27],[21,26,21,27],[39,7,39,8],[32,13,32,14],[33,7,33,8],[35,13,35,14],[27,23,27,25],[27,26,27,27],[27,28,27,30],[28,23,28,25],[28,26,28,27],[28,28,28,30],[29,23,29,25],[29,26,29,27],[29,28,29,30],[30,23,30,25],[30,26,30,27],[30,28,30,30],[33,23,33,25],[32,28,32,30],[38,13,38,14],[33,26,33,27],[33,28,33,30],[31,23,31,25],[31,26,31,27],[31,28,31,30],[32,23,32,25],[32,26,32,27],[26,28,26,30],[25,28,25,30],[22,13,22,14],[23,7,23,8],[25,13,25,14],[26,7,26,8],[29,13,29,14],[27,1,28,15],[25,23,25,25],[25,26,25,27],[26,23,26,25],[26,26,26,27],[23,23,23,25],[23,26,23,27]]}
["SECCIÓN 2: PRESTACIONES MÉDICAS"]
["RESPONDE:  DIRECTOR/A DEL ESTABLECIMIENTO O AL SUBDIRECTOR"]
["Ahora quiero hacerle unas preguntas sobre los servicios médicos prestados en este establecimiento de salud. "]
[]
[null,"DÍA",null,null,"De los últimos siete días, señale el total de horas en que el establecimiento de salud brindó…",null,null,null,null,null,null,null,null,null,null,null,null,"NÚMERO SERVICIO",null,null,null,null,null,{"$f":"K7-0.01","v":-2.0299999999999994},null,null,{"$f":"X5-0.01","v":-2.0399999999999991},null,{"$f":"AA5-0.01","v":-2.0499999999999989}]
[null,null,null,null,null,null,null,null,null,null,null,null,null,null,null,null,null,null,null,null,null,null,null,"¿Ofrece este establecimiento de salud [SERVICIO]?",null,null,"¿Cúantos días a la semana ofrecen [SERVICIO]?",null,"¿Cuál es el precio normalmente cobrado por este [SERVICIO]?"]
[null,null,null,null,-2.0099999999999998,null,null,null,null,null,{"$f":"E7-0.01","v":-2.0199999999999996},null,null,null,null,null,null,null,"SERVICIO"]
[null,null,null,null,"Servicio de consulta externa",null,null,null,null,null,"Servicio de urgencias"]
[]
[null,null,null,null,"NÚMERO TOTAL HORAS",null,null,null,null,null,"NÚMERO TOTAL HORAS",null,null,null,null,null,null,null,null,null,null,null,null,1,"SI"]
[null,1,"Lunes",null,null,null,null,null,null,null,null,null,null,null,null,null,null,null,null,null,null,null,null,2,"NO"]
[null,2,"Martes",null,null,null,null,null,null,null,null,null,null,null,null,null,null,null,null,null,null,null,null,"►PRÓXIMO SERVICIO"]
[null,3,"Miércoles",null,null,null,null,null,null,null,null,null,null,null,null,null,null,null,null,null,null,null,null,null,null,null,"NÚMERO DE DÍAS"]
[null,4,"Jueves",null,null,null,null,null,null,null,null,null,null,null,null,null,null,null,null,null,null,null,null,null,null,null,null,null,"MONTO { $ }",null,null,"UNIDAD"]
[null,5,"Viernes",null,null,null,null,null,null,null,null,null,null,null,null,null,null,1,"Consulta externa para niños",null,null,null,null,null,null,null,null,null,null,null,null,"POR CONSULTA"]
[null,6,"Sábado",null,null,null,null,null,null,null,null,null,null,null,null,null,null,2,"Consulta externa para adultos",null,null,null,null,null,null,null,null,null,null,null,null,"POR CONSULTA"]
[null,7,"Domingo",null,null,null,null,null,null,null,null,null,null,null,null,null,null,3,"Consulta dental",null,null,null,null,null,null,null,null,null,null,null,null,"POR EVENTO"]
[null,null,null,null,null,null,null,null,null,null,null,null,null,null,null,null,null,4,"Consulta de especialidad",null,null,null,null,null,null,null,null,null,null,null,null,"POR CONSULTA"]
[{"$f":"AC5-0.01","v":-2.0599999999999987}," ¿Hay personal médico las 24 horas del día?",null,null,null,null,null,null,null,null,null,null,null,null,null,null,null,5,"Hospitalización",null,null,null,null,null,null,null,null,null,null,null,null,"POR DÍA"]
[null,null,null,null,1,"SI",null,null,null,null,null,null,null,null,null,null,null,6,"Cirugía menor",null,null,null,null,null,null,null,null,null,null,null,null,"POR EVENTO"]
[null,null,null,null,2,"NO",null,null,null,null,null,null,null,null,null,null,null,7,"Urgencias (sutura)",null,null,null,null,null,null,null,null,null,null,null,null,"POR EVENTO"]
[{"$f":"A19-0.01","v":-2.0699999999999985},"¿Se atienden partos/cesáreas de embarazos de bajo riesgo en este establecimiento? ",null,null,null,null,null,null,null,null,null,null,null,null,null,null,null,8,"Atención de parto normal",null,null,null,null,null,null,null,null,null,null,null,null,"POR EVENTO"]
[null,null,null,null,1,"SI",null,null,null,null,null,null,null,null,null,null,null,9,"Control neonatal",null,null,null,null,null,null,null,null,null,null,null,null,"POR EXÁMEN"]
[null,null,null,null,2,"NO",null,null,null,null,null,null,null,null,null,null,null,10,"Vacunación / Inmunizaciones",null,null,null,null,null,null,null,null,null,null,null,null,"POR INMUNIZACION"]
[{"$f":"A22-0.01","v":-2.0799999999999983},"¿Se atienden partos/cesáreas de embarazos de alto riesgo en este establecimiento? ",null,null,null,null,null,null,null,null,null,null,null,null,null,null,null,11,"Transfusión sanguínea",null,null,null,null,null,null,null,null,null,null,null,null,"POR UNIDAD"]
[null,null,null,null,1,"SI",null,null,null,null,null,null,null,null,null,null,null,12,"Consulta pre-natal",null,null,null,null,null,null,null,null,null,null,null,null,"POR CONSULTA"]
[null,null,null,null,2,"NO",null,null,null,null,null,null,null,null,null,null,null,13,"Ecografías",null,null,null,null,null,null,null,null,null,null,null,null,"POR CONSULTA"]
[{"$f":"A25-0.01","v":-2.0899999999999981},"¿En este establecimiento de salud se cuenta con atención de urgencia de alta complejidad en niños?",null,null,null,null,null,null,null,null,null,null,null,null,null,null,null,14,"Rayos X",null,null,null,null,null,null,null,null,null,null,null,null,"POR CONSULTA"]
[null,null,null,null,null,null,null,null,null,null,null,null,null,null,null,null,null,15,"Hormonales orales",null,null,null,null,null,null,null,null,null,null,null,null,"POR CICLO"]
[null,null,null,null,1,"SI",null,null,null,null,null,null,null,null,null,null,null,16,"Hormonales inyectables",null,null,null,null,null,null,null,null,null,null,null,null,"POR INYEC MENSUAL"]
[null,null,null,null,2,"NO",null,null,null,null,null,null,null,null,null,null,null,17,"Inserción de DIU",null,null,null,null,null,null,null,null,null,null,null,null,"POR EVENTO"]
[{"$f":"A28-0.01","v":-2.0999999999999979},"¿En este establecimiento de salud se ofrece algún tipo de análisis clínico?",null,null,null,null,null,null,null,null,null,null,null,null,null,null,null,18,"Retiro de DIU",null,null,null,null,null,null,null,null,null,null,null,null,"POR EVENTO"]
[null,null,null,null,1,"SI",null,null,null,null,null,null,null,null,null,null,null,19,"Preservativos (condones)",null,null,null,null,null,null,null,null,null,null,null,null,"POR UNIDAD"]
[null,null,null,null,2,"NO",null,null,null,null,null,null,null,null,null,null,null,20,"Otros: ",null,null,null,null,null,null,null,null,null,null,null,null,"POR CONSULTA"]
[{"$f":"A32-0.01","v":-2.1099999999999977},"¿Dónde son procesadas las muestras?"]
[null,null,1,"EN UN LABORATORIO DE ESTE ESTABLECIMIENTO"]
[null,null,2,"EN UN LABORATORIO FUERA"]
[{"$f":"A35-0.01","v":-2.1199999999999974},"¿En este establecimiento de salud se ofrece servicio de imágenes?"]
[null,null,null,null,1,"SI"]
[null,null,null,null,2,"NO"]

{"sheet":"3.Personal.ORI","index":7,"n_rows":39,"n_cols":26,"rows_kept":39,"cut":false,"hidden":true,"merged":[[10,0,15,0],[10,1,15,4],[16,5,16,10],[10,5,10,10],[24,5,24,10],[28,5,28,10],[10,12,10,14],[3,0,9,4],[3,5,3,10],[3,11,9,11],[11,12,11,14],[24,0,27,0],[24,1,27,4],[24,12,24,14],[3,16,3,20],[3,21,3,24],[3,25,3,28],[4,5,5,10],[4,16,8,20],[4,21,8,24],[4,25,7,28],[10,16,10,20],[10,21,10,24],[10,25,10,28],[11,16,11,20],[11,21,11,24],[11,25,11,28],[6,12,7,15],[8,5,9,10],[8,25,9,28],[9,16,9,20],[9,21,9,24],[14,12,14,14],[14,16,14,20],[14,21,14,24],[14,25,14,28],[15,16,15,20],[15,21,15,24],[15,25,15,28],[12,12,12,14],[12,16,12,20],[12,21,12,24],[12,25,12,28],[13,12,13,14],[13,16,13,20],[13,21,13,24],[13,25,13,28],[17,21,17,24],[17,25,17,28],[18,12,18,14],[18,16,18,20],[18,21,18,24],[18,25,18,28],[16,0,23,0],[16,1,23,4],[16,12,16,14],[16,16,16,20],[16,21,16,24],[16,25,16,28],[17,12,17,14],[17,16,17,20],[21,12,21,14],[21,16,21,20],[21,21,21,24],[21,25,21,28],[22,12,22,14],[22,16,22,20],[22,21,22,24],[22,25,22,28],[19,12,19,14],[19,16,19,20],[19,21,19,24],[19,25,19,28],[20,12,20,14],[20,16,20,20],[20,21,20,24],[20,25,20,28],[23,16,23,20],[23,21,23,24],[23,25,23,28],[24,16,24,20],[24,21,24,24],[24,25,24,28],[25,12,25,14],[25,16,25,20],[25,21,25,24],[25,25,25,28],[26,12,26,14],[26,16,26,20],[26,21,26,24],[26,25,26,28],[27,16,27,20],[27,21,27,24],[27,25,27,28],[28,0,38,0],[28,1,38,4],[28,12,28,14],[28,16,28,20],[28,21,28,24],[28,25,28,28],[29,12,29,14],[29,16,29,20],[29,21,29,24],[29,25,29,28],[30,12,30,14],[30,16,30,20],[30,21,30,24],[30,25,30,28],[33,12,33,14],[33,16,33,20],[33,21,33,24],[33,25,33,28],[34,12,34,14],[34,16,34,20],[34,21,34,24],[34,25,34,28],[31,12,31,14],[31,16,31,20],[31,21,31,24],[31,25,31,28],[32,12,32,14],[32,16,32,20],[32,21,32,24],[32,25,32,28],[37,12,37,14],[37,16,37,20],[37,21,37,24],[37,25,37,28],[38,16,38,20],[38,21,38,24],[38,25,38,28],[35,12,35,14],[35,16,35,20],[35,21,35,24],[35,25,35,28],[36,12,36,14],[36,16,36,20],[36,21,36,24],[36,25,36,28]]}
["SECCIÓN 3: PERSONAL"]
["RESPONDE: ENCARGADO { NOMBRE UNIDAD }"]
["Ahora quiero preguntarle sobre el personal que trabaja en este establecimiento de salud. ¿Me podría indicar el número total de personas que trabajan en este establecimiento de salud, desglosados por puesto o función?"]
["TIPO DE PERSONAL",null,null,null,null,-3.01,null,null,null,null,null,"CÓDIGO FUNCIÓN",null,null,null,null,{"$f":"F4-0.01","v":-3.0199999999999996},null,null,null,null,{"$f":"Q4-0.01","v":-3.0299999999999994},null,null,null,{"$f":"V4-0.01","v":-3.0399999999999991}]
[null,null,null,null,null," ¿Me podría indicar si hay [PERSONAL] en el establecimiento?",null,null,null,null,null,null,null,null,null,null,"¿Me podría indicar el número total de personas que trabajan en este establecimiento de salud, en [FUNCIÓN]?",null,null,null,null,"¿Cuál es el salario de bolsillo (promedio) de un trabajador que ejerce en [FUNCIÓN]?",null,null,null,"¿Cuántas horas semanales trabajan en promedio los trabajadores que ejercen [FUNCIÓN]?"]
[]
[null,null,null,null,null,1,null,null,null,"SI",null,null,"PUESTO/FUNCIÓN"]
[null,null,null,null,null,2,null,null,null,"NO"]
[null,null,null,null,null,"► PRÓXIMO TIPO DE PERSONAL",null,null,null,null,null,null,null,null,null,null,null,null,null,null,null,null,null,null,null,"PROMEDIO HORAS SEMANALES"]
[null,null,null,null,null,null,null,null,null,null,null,null,null,null,null,null,"NÚMERO",null,null,null,null,"MONTO { $ }"]
[1,"MÉDICOS",null,null,null,null,null,null,null,null,null,101,"Clínica Médica"]
[null,null,null,null,null,null,null,null,null,null,null,102,"Medicina General"]
[null,null,null,null,null,null,null,null,null,null,null,103,"Ginecología"]
[null,null,null,null,null,null,null,null,null,null,null,104,"Pediatría"]
[null,null,null,null,null,null,null,null,null,null,null,105,"Obstetricia"]
[null,null,null,null,null,null,null,null,null,null,null,106,"{ AGREGAR OTROS }"]
[2,"OTROS PROFESIONALES",null,null,null,null,null,null,null,null,null,201,"Nutricionista"]
[null,null,null,null,null,null,null,null,null,null,null,202,"Odontólogo"]
[null,null,null,null,null,null,null,null,null,null,null,203,"Oftalmólogo"]
[null,null,null,null,null,null,null,null,null,null,null,204,"Kinesiólogo"]
[null,null,null,null,null,null,null,null,null,null,null,205,"Psicólogo"]
[null,null,null,null,null,null,null,null,null,null,null,206,"Asistente social"]
[null,null,null,null,null,null,null,null,null,null,null,207,"Traumatólogo"]
[null,null,null,null,null,null,null,null,null,null,null,208,"{ AGREGAR OTROS }"]
[3,"ENFERMERÍA",null,null,null,null,null,null,null,null,null,301,"Licenciadas"]
[null,null,null,null,null,null,null,null,null,null,null,302,"Enfermeras"]
[null,null,null,null,null,null,null,null,null,null,null,303,"Auxiliares de enfermería"]
[null,null,null,null,null,null,null,null,null,null,null,304,"{ AGREGAR OTROS }"]
[4,"OTROS",null,null,null,null,null,null,null,null,null,401,"Técnico de Laboratorio"]
[null,null,null,null,null,null,null,null,null,null,null,402,"Técnico de Radiología / imágenes"]
[null,null,null,null,null,null,null,null,null,null,null,403,"Alimentación/nutrición"]
[null,null,null,null,null,null,null,null,null,null,null,404,"Agente sanitario"]
[null,null,null,null,null,null,null,null,null,null,null,405,"Mucama (personal de limpieza)"]
[null,null,null,null,null,null,null,null,null,null,null,406,"Responsable de archivo/fichero"]
[null,null,null,null,null,null,null,null,null,null,null,407,"Telefonistas"]
[null,null,null,null,null,null,null,null,null,null,null,408,"Administrativos"]
[null,null,null,null,null,null,null,null,null,null,null,409,"Personal de mantenimiento"]
[null,null,null,null,null,null,null,null,null,null,null,410,"Otros (agregar):"]
[null,null,null,null,null,null,null,null,null,null,null,411,"{ AGREGAR OTROS }"]

{"sheet":"3.Personal","index":8,"n_rows":39,"n_cols":26,"rows_kept":39,"cut":false,"hidden":false,"merged":[[24,0,27,0],[24,1,27,4],[25,12,25,14],[26,12,26,14],[26,16,26,20],[26,21,26,24],[26,25,26,28],[28,0,38,0],[28,1,38,4],[30,12,30,14],[31,12,31,14],[31,16,31,20],[31,21,31,24],[31,25,31,28],[24,5,24,10],[28,5,28,10],[37,12,37,14],[36,12,36,14],[29,25,29,28],[30,25,30,28],[32,25,32,28],[28,21,28,24],[10,0,15,0],[10,1,15,4],[10,12,10,14],[10,16,10,20],[10,21,10,24],[10,25,10,28],[16,0,23,0],[16,1,23,4],[16,12,16,14],[17,12,17,14],[17,16,17,20],[17,21,17,24],[17,25,17,28],[16,5,16,10],[10,5,10,10],[11,12,11,14],[11,25,11,28],[12,25,12,28],[13,25,13,28],[22,25,22,28],[13,21,13,24],[18,21,18,24],[19,21,19,24],[14,21,14,24],[15,16,15,20],[15,21,15,24],[38,25,38,28],[3,0,9,4],[8,5,9,10],[8,25,9,28],[4,5,5,10],[4,25,7,28],[14,25,14,28],[14,12,14,14],[29,12,29,14],[22,12,22,14],[24,12,24,14],[20,25,20,28],[21,25,21,28],[18,12,18,14],[19,12,19,14],[20,12,20,14],[3,25,3,28],[16,21,16,24],[14,16,14,20],[37,25,37,28],[27,25,27,28],[28,25,28,28],[4,16,8,20],[15,25,15,28],[16,25,16,28],[9,16,9,20],[33,25,33,28],[34,25,34,28],[35,25,35,28],[36,25,36,28],[35,12,35,14],[32,12,32,14],[33,12,33,14],[34,12,34,14],[33,16,33,20],[30,21,30,24],[28,12,28,14],[18,25,18,28],[19,25,19,28],[28,16,28,20],[29,16,29,20],[30,16,30,20],[32,16,32,20],[32,21,32,24],[35,16,35,20],[29,21,29,24],[3,5,3,10],[3,16,3,20],[3,21,3,24],[9,21,9,24],[6,12,7,15],[4,21,8,24],[3,11,9,11],[25,16,25,20],[27,16,27,20],[12,12,12,14],[13,12,13,14],[11,16,11,20],[11,21,11,24],[16,16,16,20],[21,12,21,14],[18,16,18,20],[20,16,20,20],[21,16,21,20],[22,16,22,20],[12,16,12,20],[12,21,12,24],[13,16,13,20],[27,21,27,24],[19,16,19,20],[20,21,20,24],[21,21,21,24],[22,21,22,24],[23,21,23,24],[24,21,24,24],[25,21,25,24],[23,25,23,28],[24,25,24,28],[25,25,25,28],[23,16,23,20],[24,16,24,20],[33,21,33,24],[34,21,34,24],[35,21,35,24],[36,21,36,24],[37,21,37,24],[38,21,38,24],[34,16,34,20],[37,16,37,20],[38,16,38,20],[36,16,36,20]]}
["SECCIÓN 3: PERSONAL"]
["RESPONDE: ENCARGADO { NOMBRE UNIDAD }"]
["Ahora quiero preguntarle sobre el personal que trabaja en este establecimiento de salud. ¿Me podría indicar el número total de personas que trabajan en este establecimiento de salud, desglosados por puesto o función?"]
["TIPO DE PERSONAL",null,null,null,null,-3.01,null,null,null,null,null,"CÓDIGO FUNCIÓN",null,null,null,null,{"$f":"F4-0.01","v":-3.0199999999999996},null,null,null,null,{"$f":"Q4-0.01","v":-3.0299999999999994},null,null,null,{"$f":"V4-0.01","v":-3.0399999999999991}]
[null,null,null,null,null," ¿Me podría indicar si hay [PERSONAL] en el establecimiento?",null,null,null,null,null,null,null,null,null,null,"¿Me podría indicar el número total de personas que trabajan en este establecimiento de salud, en [FUNCIÓN]?",null,null,null,null,"¿Cuál es el salario de bolsillo (promedio) de un trabajador que ejerce en [FUNCIÓN]?",null,null,null,"¿Cuántas horas semanales trabajan en promedio los trabajadores que ejercen [FUNCIÓN]?"]
[]
[null,null,null,null,null,1,null,null,null,"SI",null,null,"PUESTO/FUNCIÓN"]
[null,null,null,null,null,2,null,null,null,"NO"]
[null,null,null,null,null,"► PRÓXIMO TIPO DE PERSONAL",null,null,null,null,null,null,null,null,null,null,null,null,null,null,null,null,null,null,null,"PROMEDIO HORAS SEMANALES"]
[null,null,null,null,null,null,null,null,null,null,null,null,null,null,null,null,"NÚMERO",null,null,null,null,"MONTO { $ }"]
[1,"MÉDICOS",null,null,null,null,null,null,null,null,null,101,"Clínica Médica"]
[null,null,null,null,null,null,null,null,null,null,null,102,"Medicina General"]
[null,null,null,null,null,null,null,null,null,null,null,103,"Ginecología"]
[null,null,null,null,null,null,null,null,null,null,null,104,"Pediatría"]
[null,null,null,null,null,null,null,null,null,null,null,105,"Obstetricia"]
[null,null,null,null,null,null,null,null,null,null,null,106,"{ AGREGAR OTROS }"]
[2,"OTROS PROFESIONALES",null,null,null,null,null,null,null,null,null,201,"Nutricionista"]
[null,null,null,null,null,null,null,null,null,null,null,202,"Odontólogo"]
[null,null,null,null,null,null,null,null,null,null,null,203,"Oftalmólogo"]
[null,null,null,null,null,null,null,null,null,null,null,204,"Kinesiólogo"]
[null,null,null,null,null,null,null,null,null,null,null,205,"Psicólogo"]
[null,null,null,null,null,null,null,null,null,null,null,206,"Asistente social"]
[null,null,null,null,null,null,null,null,null,null,null,207,"Traumatólogo"]
[null,null,null,null,null,null,null,null,null,null,null,208,"{ AGREGAR OTROS }"]
[3,"ENFERMERÍA",null,null,null,null,null,null,null,null,null,301,"Licenciadas"]
[null,null,null,null,null,null,null,null,null,null,null,302,"Enfermeras"]
[null,null,null,null,null,null,null,null,null,null,null,303,"Auxiliares de enfermería"]
[null,null,null,null,null,null,null,null,null,null,null,304,"{ AGREGAR OTROS }"]
[4,"OTROS",null,null,null,null,null,null,null,null,null,401,"Técnico de Laboratorio"]
[null,null,null,null,null,null,null,null,null,null,null,402,"Técnico de Radiología / imágenes"]
[null,null,null,null,null,null,null,null,null,null,null,403,"Alimentación/nutrición"]
[null,null,null,null,null,null,null,null,null,null,null,404,"Agente sanitario"]
[null,null,null,null,null,null,null,null,null,null,null,405,"Mucama (personal de limpieza)"]
[null,null,null,null,null,null,null,null,null,null,null,406,"Responsable de archivo/fichero"]
[null,null,null,null,null,null,null,null,null,null,null,407,"Telefonistas"]
[null,null,null,null,null,null,null,null,null,null,null,408,"Administrativos"]
[null,null,null,null,null,null,null,null,null,null,null,409,"Personal de mantenimiento"]
[null,null,null,null,null,null,null,null,null,null,null,410,"Otros (agregar):"]
[null,null,null,null,null,null,null,null,null,null,null,411,"{ AGREGAR OTROS }"]

{"sheet":"4.Equip.ORI","index":9,"n_rows":54,"n_cols":25,"rows_kept":54,"cut":false,"hidden":true,"merged":[[3,1,13,1],[3,2,3,17],[3,18,3,23],[3,24,3,29],[4,2,5,17],[4,18,8,23],[4,24,8,29],[6,2,9,17],[9,18,10,23],[9,24,11,29],[10,6,12,17],[12,18,13,23],[13,24,13,29],[14,18,14,23],[14,24,14,29],[15,18,15,23],[15,24,15,29],[22,18,22,23],[22,24,22,29],[16,18,16,23],[16,24,16,29],[17,18,17,23],[17,24,17,29],[18,18,18,23],[18,24,18,29],[23,18,23,23],[23,24,23,29],[24,18,24,23],[24,24,24,29],[19,18,19,23],[19,24,19,29],[20,18,20,23],[20,24,20,29],[21,18,21,23],[21,24,21,29],[28,18,28,23],[28,24,28,29],[29,18,29,23],[29,24,29,29],[30,18,30,23],[30,24,30,29],[25,18,25,23],[25,24,25,29],[26,18,26,23],[26,24,26,29],[27,18,27,23],[27,24,27,29],[31,18,31,23],[31,24,31,29],[32,18,32,23],[32,24,32,29],[33,18,33,23],[33,24,33,29],[35,18,35,23],[35,24,35,29],[34,18,34,23],[34,24,34,29],[39,18,39,23],[39,24,39,29],[40,18,40,23],[40,24,40,29],[41,18,41,23],[41,24,41,29],[36,18,36,23],[36,24,36,29],[37,18,37,23],[37,24,37,29],[38,18,38,23],[38,24,38,29],[45,18,45,23],[45,24,45,29],[46,18,46,23],[46,24,46,29],[47,18,47,23],[47,24,47,29],[42,18,42,23],[42,24,42,29],[43,18,43,23],[43,24,43,29],[44,18,44,23],[44,24,44,29],[51,18,51,23],[51,24,51,29],[52,18,52,23],[52,24,52,29],[53,18,53,23],[53,24,53,29],[48,18,48,23],[48,24,48,29],[49,18,49,23],[49,24,49,29],[50,18,50,23],[50,24,50,29]]}
["SECCIÓN 4: EQUIPAMIENTO"]
["RESPONDE: ENCARGADO { NOMBRE UNIDAD }"]
[]
[null,"CÓDIGO EQUIPO",-4.01,null,null,null,null,null,null,null,null,null,null,null,null,null,null,null,{"$f":"C4-0.01","v":-4.0199999999999996},null,null,null,null,null,{"$f":"S4-0.01","v":-4.0299999999999994}]
[null,null,"Durante los últimos 30 días, ¿tuvo el personal acceso a un [EQUIPO] en condiciones de funcionar, en este establecimiento? ",null,null,null,null,null,null,null,null,null,null,null,null,null,null,null,"Durante los últimos 30 días, ¿cuántos días no tuvo el personal acceso a un [EQUIPO]? ",null,null,null,null,null,"¿Podría señalarme el número de unidades en condiciones de funcionar que tiene de [EQUIPO] en el día de hoy?"]
[]
[null,null,"ENCUESTADOR: PREGUNTE ACERCA DE TODOS LOS EQUIPOS PRIMERO, Y LUEGO HAGA LAS PREGUNTAS (4.02) A (4.03) PARA TODOS LOS EQUIPOS CUYA RESPUESTA ES \"SI\""]
[]
[]
[null,null,null,null,null,null,null,null,null,null,null,null,null,null,null,null,null,null,"ESCRIBA \"0\" SI NUNCA",null,null,null,null,null,"ESCRIBA \"0\" SI NO TIENEN EN EL DÍA DE HOY"]
[null,null,null,null,null,null,"MARQUE CON UNA \"X\" LA COLUMNA CORRESPONDIENTE"]
[]
[null,null,null,null,null,null,null,null,null,null,null,null,null,null,null,null,null,null,"NÚMERO DE DÍAS SIN ACCESO A [EQUIPO]"]
[null,null,null,null,null,null,null,null,null,null,null,null,null,null,null,null,"NO","SI",null,null,null,null,null,null,"NÚMERO"]
[null,1,"Estetoscopio auricular"]
[null,2,"Balanza infantil"]
[null,3,"Balanza de adultos"]
[null,4,"Cinta métrica"]
[null,5,"Cinta métrica para medir altura uterina"]
[null,6,"Tensiómetro"]
[null,7,"Termómetro"]
[null,8,"Termo o hielera"]
[null,9,"Instrumental para prueba de desarrollo"]
[null,10,"Balanza con estadímetro"]
[null,11,"Estetoscopio de Pinard"]
[null,12,"Colposcopio"]
[null,13,"Lámpara de hendidura"]
[null,14,"Oftalmoscopio"]
[null,15,"Otoscopio"]
[null,16,"Mesa de curación"]
[null,17,"Equipo de cirugía menor"]
[null,18,"Mesa de mayo"]
[null,19,"Autoclave o esterilizador"]
[null,20,"Juego de instrumental y campos para parto vaginal"]
[null,21,"Mesa o cama para parto"]
[null,22,"Juego de ropa de cama"]
[null,23,"Camilla"]
[null,24,"Heladera o Refrigerador"]
[null,25,"Incubadora"]
[null,26,"Ambú/ Balón de resucitación autoinflable"]
[null,27,"Aspirador para secreciones"]
[null,28,"Cilindro de oxigeno"]
[null,29,"Teléfono o radio"]
[null,30,"Ambulancia de traslado"]
[null,31,"Ambulancia de terapia intensiva"]
[null,32,"Computadora"]
[null,33,"Biblioteca"]
[null,34,"Silla/sillón"]
[null,35,"Escritorio"]
[null,36,"Vitrinas"]
[null,37,"Otro (especificar):"]
[null,38,"Otro (especificar):"]
[null,39,"Otro (especificar):"]
[null,40,"Otro (especificar):  "]

{"sheet":"4.Equip","index":10,"n_rows":54,"n_cols":25,"rows_kept":54,"cut":false,"hidden":false,"merged":[[48,18,48,23],[48,24,48,29],[49,18,49,23],[35,18,35,23],[35,24,35,29],[36,18,36,23],[36,24,36,29],[37,18,37,23],[37,24,37,29],[38,18,38,23],[38,24,38,29],[40,18,40,23],[40,24,40,29],[39,18,39,23],[39,24,39,29],[41,18,41,23],[45,24,45,29],[46,18,46,23],[46,24,46,29],[41,24,41,29],[42,18,42,23],[42,24,42,29],[43,18,43,23],[43,24,43,29],[52,18,52,23],[52,24,52,29],[53,18,53,23],[53,24,53,29],[34,18,34,23],[34,24,34,29],[50,18,50,23],[50,24,50,29],[47,18,47,23],[47,24,47,29],[49,24,49,29],[51,18,51,23],[51,24,51,29],[44,18,44,23],[44,24,44,29],[45,18,45,23],[16,18,16,23],[9,24,11,29],[31,18,31,23],[30,18,30,23],[17,18,17,23],[18,18,18,23],[19,18,19,23],[20,18,20,23],[21,18,21,23],[21,24,21,29],[17,24,17,29],[18,24,18,29],[19,24,19,29],[20,24,20,29],[12,18,13,23],[9,18,10,23],[3,1,13,1],[3,18,3,23],[14,18,14,23],[3,2,3,17],[15,18,15,23],[10,6,12,17],[4,2,5,17],[6,2,9,17],[4,18,8,23],[22,24,22,29],[23,24,23,29],[24,24,24,29],[25,24,25,29],[26,24,26,29],[32,24,32,29],[33,24,33,29],[27,24,27,29],[28,24,28,29],[29,24,29,29],[30,24,30,29],[31,24,31,29],[3,24,3,29],[13,24,13,29],[14,24,14,29],[15,24,15,29],[16,24,16,29],[4,24,8,29],[33,18,33,23],[22,18,22,23],[23,18,23,23],[24,18,24,23],[25,18,25,23],[26,18,26,23],[27,18,27,23],[28,18,28,23],[29,18,29,23],[32,18,32,23]]}
["SECCIÓN 4: EQUIPAMIENTO"]
["RESPONDE: ENCARGADO { NOMBRE UNIDAD }"]
[]
[null,"CÓDIGO EQUIPO",-4.01,null,null,null,null,null,null,null,null,null,null,null,null,null,null,null,{"$f":"C4-0.01","v":-4.0199999999999996},null,null,null,null,null,{"$f":"S4-0.01","v":-4.0299999999999994}]
[null,null,"Durante los últimos 30 días, ¿tuvo el personal acceso a un [EQUIPO] en condiciones de funcionar, en este establecimiento? ",null,null,null,null,null,null,null,null,null,null,null,null,null,null,null,"Durante los últimos 30 días, ¿cuántos días no tuvo el personal acceso a un [EQUIPO]? ",null,null,null,null,null,"¿Podría señalarme el número de unidades en condiciones de funcionar que tiene de [EQUIPO] en el día de hoy?"]
[]
[null,null,"ENCUESTADOR: PREGUNTE ACERCA DE TODOS LOS EQUIPOS PRIMERO, Y LUEGO HAGA LAS PREGUNTAS (4.02) A (4.03) PARA TODOS LOS EQUIPOS CUYA RESPUESTA ES \"SI\""]
[]
[]
[null,null,null,null,null,null,null,null,null,null,null,null,null,null,null,null,null,null,"ESCRIBA \"0\" SI NUNCA",null,null,null,null,null,"ESCRIBA \"0\" SI NO TIENEN EN EL DÍA DE HOY"]
[null,null,null,null,null,null,"MARQUE CON UNA \"X\" LA COLUMNA CORRESPONDIENTE"]
[]
[null,null,null,null,null,null,null,null,null,null,null,null,null,null,null,null,null,null,"NÚMERO DE DÍAS SIN ACCESO A [EQUIPO]"]
[null,null,null,null,null,null,null,null,null,null,null,null,null,null,null,null,"NO","SI",null,null,null,null,null,null,"NÚMERO"]
[null,1,"Estetoscopio auricular"]
[null,2,"Balanza infantil"]
[null,3,"Balanza de adultos"]
[null,4,"Cinta métrica"]
[null,5,"Cinta métrica para medir altura uterina"]
[null,6,"Tensiómetro"]
[null,7,"Termómetro"]
[null,8,"Termo o hielera"]
[null,9,"Instrumental para prueba de desarrollo"]
[null,10,"Balanza con estadímetro"]
[null,11,"Estetoscopio de Pinard"]
[null,12,"Colposcopio"]
[null,13,"Lámpara de hendidura"]
[null,14,"Oftalmoscopio"]
[null,15,"Otoscopio"]
[null,16,"Mesa de curación"]
[null,17,"Equipo de cirugía menor"]
[null,18,"Mesa de mayo"]
[null,19,"Autoclave o esterilizador"]
[null,20,"Juego de instrumental y campos para parto vaginal"]
[null,21,"Mesa o cama para parto"]
[null,22,"Juego de ropa de cama"]
[null,23,"Camilla"]
[null,24,"Heladera o Refrigerador"]
[null,25,"Incubadora"]
[null,26,"Ambú/ Balón de resucitación autoinflable"]
[null,27,"Aspirador para secreciones"]
[null,28,"Cilindro de oxigeno"]
[null,29,"Teléfono o radio"]
[null,30,"Ambulancia de traslado"]
[null,31,"Ambulancia de terapia intensiva"]
[null,32,"Computadora"]
[null,33,"Biblioteca"]
[null,34,"Silla/sillón"]
[null,35,"Escritorio"]
[null,36,"Vitrinas"]
[null,37,"Otro (especificar):"]
[null,38,"Otro (especificar):"]
[null,39,"Otro (especificar):"]
[null,40,"Otro (especificar):  "]

{"sheet":"5.Insumos.ORI","index":11,"n_rows":60,"n_cols":33,"rows_kept":60,"cut":false,"hidden":true,"merged":[[15,1,15,18],[15,19,15,23],[15,24,15,27],[15,28,15,32],[2,0,13,0],[2,19,2,23],[2,24,2,27],[2,28,2,32],[3,28,4,32],[4,1,7,18],[4,19,8,23],[4,24,9,27],[5,28,9,32],[11,19,12,23],[16,19,16,23],[16,24,16,27],[16,28,16,32],[17,19,17,23],[17,24,17,27],[17,28,17,32],[11,24,12,27],[12,28,13,32],[13,24,13,27],[20,19,20,23],[20,24,20,27],[20,28,20,32],[21,19,21,23],[21,24,21,27],[21,28,21,32],[18,1,18,18],[18,19,18,23],[18,24,18,27],[18,28,18,32],[19,19,19,23],[19,24,19,27],[19,28,19,32],[24,19,24,23],[24,24,24,27],[24,28,24,32],[25,19,25,23],[25,24,25,27],[25,28,25,32],[22,19,22,23],[22,24,22,27],[22,28,22,32],[23,19,23,23],[23,24,23,27],[23,28,23,32],[28,19,28,23],[28,24,28,27],[28,28,28,32],[29,19,29,23],[29,24,29,27],[29,28,29,32],[26,19,26,23],[26,24,26,27],[26,28,26,32],[27,19,27,23],[27,24,27,27],[27,28,27,32],[30,19,30,23],[30,24,30,27],[30,28,30,32],[34,0,43,0],[34,19,34,23],[34,24,34,27],[34,28,34,32],[35,28,36,32],[36,1,37,18],[36,19,38,23],[45,19,45,23],[45,24,45,27],[45,28,45,32],[46,19,46,23],[46,24,46,27],[46,28,46,32],[36,24,38,27],[37,28,40,32],[41,19,42,23],[41,24,42,27],[43,24,43,27],[43,28,43,32],[49,19,49,23],[49,24,49,27],[49,28,49,32],[50,19,50,23],[50,24,50,27],[50,28,50,32],[47,19,47,23],[47,24,47,27],[47,28,47,32],[48,19,48,23],[48,24,48,27],[48,28,48,32],[54,19,54,23],[54,24,54,27],[54,28,54,32],[55,19,55,23],[55,24,55,27],[55,28,55,32],[52,19,52,23],[52,24,52,27],[52,28,52,32],[53,19,53,23],[53,24,53,27],[53,28,53,32],[58,19,58,23],[58,24,58,27],[58,28,58,32],[59,19,59,23],[59,24,59,27],[59,28,59,32],[56,19,56,23],[56,24,56,27],[56,28,56,32],[57,19,57,23],[57,24,57,27],[57,28,57,32]]}
["SECCIÓN 5: INSUMOS"]
[]
["NÚMERO INSUMO",null,null,null,null,null,null,null,null,null,null,null,null,null,null,null,null,null,null,-5.01,null,null,null,null,{"$f":"T3-0.01","v":-5.0199999999999996},null,null,null,{"$f":"Y3-0.01","v":-5.0299999999999994}]
[null,null,null,null,null,null,null,null,null,null,null,null,null,null,null,null,null,null,null,"OBSERVE:",null,null,null,null,"OBSERVE:",null,null,null,"PREGUNTE AL RESPONSABLE:"]
[null,"INSUMO",null,null,null,null,null,null,null,null,null,null,null,null,null,null,null,null,null,"¿CUENTA ESTABLECIMIENTO DE SALUD CON [INSUMO] EN EL DÍA DE HOY?",null,null,null,null,"¿QUÉ CANTIDAD HAY APROXIMADAMENTE EN EL DÍA DE HOY?"]
[null,null,null,null,null,null,null,null,null,null,null,null,null,null,null,null,null,null,null,null,null,null,null,null,null,null,null,null,"Durante los últimos 30 días, ¿cuántos días no tuvo el personal acceso a  [INSUMO]? "]
[]
[]
[]
[null,null,null,null,null,null,null,null,null,null,null,null,null,null,null,null,null,null,null,1,null,null,"SI"]
[null,null,null,null,null,null,null,null,null,null,null,null,null,null,null,null,null,null,null,2,null,null,"NO"]
[null,null,null,null,null,null,null,null,null,null,null,null,null,null,null,null,null,null,null,"► PRÓXIMO INSUMO"]
[null,null,null,null,null,null,null,null,null,null,null,null,null,null,null,null,null,null,null,null,null,null,null,null,null,null,null,null,"NÚMERO DE DÍAS SIN ACCESO A [INSUMO]"]
[null,null,null,null,null,null,null,null,null,null,null,null,null,null,null,null,null,null,null,null,null,null,null,null,"CANTIDAD"]
["NIÑOS/AS"]
[1,"Tallímetro/infantómetro de madera apropiado (3 cuerpos, madera sólida, cinta métrica en buen estado sobre todo en las uniones de los cuerpos, con tope fijo, con tope móvil ‘sin juego’)"]
[2,"Balanza pediátrica de bandeja (escala mínima de 10 g) o balanza madre-bebé en buen estado"]
[3,"Balanza de pie, escala mínima 100 gs, en buen estado"]
[4,"Aerocámara espaciadora para salbutamol (puede ser elaborada artesanalmente con un vaso o un envase de suero)"]
[5,"Agua destilada para inyecciones"]
[6,"Alcohol"]
[7,"Algodón"]
[8,"Balón de oxígeno con manómetro listo para el uso y accesible"]
[9,"Cateter nasofaríngeo para niños/as"]
[10,"Carnet de Salud Infantil con hitos del desarrollo"]
[11,"Formularios de registro niños/as de 2 meses a menor de 5 años"]
[12,"Formularios de registro niños/as de 7 días a  menores de 2 meses "]
[13,"Formularios de registro niños/as menores de 7 días"]
[14,"Jeringas de 1 cc y 5 cc, con agujas"]
[15,"Refrigerador funcionando exclusivo para vacunas"]
[16,"Sonda Nasogástrica para niños/as"]
[]
["SECCIÓN 5: INSUMOS"]
[]
["NÚMERO INSUMO",null,null,null,null,null,null,null,null,null,null,null,null,null,null,null,null,null,null,-5.04,null,null,null,null,{"$f":"T35-0.01","v":-5.05},null,null,null,{"$f":"Y35-0.01","v":-5.0599999999999996}]
[null,null,null,null,null,null,null,null,null,null,null,null,null,null,null,null,null,null,null,"OBSERVE:",null,null,null,null,"OBSERVE:",null,null,null,"PREGUNTE AL RESPONSABLE:"]
[null,"INSUMO",null,null,null,null,null,null,null,null,null,null,null,null,null,null,null,null,null,"¿CUENTA ESTABLECIMIENTO DE SALUD CON [INSUMO] EN EL DÍA DE HOY?",null,null,null,null,"¿QUÉ CANTIDAD HAY APROXIMADAMENTE?"]
[null,null,null,null,null,null,null,null,null,null,null,null,null,null,null,null,null,null,null,null,null,null,null,null,null,null,null,null,"¿Es esta cantidad suficiente para las necesidades del establecimiento de salud?"]
[]
[null,null,null,null,null,null,null,null,null,null,null,null,null,null,null,null,null,null,null,1,null,null,"SI"]
[null,null,null,null,null,null,null,null,null,null,null,null,null,null,null,null,null,null,null,2,null,null,"NO"]
[null,null,null,null,null,null,null,null,null,null,null,null,null,null,null,null,null,null,null,"► PRÓXIMO INSUMO",null,null,null,null,null,null,null,null,1,null,null,null,"SI"]
[null,null,null,null,null,null,null,null,null,null,null,null,null,null,null,null,null,null,null,null,null,null,null,null,null,null,null,null,2,null,null,null,"NO"]
[null,null,null,null,null,null,null,null,null,null,null,null,null,null,null,null,null,null,null,null,null,null,null,null,"CANTIDAD"]
["EMBARAZADAS"]
[17,"Formulario Historia Clínica Perinatal"]
[18,"Carnet Perinatal"]
[19,"Partograma"]
[20,"Tensiómetro en buen estado"]
[21,"Estetoscopio en buen estado"]
[22,"Cinta métrica"]
["VACUNAS"]
[23,"Antimarílica"]
[24,"Antipolio"]
[25,"BCG"]
[26,"Antirotavirus"]
[27,"Pentavalente"]
[28,"SRP"]
[29,"TT (Toxoide Tetánico) "]
[30,"dT (difteria y Tétanos)"]

{"sheet":"5.Insumos","index":12,"n_rows":60,"n_cols":33,"rows_kept":60,"cut":false,"hidden":false,"merged":[[37,28,40,32],[49,24,49,27],[34,0,43,0],[34,19,34,23],[34,24,34,27],[41,19,42,23],[41,24,42,27],[36,1,37,18],[36,19,38,23],[36,24,38,27],[43,24,43,27],[43,28,43,32],[52,24,52,27],[53,24,53,27],[54,24,54,27],[55,24,55,27],[56,24,56,27],[19,19,19,23],[19,24,19,27],[19,28,19,32],[48,19,48,23],[48,24,48,27],[48,28,48,32],[20,19,20,23],[20,24,20,27],[34,28,34,32],[35,28,36,32],[20,28,20,32],[21,19,21,23],[21,24,21,27],[21,28,21,32],[22,19,22,23],[22,24,22,27],[22,28,22,32],[25,19,25,23],[25,24,25,27],[59,19,59,23],[59,24,59,27],[59,28,59,32],[57,19,57,23],[57,28,57,32],[58,19,58,23],[58,28,58,32],[57,24,57,27],[58,24,58,27],[2,0,13,0],[2,19,2,23],[2,24,2,27],[2,28,2,32],[3,28,4,32],[4,19,8,23],[11,19,12,23],[11,24,12,27],[13,24,13,27],[18,1,18,18],[17,19,17,23],[17,24,17,27],[17,28,17,32],[18,19,18,23],[18,24,18,27],[18,28,18,32],[4,24,9,27],[5,28,9,32],[12,28,13,32],[15,1,15,18],[16,19,16,23],[16,24,16,27],[16,28,16,32],[15,19,15,23],[15,24,15,27],[15,28,15,32],[4,1,7,18],[25,28,25,32],[26,19,26,23],[26,24,26,27],[26,28,26,32],[23,19,23,23],[23,24,23,27],[23,28,23,32],[24,19,24,23],[24,24,24,27],[24,28,24,32],[29,19,29,23],[29,24,29,27],[29,28,29,32],[30,19,30,23],[30,24,30,27],[30,28,30,32],[27,19,27,23],[27,24,27,27],[27,28,27,32],[28,19,28,23],[28,24,28,27],[28,28,28,32],[56,19,56,23],[56,28,56,32],[50,19,50,23],[50,24,50,27],[50,28,50,32],[54,19,54,23],[54,28,54,32],[45,19,45,23],[45,24,45,27],[45,28,45,32],[55,19,55,23],[55,28,55,32],[52,19,52,23],[52,28,52,32],[53,19,53,23],[53,28,53,32],[49,28,49,32],[46,19,46,23],[46,24,46,27],[46,28,46,32],[47,19,47,23],[47,24,47,27],[47,28,47,32],[49,19,49,23]]}
["SECCIÓN 5: INSUMOS"]
[]
["NÚMERO INSUMO",null,null,null,null,null,null,null,null,null,null,null,null,null,null,null,null,null,null,-5.01,null,null,null,null,{"$f":"T3-0.01","v":-5.0199999999999996},null,null,null,{"$f":"Y3-0.01","v":-5.0299999999999994}]
[null,null,null,null,null,null,null,null,null,null,null,null,null,null,null,null,null,null,null,"OBSERVE:",null,null,null,null,"OBSERVE:",null,null,null,"PREGUNTE AL RESPONSABLE:"]
[null,"INSUMO",null,null,null,null,null,null,null,null,null,null,null,null,null,null,null,null,null,"¿CUENTA ESTABLECIMIENTO DE SALUD CON [INSUMO] EN EL DÍA DE HOY?",null,null,null,null,"¿QUÉ CANTIDAD HAY APROXIMADAMENTE EN EL DÍA DE HOY?"]
[null,null,null,null,null,null,null,null,null,null,null,null,null,null,null,null,null,null,null,null,null,null,null,null,null,null,null,null,"Durante los últimos 30 días, ¿cuántos días no tuvo el personal acceso a  [INSUMO]? "]
[]
[]
[]
[null,null,null,null,null,null,null,null,null,null,null,null,null,null,null,null,null,null,null,1,null,null,"SI"]
[null,null,null,null,null,null,null,null,null,null,null,null,null,null,null,null,null,null,null,2,null,null,"NO"]
[null,null,null,null,null,null,null,null,null,null,null,null,null,null,null,null,null,null,null,"► PRÓXIMO INSUMO"]
[null,null,null,null,null,null,null,null,null,null,null,null,null,null,null,null,null,null,null,null,null,null,null,null,null,null,null,null,"NÚMERO DE DÍAS SIN ACCESO A [INSUMO]"]
[null,null,null,null,null,null,null,null,null,null,null,null,null,null,null,null,null,null,null,null,null,null,null,null,"CANTIDAD"]
["NIÑOS/AS"]
[1,"Tallímetro/infantómetro de madera apropiado (3 cuerpos, madera sólida, cinta métrica en buen estado sobre todo en las uniones de los cuerpos, con tope fijo, con tope móvil ‘sin juego’)"]
[2,"Balanza pediátrica de bandeja (escala mínima de 10 g) o balanza madre-bebé en buen estado"]
[3,"Balanza de pie, escala mínima 100 gs, en buen estado"]
[4,"Aerocámara espaciadora para salbutamol (puede ser elaborada artesanalmente con un vaso o un envase de suero)"]
[5,"Agua destilada para inyecciones"]
[6,"Alcohol"]
[7,"Algodón"]
[8,"Balón de oxígeno con manómetro listo para el uso y accesible"]
[9,"Cateter nasofaríngeo para niños/as"]
[10,"Carnet de Salud Infantil con hitos del desarrollo"]
[11,"Formularios de registro niños/as de 2 meses a menor de 5 años"]
[12,"Formularios de registro niños/as de 7 días a  menores de 2 meses "]
[13,"Formularios de registro niños/as menores de 7 días"]
[14,"Jeringas de 1 cc y 5 cc, con agujas"]
[15,"Refrigerador funcionando exclusivo para vacunas"]
[16,"Sonda Nasogástrica para niños/as"]
[]
["SECCIÓN 5: INSUMOS"]
[]
["NÚMERO INSUMO",null,null,null,null,null,null,null,null,null,null,null,null,null,null,null,null,null,null,-5.04,null,null,null,null,{"$f":"T35-0.01","v":-5.05},null,null,null,{"$f":"Y35-0.01","v":-5.0599999999999996}]
[null,null,null,null,null,null,null,null,null,null,null,null,null,null,null,null,null,null,null,"OBSERVE:",null,null,null,null,"OBSERVE:",null,null,null,"PREGUNTE AL RESPONSABLE:"]
[null,"INSUMO",null,null,null,null,null,null,null,null,null,null,null,null,null,null,null,null,null,"¿CUENTA ESTABLECIMIENTO DE SALUD CON [INSUMO] EN EL DÍA DE HOY?",null,null,null,null,"¿QUÉ CANTIDAD HAY APROXIMADAMENTE?"]
[null,null,null,null,null,null,null,null,null,null,null,null,null,null,null,null,null,null,null,null,null,null,null,null,null,null,null,null,"¿Es esta cantidad suficiente para las necesidades del establecimiento de salud?"]
[]
[null,null,null,null,null,null,null,null,null,null,null,null,null,null,null,null,null,null,null,1,null,null,"SI"]
[null,null,null,null,null,null,null,null,null,null,null,null,null,null,null,null,null,null,null,2,null,null,"NO"]
[null,null,null,null,null,null,null,null,null,null,null,null,null,null,null,null,null,null,null,"► PRÓXIMO INSUMO",null,null,null,null,null,null,null,null,1,null,null,null,"SI"]
[null,null,null,null,null,null,null,null,null,null,null,null,null,null,null,null,null,null,null,null,null,null,null,null,null,null,null,null,2,null,null,null,"NO"]
[null,null,null,null,null,null,null,null,null,null,null,null,null,null,null,null,null,null,null,null,null,null,null,null,"CANTIDAD"]
["EMBARAZADAS"]
[17,"Formulario Historia Clínica Perinatal"]
[18,"Carnet Perinatal"]
[19,"Partograma"]
[20,"Tensiómetro en buen estado"]
[21,"Estetoscopio en buen estado"]
[22,"Cinta métrica"]
["VACUNAS"]
[23,"Antimarílica"]
[24,"Antipolio"]
[25,"BCG"]
[26,"Antirotavirus"]
[27,"Pentavalente"]
[28,"SRP"]
[29,"TT (Toxoide Tetánico) "]
[30,"dT (difteria y Tétanos)"]

{"sheet":"6.Medicamentos.ORI","index":13,"n_rows":72,"n_cols":35,"rows_kept":72,"cut":false,"hidden":true,"merged":[[2,0,11,0],[2,17,2,23],[2,24,2,28],[2,29,2,34],[4,17,6,23],[4,24,6,28],[4,29,6,34],[6,1,7,16],[9,17,10,23],[9,24,10,28],[15,17,15,23],[15,24,15,28],[15,29,15,34],[16,17,16,23],[16,24,16,28],[16,29,16,34],[10,29,11,34],[11,24,11,28],[13,17,13,23],[13,24,13,28],[13,29,13,34],[14,17,14,23],[14,24,14,28],[14,29,14,34],[19,17,19,23],[19,24,19,28],[19,29,19,34],[20,17,20,23],[20,24,20,28],[20,29,20,34],[17,17,17,23],[17,24,17,28],[17,29,17,34],[18,17,18,23],[18,24,18,28],[18,29,18,34],[23,17,23,23],[23,24,23,28],[23,29,23,34],[24,17,24,23],[24,24,24,28],[24,29,24,34],[21,17,21,23],[21,24,21,28],[21,29,21,34],[22,17,22,23],[22,24,22,28],[22,29,22,34],[27,17,27,23],[27,24,27,28],[27,29,27,34],[28,17,28,23],[28,24,28,28],[28,29,28,34],[25,17,25,23],[25,24,25,28],[25,29,25,34],[26,17,26,23],[26,24,26,28],[26,29,26,34],[31,17,31,23],[31,24,31,28],[31,29,31,34],[32,17,32,23],[32,24,32,28],[32,29,32,34],[29,17,29,23],[29,24,29,28],[29,29,29,34],[30,17,30,23],[30,24,30,28],[30,29,30,34],[35,17,35,23],[35,24,35,28],[35,29,35,34],[36,17,36,23],[36,24,36,28],[36,29,36,34],[33,17,33,23],[33,24,33,28],[33,29,33,34],[34,17,34,23],[34,24,34,28],[34,29,34,34],[41,0,50,0],[41,17,41,23],[41,24,41,28],[41,29,41,34],[42,29,43,34],[43,17,45,23],[43,24,45,28],[44,29,47,34],[48,17,49,23],[48,24,49,28],[54,17,54,23],[54,24,54,28],[54,29,54,34],[55,17,55,23],[55,24,55,28],[55,29,55,34],[50,24,50,28],[50,29,50,34],[52,17,52,23],[52,24,52,28],[52,29,52,34],[53,17,53,23],[53,24,53,28],[53,29,53,34],[58,17,58,23],[58,24,58,28],[58,29,58,34],[59,17,59,23],[59,24,59,28],[59,29,59,34],[56,17,56,23],[56,24,56,28],[56,29,56,34],[57,17,57,23],[57,24,57,28],[57,29,57,34],[62,17,62,23],[62,24,62,28],[62,29,62,34],[64,17,64,23],[64,24,64,28],[64,29,64,34],[60,17,60,23],[60,24,60,28],[60,29,60,34],[61,17,61,23],[61,24,61,28],[61,29,61,34],[67,17,67,23],[67,24,67,28],[67,29,67,34],[68,17,68,23],[68,24,68,28],[68,29,68,34],[65,17,65,23],[65,24,65,28],[65,29,65,34],[66,17,66,23],[66,24,66,28],[66,29,66,34],[71,17,71,23],[71,24,71,28],[71,29,71,34],[69,17,69,23],[69,24,69,28],[69,29,69,34],[70,17,70,23],[70,24,70,28],[70,29,70,34]]}
["SECCIÓN 6: MEDICAMENTOS"]
[]
["NÚMERO MEDICAMENTO",null,null,null,null,null,null,null,null,null,null,null,null,null,null,null,null,-6.01,null,null,null,null,null,null,{"$f":"R3-0.01","v":-6.02},null,null,null,null,{"$f":"Y3-0.01","v":-6.0299999999999994}]
[null,null,null,null,null,null,null,null,null,null,null,null,null,null,null,null,null,"OBSERVE:",null,null,null,null,null,null,"OBSERVE:",null,null,null,null,"PREGUNTE AL RESPONSABLE:"]
[null,null,null,null,null,null,null,null,null,null,null,null,null,null,null,null,null,"¿CUENTA ESTABLECIMIENTO DE SALUD CON [MEDICAMENTO] EN EL DÍA DE HOY?",null,null,null,null,null,null,"¿QUÉ CANTIDAD HAY APROXIMADAMENTE EN EL DÍA DE HOY?",null,null,null,null,"Durante los últimos 30 días, ¿cuántos días no tuvo el personal acceso a  [MEDICAMENTO]? "]
[]
[null,"MEDICAMENTO"]
[null,null,null,null,null,null,null,null,null,null,null,null,null,null,null,null,null,1,null,null,null,null,"SI"]
[null,null,null,null,null,null,null,null,null,null,null,null,null,null,null,null,null,2,null,null,null,null,"NO"]
[null,null,null,null,null,null,null,null,null,null,null,null,null,null,null,null,null,"► PRÓXIMO MEDICAMENTO"]
[null,null,null,null,null,null,null,null,null,null,null,null,null,null,null,null,null,null,null,null,null,null,null,null,null,null,null,null,null,"NÚMERO DE DÍAS SIN ACCESO A [MEDICAMENTO]"]
[null,null,null,null,null,null,null,null,null,null,null,null,null,null,null,null,null,null,null,null,null,null,null,null,"CANTIDAD"]
["NIÑOS/AS"]
[1,"Alimento Terapéutico Nutricional Listo para el Uso  (ATLU), Plumpy Nut o BP100"]
[2,"Ceftriaxona fcos/amp. 500 mg o 1 g"]
[3,"Chispitas Nutricionales (Sobres) "]
[4,"Ciprofloxacina comp.250 mg"]
[5,"Cloranfenicol amp.1 g"]
[6,"Cotrimoxazol jarabe pediátrico (200/40/5mL) "]
[7,"Cotrimoxazol, tab de 100/20 mg"]
[8,"Dextrosa 5% 500  o 1000 mL"]
[9,"Gentamicina, amp.20, 40 mg o 80  mg"]
[10,"Hierro Gts 25 mg/mL de hierro elemental o 125 mg de sulfato ferroso (Ferrasol)"]
[11,"Mebendazol,tab 500 mg o tab.de 100 mg"]
[12,"Nistatina suspensión (1mL=100,000 UI)"]
[13,"Paracetamol jarabe 120 mg(5mL) "]
[14,"Paracetamol  tab. de 100 mg"]
[15,"Pen.procaínica, 1.000,000 ó 800,000 ó 400,000 UI"]
[16,"Ringer lactato, 500 o 1000 mL"]
[17,"Salbutamol en aerosol 100 mcg/dosis"]
[18,"Suero de la Vida o SRO de baja osmolaridad (245 mOsm/L)"]
[19,"Suero de la Vida o SRO estándar (311 mOsm/L)"]
[20,"Suero fisiológico 0.9% 500 ó 1.000 mL"]
[21,"Vitamina A 100.000 UI"]
[22,"Vitamina A 200.000 UI"]
[23,"Zinc , tabletas ‘dispersables’ de 20mg "]
[24,"Zinc , jarabe  de 20 mg/5mL"]
[]
["SECCIÓN 6: MEDICAMENTOS"]
[]
[]
["NÚMERO MEDICAMENTO",null,null,null,null,null,null,null,null,null,null,null,null,null,null,null,null,-6.04,null,null,null,null,null,null,{"$f":"R42-0.01","v":-6.05},null,null,null,null,{"$f":"Y42-0.01","v":-6.06}]
[null,null,null,null,null,null,null,null,null,null,null,null,null,null,null,null,null,"OBSERVE:",null,null,null,null,null,null,"OBSERVE:",null,null,null,null,"PREGUNTE AL RESPONSABLE:"]
[null,null,null,null,null,null,null,null,null,null,null,null,null,null,null,null,null,"¿CUENTA ESTABLECIMIENTO DE SALUD CON [MEDICAMENTO]?",null,null,null,null,null,null,"¿QUÉ CANTIDAD HAY APROXIMADAMENTE?"]
[null,null,null,null,null,null,null,null,null,null,null,null,null,null,null,null,null,null,null,null,null,null,null,null,null,null,null,null,null,"¿Es esta cantidad suficiente para las necesidades del establecimiento de salud?"]
[]
[null,null,null,null,null,null,null,null,null,null,null,null,null,null,null,null,null,1,null,null,null,null,"SI"]
[null,null,null,null,null,null,null,null,null,null,null,null,null,null,null,null,null,2,null,null,null,null,"NO"]
[null,null,null,null,null,null,null,null,null,null,null,null,null,null,null,null,null,"► PRÓXIMO MEDICAMENTO",null,null,null,null,null,null,null,null,null,null,null,1,null,null,null,null,"SI"]
[null,null,null,null,null,null,null,null,null,null,null,null,null,null,null,null,null,null,null,null,null,null,null,null,null,null,null,null,null,2,null,null,null,null,"NO"]
[null,null,null,null,null,null,null,null,null,null,null,null,null,null,null,null,null,null,null,null,null,null,null,null,"CANTIDAD"]
["EMBARAZADAS"]
[25,"Alfametildopa tab. 500 mg"]
[26,"Amoxicilina comp. 500 mg o 1g"]
[27,"Ampicilina amp. 1g"]
[28,"Ciprofloxacina comp. 500 mg"]
[29,"Doxiciclina tab. 100 mg"]
[30,"Eritromicina comp. 500 mg"]
[31,"Metronidazol tab.500 mg"]
[32,"Nifedipino tab. 10 mg"]
[33,"Paracetamol  tab.  500 mg"]
[34,"Peniicilina benzatínica amp. 1,200.000 UI o 2,400.000 UI"]
[35,"Sulfato ferroso tab, 60 mg"]
["MEDICAMENTOS ANTIMALÁRICOS, PARA ESTABLECIMIENTOS EN ZONAS DE RIESGO PARA MALARIA"]
[36,"Artesunato comp.50mg"]
[37,"Clindamicina susp.75mg/5mL"]
[38,"Cloroquina, tab.150 mg"]
[39,"Diclorhidrato de quinina, amp 300 mg/2mL"]
[40,"Mefloquina tab 250 mg"]
[41,"Primaquina, tab.5 mg"]
[42,"Quinina, amp.600 mg"]
[43,"Quinina sulfato, tab.300 mg"]

{"sheet":"6.Medicamentos","index":14,"n_rows":72,"n_cols":35,"rows_kept":72,"cut":false,"hidden":false,"merged":[[4,24,6,28],[9,24,10,28],[13,17,13,23],[14,17,14,23],[15,17,15,23],[16,17,16,23],[2,0,11,0],[2,17,2,23],[4,29,6,34],[10,29,11,34],[6,1,7,16],[2,24,2,28],[2,29,2,34],[4,17,6,23],[9,17,10,23],[11,24,11,28],[13,29,13,34],[14,29,14,34],[15,29,15,34],[16,29,16,34],[13,24,13,28],[14,24,14,28],[15,24,15,28],[16,24,16,28],[41,0,50,0],[41,17,41,23],[41,24,41,28],[41,29,41,34],[42,29,43,34],[43,17,45,23],[43,24,45,28],[44,29,47,34],[48,17,49,23],[17,24,17,28],[18,24,18,28],[19,24,19,28],[20,24,20,28],[18,17,18,23],[19,17,19,23],[20,17,20,23],[17,29,17,34],[18,29,18,34],[19,29,19,34],[20,29,20,34],[17,17,17,23],[22,29,22,34],[23,29,23,34],[24,29,24,34],[25,29,25,34],[26,29,26,34],[27,29,27,34],[28,29,28,34],[23,17,23,23],[21,17,21,23],[22,17,22,23],[28,24,28,28],[21,24,21,28],[22,24,22,28],[23,24,23,28],[28,17,28,23],[24,24,24,28],[24,17,24,23],[25,17,25,23],[26,17,26,23],[27,17,27,23],[25,24,25,28],[26,24,26,28],[27,24,27,28],[21,29,21,34],[29,29,29,34],[30,29,30,34],[31,29,31,34],[30,24,30,28],[31,24,31,28],[32,24,32,28],[33,24,33,28],[29,24,29,28],[57,17,57,23],[56,17,56,23],[52,24,52,28],[53,24,53,28],[54,24,54,28],[55,24,55,28],[56,24,56,28],[29,17,29,23],[30,17,30,23],[31,17,31,23],[32,17,32,23],[35,17,35,23],[36,17,36,23],[58,17,58,23],[59,17,59,23],[60,17,60,23],[61,17,61,23],[57,24,57,28],[58,24,58,28],[59,24,59,28],[32,29,32,34],[33,29,33,34],[34,29,34,34],[35,29,35,34],[36,29,36,34],[34,24,34,28],[35,24,35,28],[36,24,36,28],[48,24,49,28],[50,24,50,28],[50,29,50,34],[33,17,33,23],[34,17,34,23],[52,17,52,23],[53,17,53,23],[54,17,54,23],[55,17,55,23],[66,24,66,28],[52,29,52,34],[53,29,53,34],[54,29,54,34],[55,29,55,34],[56,29,56,34],[62,29,62,34],[60,24,60,28],[57,29,57,34],[58,29,58,34],[59,29,59,34],[60,29,60,34],[61,29,61,34],[61,24,61,28],[62,24,62,28],[67,24,67,28],[68,24,68,28],[69,24,69,28],[70,24,70,28],[71,24,71,28],[62,17,62,23],[68,29,68,34],[69,29,69,34],[70,29,70,34],[71,29,71,34],[68,17,68,23],[69,17,69,23],[70,17,70,23],[71,17,71,23],[64,24,64,28],[64,17,64,23],[65,17,65,23],[66,17,66,23],[67,17,67,23],[64,29,64,34],[65,29,65,34],[66,29,66,34],[67,29,67,34],[65,24,65,28]]}
["SECCIÓN 6: MEDICAMENTOS"]
[]
["NÚMERO MEDICAMENTO",null,null,null,null,null,null,null,null,null,null,null,null,null,null,null,null,-6.01,null,null,null,null,null,null,{"$f":"R3-0.01","v":-6.02},null,null,null,null,{"$f":"Y3-0.01","v":-6.0299999999999994}]
[null,null,null,null,null,null,null,null,null,null,null,null,null,null,null,null,null,"OBSERVE:",null,null,null,null,null,null,"OBSERVE:",null,null,null,null,"PREGUNTE AL RESPONSABLE:"]
[null,null,null,null,null,null,null,null,null,null,null,null,null,null,null,null,null,"¿CUENTA ESTABLECIMIENTO DE SALUD CON [MEDICAMENTO] EN EL DÍA DE HOY?",null,null,null,null,null,null,"¿QUÉ CANTIDAD HAY APROXIMADAMENTE EN EL DÍA DE HOY?",null,null,null,null,"Durante los últimos 30 días, ¿cuántos días no tuvo el personal acceso a  [MEDICAMENTO]? "]
[]
[null,"MEDICAMENTO"]
[null,null,null,null,null,null,null,null,null,null,null,null,null,null,null,null,null,1,null,null,null,null,"SI"]
[null,null,null,null,null,null,null,null,null,null,null,null,null,null,null,null,null,2,null,null,null,null,"NO"]
[null,null,null,null,null,null,null,null,null,null,null,null,null,null,null,null,null,"► PRÓXIMO MEDICAMENTO"]
[null,null,null,null,null,null,null,null,null,null,null,null,null,null,null,null,null,null,null,null,null,null,null,null,null,null,null,null,null,"NÚMERO DE DÍAS SIN ACCESO A [MEDICAMENTO]"]
[null,null,null,null,null,null,null,null,null,null,null,null,null,null,null,null,null,null,null,null,null,null,null,null,"CANTIDAD"]
["NIÑOS/AS"]
[1,"Alimento Terapéutico Nutricional Listo para el Uso  (ATLU), Plumpy Nut o BP100"]
[2,"Ceftriaxona fcos/amp. 500 mg o 1 g"]
[3,"Chispitas Nutricionales (Sobres) "]
[4,"Ciprofloxacina comp.250 mg"]
[5,"Cloranfenicol amp.1 g"]
[6,"Cotrimoxazol jarabe pediátrico (200/40/5mL) "]
[7,"Cotrimoxazol, tab de 100/20 mg"]
[8,"Dextrosa 5% 500  o 1000 mL"]
[9,"Gentamicina, amp.20, 40 mg o 80  mg"]
[10,"Hierro Gts 25 mg/mL de hierro elemental o 125 mg de sulfato ferroso (Ferrasol)"]
[11,"Mebendazol,tab 500 mg o tab.de 100 mg"]
[12,"Nistatina suspensión (1mL=100,000 UI)"]
[13,"Paracetamol jarabe 120 mg(5mL) "]
[14,"Paracetamol  tab. de 100 mg"]
[15,"Pen.procaínica, 1.000,000 ó 800,000 ó 400,000 UI"]
[16,"Ringer lactato, 500 o 1000 mL"]
[17,"Salbutamol en aerosol 100 mcg/dosis"]
[18,"Suero de la Vida o SRO de baja osmolaridad (245 mOsm/L)"]
[19,"Suero de la Vida o SRO estándar (311 mOsm/L)"]
[20,"Suero fisiológico 0.9% 500 ó 1.000 mL"]
[21,"Vitamina A 100.000 UI"]
[22,"Vitamina A 200.000 UI"]
[23,"Zinc , tabletas ‘dispersables’ de 20mg "]
[24,"Zinc , jarabe  de 20 mg/5mL"]
[]
["SECCIÓN 6: MEDICAMENTOS"]
[]
[]
["NÚMERO MEDICAMENTO",null,null,null,null,null,null,null,null,null,null,null,null,null,null,null,null,-6.04,null,null,null,null,null,null,{"$f":"R42-0.01","v":-6.05},null,null,null,null,{"$f":"Y42-0.01","v":-6.06}]
[null,null,null,null,null,null,null,null,null,null,null,null,null,null,null,null,null,"OBSERVE:",null,null,null,null,null,null,"OBSERVE:",null,null,null,null,"PREGUNTE AL RESPONSABLE:"]
[null,null,null,null,null,null,null,null,null,null,null,null,null,null,null,null,null,"¿CUENTA ESTABLECIMIENTO DE SALUD CON [MEDICAMENTO]?",null,null,null,null,null,null,"¿QUÉ CANTIDAD HAY APROXIMADAMENTE?"]
[null,null,null,null,null,null,null,null,null,null,null,null,null,null,null,null,null,null,null,null,null,null,null,null,null,null,null,null,null,"¿Es esta cantidad suficiente para las necesidades del establecimiento de salud?"]
[]
[null,null,null,null,null,null,null,null,null,null,null,null,null,null,null,null,null,1,null,null,null,null,"SI"]
[null,null,null,null,null,null,null,null,null,null,null,null,null,null,null,null,null,2,null,null,null,null,"NO"]
[null,null,null,null,null,null,null,null,null,null,null,null,null,null,null,null,null,"► PRÓXIMO MEDICAMENTO",null,null,null,null,null,null,null,null,null,null,null,1,null,null,null,null,"SI"]
[null,null,null,null,null,null,null,null,null,null,null,null,null,null,null,null,null,null,null,null,null,null,null,null,null,null,null,null,null,2,null,null,null,null,"NO"]
[null,null,null,null,null,null,null,null,null,null,null,null,null,null,null,null,null,null,null,null,null,null,null,null,"CANTIDAD"]
["EMBARAZADAS"]
[25,"Alfametildopa tab. 500 mg"]
[26,"Amoxicilina comp. 500 mg o 1g"]
[27,"Ampicilina amp. 1g"]
[28,"Ciprofloxacina comp. 500 mg"]
[29,"Doxiciclina tab. 100 mg"]
[30,"Eritromicina comp. 500 mg"]
[31,"Metronidazol tab.500 mg"]
[32,"Nifedipino tab. 10 mg"]
[33,"Paracetamol  tab.  500 mg"]
[34,"Peniicilina benzatínica amp. 1,200.000 UI o 2,400.000 UI"]
[35,"Sulfato ferroso tab, 60 mg"]
["MEDICAMENTOS ANTIMALÁRICOS, PARA ESTABLECIMIENTOS EN ZONAS DE RIESGO PARA MALARIA"]
[36,"Artesunato comp.50mg"]
[37,"Clindamicina susp.75mg/5mL"]
[38,"Cloroquina, tab.150 mg"]
[39,"Diclorhidrato de quinina, amp 300 mg/2mL"]
[40,"Mefloquina tab 250 mg"]
[41,"Primaquina, tab.5 mg"]
[42,"Quinina, amp.600 mg"]
[43,"Quinina sulfato, tab.300 mg"]

{"sheet":"7.Observ.ORI","index":15,"n_rows":43,"n_cols":22,"rows_kept":43,"cut":false,"hidden":true,"merged":[[4,1,5,13],[5,14,5,15],[5,33,5,34],[10,33,10,34],[12,1,13,12],[13,14,13,15],[40,15,40,16],[14,18,14,34],[15,33,15,34],[21,14,21,15],[23,33,23,34],[25,14,25,15],[26,19,27,34],[29,33,29,34],[33,15,33,16],[33,19,34,32],[34,33,34,34],[38,1,39,16]]}
["SECCIÓN 7: OBSERVACIÓN DIRECTA DE INSTALACIONES"]
["Ahora quisiera ver las instalaciones de este establecimiento de salud y tomar algunas notas. ¿Podría llevarme por favor a la  (o una de las) sala(s) donde examinan a los pacientes?"]
["ENCUESTADOR: HACER LAS SIGUIENTES OBSERVACIONES DE UNA SOLA SALA DONDE EXAMINAN A LOS PACIENTES."]
["UNA VEZ QUE LLEGUE USTED A LA SALA, OBSERVE Y ANOTE LAS REPUESTAS. NO FORMULE  NINGUNA PREGUNTA, A MENOS QUE SEA NECESARIA ALGUNA ACLARACIÓN."]
[-7.01," ¿ESTÁ EL PISO LIMPIO, O SE OBSERVA EN ÉL POLVO, RESTOS DE COMIDA O BASURA?",null,null,null,null,null,null,null,null,null,null,null,null,null,null,null,null,{"$f":"A39-0.01","v":-7.0699999999999985},"¿LA SALA CUENTA CON MESA DE EXPLORACIÓN / CAMILLA?"]
[null,null,null,null,null,null,null,null,null,null,null,null,null,null,null,null,null,null,null,"SI LA MESA NO ESTÁ A LA VISTA PEDIR PERMISO PARA VERLA"]
[null,null,1,"MUY LIMPIO",null,null,null,null,null,null,null,null,null,null,null,null,null,null,null,null,1,"SI"]
[null,null,2,"LIMPIO",null,null,null,null,null,null,null,null,null,null,null,null,null,null,null,null,2,"NO"]
[null,null,3,"REGULAR"]
[null,null,4,"SUCIO",null,null,null,null,null,null,null,null,null,null,null,null,null,null,{"$f":"S5-0.01","v":-7.0799999999999983},"¿LA SALA CUENTA CON MESA DE EXPLORACIÓN GINECOLÓGICA? "]
[null,null,5,"MUY SUCIO",null,null,null,null,null,null,null,null,null,null,null,null,null,null,null,"SI LA MESA NO ESTÁ A LA VISTA PEDIR PERMISO PARA VERLA"]
[null,null,null,null,null,null,null,null,null,null,null,null,null,null,null,null,null,null,null,null,1,"SI"]
[{"$f":"A5-0.01","v":-7.02},"¿ESTÁN LAS PAREDES LIMPIAS, O SE OBSERVAN EN ELLAS TELARAÑAS, HUMEDAD O PINTURA RASPADA O DESCASCARADA?",null,null,null,null,null,null,null,null,null,null,null,null,null,null,null,null,null,null,2,"NO"]
[]
[null,null,1,"MUY LIMPIO",null,null,null,null,null,null,null,null,null,null,null,null,null,null,"¿Ahora podria usted mostrarme el sitio donde almacenan las vacunas en este establecimiento de salud?"]
[null,null,2,"LIMPIO",null,null,null,null,null,null,null,null,null,null,null,null,null,null,{"$f":"S10-0.01","v":-7.0899999999999981},"¿DÓNDE  SE ALMACENAN LAS VACUNAS? "]
[null,null,3,"REGULAR",null,null,null,null,null,null,null,null,null,null,null,null,null,null,null,null,1,"HELADERA O REFRIGERADOR EXCLUSIVO PARA VACUNAS"]
[null,null,4,"SUCIO",null,null,null,null,null,null,null,null,null,null,null,null,null,null,null,null,2,"HELADERA O REFRIGERADOR DE USOS MÚLTIPLES"]
[null,null,5,"MUY SUCIO",null,null,null,null,null,null,null,null,null,null,null,null,null,null,null,null,3,"HIELERA NO ELÉCTRICA"]
[null,null,null,null,null,null,null,null,null,null,null,null,null,null,null,null,null,null,null,null,4,"NO APLICABLE"]
[{"$f":"A13-0.01","v":-7.0299999999999994},"¿HAY PRIVACIDAD PARA EL EXAMEN DE LOS PACIENTES?",null,null,null,null,null,null,null,null,null,null,null,null,null,null,null,null,null,null,5,"OTRO"]
[null,"SI EL LUGAR NO ESTÁ A LA VISTA PEDIR PERMISO PARA VERLO"]
[null,null,1,"SI",null,null,null,null,null,null,null,null,null,null,null,null,null,null,{"$f":"S16-0.01","v":-7.0999999999999979},"¿EL REFRIGERADOR CUENTA CON MEDIDOR Y REGISTRO DE TEMPERATURA?"]
[null,null,2,"NO",null,null,null,null,null,null,null,null,null,null,null,null,null,null,null,null,1,"SI"]
[{"$f":"A21-0.01","v":-7.0399999999999991},"¿ESTÁN LIMPIAS LAS CORTINAS?",null,null,null,null,null,null,null,null,null,null,null,null,null,null,null,null,null,null,2,"NO"]
[null,null,1,"MUY LIMPIAS"]
[null,null,2,"LIMPIAS",null,null,null,null,null,null,null,null,null,null,null,null,null,null,{"$f":"S23-0.01","v":-7.1099999999999977},"¿SE OBSERVA EL DESCARTADOR DE AGUJAS (LA CAJA ROJA ESPECIAL) PARA RECOLECTAR OBJETOS PUNZO CORTANTES? "]
[null,null,3,"REGULAR"]
[null,null,4,"SUCIAS",null,null,null,null,null,null,null,null,null,null,null,null,null,null,null,"SI EL DESCARTADOR NO ESTÁ A LA VISTA PEDIR PERMISO PARA VERLO"]
[null,null,5,"MUY SUCIAS",null,null,null,null,null,null,null,null,null,null,null,null,null,null,null,null,1,"SI"]
[null,null,6,"NO EXISTEN CORTINAS",null,null,null,null,null,null,null,null,null,null,null,null,null,null,null,null,2,"NO"]
[null,null,null,null,null,null,null,null,null,null,null,null,null,null,null,null,null,null,null,null,3,"NO HAY DESCARTADOR"]
[{"$f":"A25-0.01","v":-7.0499999999999989},"¿CON QUÉ ELEMENTOS SE DISPONE PARA EL ASEO DE MANOS EN LA SALA DE EXPLORACIÓN?"]
[null,1,"PILETA O FREGADERO O LAVABO CON AGUA ENTUBADA",null,null,null,null,null,null,null,null,null,null,null,null,null,null,null,{"$f":"S27-0.01","v":-7.1199999999999974},"¿EL RECIPIENTE PARA LA BASURA DE LA SALA DE INMUNIZACIONES ESTA CUBIERTO POR UNA BOLSA ROJA? "]
[null,2,"PILETA O FREGADERO O LAVABO CON RECIPIENTE PARA AGUA"]
[null,3,"NO CUENTA CON NINGÚN ELEMENTO",null,null,null,null,null,null,null,null,null,null,null,null,null,null,null,null,"SI EL RECIPIENTE NO ESTÁ A LA VISTA PEDIR PERMISO PARA VERLO"]
[null,4,"OTRO",null,null,null,null,null,null,null,null,null,null,null,null,null,null,null,null,null,1,"SI"]
[null,null,null,null,null,null,null,null,null,null,null,null,null,null,null,null,null,null,null,null,2,"NO"]
[{"$f":"A33-0.01","v":-7.0599999999999987},"¿EXISTEN CESTOS O TACHOS PARA LA DISPOSICIÓN DE BASURA EN LA SALA DE EXPLORACIÓN? ",null,null,null,null,null,null,null,null,null,null,null,null,null,null,null,null,null,null,3,"NO HAY RECIPIENTE"]
[]
[null,"SI EL CESTO NO ESTÁ A LA VISTA PEDIR PERMISO PARA VERLO"]
[null,null,1,"SI"]
[null,null,2,"NO"]

{"sheet":"7.Observ","index":16,"n_rows":43,"n_cols":22,"rows_kept":43,"cut":false,"hidden":false,"merged":[[40,15,40,16],[38,1,39,16],[26,19,27,34],[29,33,29,34],[33,19,34,32],[34,33,34,34],[33,15,33,16],[4,1,5,13],[5,14,5,15],[5,33,5,34],[10,33,10,34],[14,18,14,34],[15,33,15,34],[25,14,25,15],[23,33,23,34],[12,1,13,12],[13,14,13,15],[21,14,21,15]]}
["SECCIÓN 7: OBSERVACIÓN DIRECTA DE INSTALACIONES"]
["Ahora quisiera ver las instalaciones de este establecimiento de salud y tomar algunas notas. ¿Podría llevarme por favor a la  (o una de las) sala(s) donde examinan a los pacientes?"]
["ENCUESTADOR: HACER LAS SIGUIENTES OBSERVACIONES DE UNA SOLA SALA DONDE EXAMINAN A LOS PACIENTES."]
["UNA VEZ QUE LLEGUE USTED A LA SALA, OBSERVE Y ANOTE LAS REPUESTAS. NO FORMULE  NINGUNA PREGUNTA, A MENOS QUE SEA NECESARIA ALGUNA ACLARACIÓN."]
[-7.01," ¿ESTÁ EL PISO LIMPIO, O SE OBSERVA EN ÉL POLVO, RESTOS DE COMIDA O BASURA?",null,null,null,null,null,null,null,null,null,null,null,null,null,null,null,null,{"$f":"A39-0.01","v":-7.0699999999999985},"¿LA SALA CUENTA CON MESA DE EXPLORACIÓN / CAMILLA?"]
[null,null,null,null,null,null,null,null,null,null,null,null,null,null,null,null,null,null,null,"SI LA MESA NO ESTÁ A LA VISTA PEDIR PERMISO PARA VERLA"]
[null,null,1,"MUY LIMPIO",null,null,null,null,null,null,null,null,null,null,null,null,null,null,null,null,1,"SI"]
[null,null,2,"LIMPIO",null,null,null,null,null,null,null,null,null,null,null,null,null,null,null,null,2,"NO"]
[null,null,3,"REGULAR"]
[null,null,4,"SUCIO",null,null,null,null,null,null,null,null,null,null,null,null,null,null,{"$f":"S5-0.01","v":-7.0799999999999983},"¿LA SALA CUENTA CON MESA DE EXPLORACIÓN GINECOLÓGICA? "]
[null,null,5,"MUY SUCIO",null,null,null,null,null,null,null,null,null,null,null,null,null,null,null,"SI LA MESA NO ESTÁ A LA VISTA PEDIR PERMISO PARA VERLA"]
[null,null,null,null,null,null,null,null,null,null,null,null,null,null,null,null,null,null,null,null,1,"SI"]
[{"$f":"A5-0.01","v":-7.02},"¿ESTÁN LAS PAREDES LIMPIAS, O SE OBSERVAN EN ELLAS TELARAÑAS, HUMEDAD O PINTURA RASPADA O DESCASCARADA?",null,null,null,null,null,null,null,null,null,null,null,null,null,null,null,null,null,null,2,"NO"]
[]
[null,null,1,"MUY LIMPIO",null,null,null,null,null,null,null,null,null,null,null,null,null,null,"¿Ahora podria usted mostrarme el sitio donde almacenan las vacunas en este establecimiento de salud?"]
[null,null,2,"LIMPIO",null,null,null,null,null,null,null,null,null,null,null,null,null,null,{"$f":"S10-0.01","v":-7.0899999999999981},"¿DÓNDE  SE ALMACENAN LAS VACUNAS? "]
[null,null,3,"REGULAR",null,null,null,null,null,null,null,null,null,null,null,null,null,null,null,null,1,"HELADERA O REFRIGERADOR EXCLUSIVO PARA VACUNAS"]
[null,null,4,"SUCIO",null,null,null,null,null,null,null,null,null,null,null,null,null,null,null,null,2,"HELADERA O REFRIGERADOR DE USOS MÚLTIPLES"]
[null,null,5,"MUY SUCIO",null,null,null,null,null,null,null,null,null,null,null,null,null,null,null,null,3,"HIELERA NO ELÉCTRICA"]
[null,null,null,null,null,null,null,null,null,null,null,null,null,null,null,null,null,null,null,null,4,"NO APLICABLE"]
[{"$f":"A13-0.01","v":-7.0299999999999994},"¿HAY PRIVACIDAD PARA EL EXAMEN DE LOS PACIENTES?",null,null,null,null,null,null,null,null,null,null,null,null,null,null,null,null,null,null,5,"OTRO"]
[null,"SI EL LUGAR NO ESTÁ A LA VISTA PEDIR PERMISO PARA VERLO"]
[null,null,1,"SI",null,null,null,null,null,null,null,null,null,null,null,null,null,null,{"$f":"S16-0.01","v":-7.0999999999999979},"¿EL REFRIGERADOR CUENTA CON MEDIDOR Y REGISTRO DE TEMPERATURA?"]
[null,null,2,"NO",null,null,null,null,null,null,null,null,null,null,null,null,null,null,null,null,1,"SI"]
[{"$f":"A21-0.01","v":-7.0399999999999991},"¿ESTÁN LIMPIAS LAS CORTINAS?",null,null,null,null,null,null,null,null,null,null,null,null,null,null,null,null,null,null,2,"NO"]
[null,null,1,"MUY LIMPIAS"]
[null,null,2,"LIMPIAS",null,null,null,null,null,null,null,null,null,null,null,null,null,null,{"$f":"S23-0.01","v":-7.1099999999999977},"¿SE OBSERVA EL DESCARTADOR DE AGUJAS (LA CAJA ROJA ESPECIAL) PARA RECOLECTAR OBJETOS PUNZO CORTANTES? "]
[null,null,3,"REGULAR"]
[null,null,4,"SUCIAS",null,null,null,null,null,null,null,null,null,null,null,null,null,null,null,"SI EL DESCARTADOR NO ESTÁ A LA VISTA PEDIR PERMISO PARA VERLO"]
[null,null,5,"MUY SUCIAS",null,null,null,null,null,null,null,null,null,null,null,null,null,null,null,null,1,"SI"]
[null,null,6,"NO EXISTEN CORTINAS",null,null,null,null,null,null,null,null,null,null,null,null,null,null,null,null,2,"NO"]
[null,null,null,null,null,null,null,null,null,null,null,null,null,null,null,null,null,null,null,null,3,"NO HAY DESCARTADOR"]
[{"$f":"A25-0.01","v":-7.0499999999999989},"¿CON QUÉ ELEMENTOS SE DISPONE PARA EL ASEO DE MANOS EN LA SALA DE EXPLORACIÓN?"]
[null,1,"PILETA O FREGADERO O LAVABO CON AGUA ENTUBADA",null,null,null,null,null,null,null,null,null,null,null,null,null,null,null,{"$f":"S27-0.01","v":-7.1199999999999974},"¿EL RECIPIENTE PARA LA BASURA DE LA SALA DE INMUNIZACIONES ESTA CUBIERTO POR UNA BOLSA ROJA? "]
[null,2,"PILETA O FREGADERO O LAVABO CON RECIPIENTE PARA AGUA"]
[null,3,"NO CUENTA CON NINGÚN ELEMENTO",null,null,null,null,null,null,null,null,null,null,null,null,null,null,null,null,"SI EL RECIPIENTE NO ESTÁ A LA VISTA PEDIR PERMISO PARA VERLO"]
[null,4,"OTRO",null,null,null,null,null,null,null,null,null,null,null,null,null,null,null,null,null,1,"SI"]
[null,null,null,null,null,null,null,null,null,null,null,null,null,null,null,null,null,null,null,null,2,"NO"]
[{"$f":"A33-0.01","v":-7.0599999999999987},"¿EXISTEN CESTOS O TACHOS PARA LA DISPOSICIÓN DE BASURA EN LA SALA DE EXPLORACIÓN? ",null,null,null,null,null,null,null,null,null,null,null,null,null,null,null,null,null,null,3,"NO HAY RECIPIENTE"]
[]
[null,"SI EL CESTO NO ESTÁ A LA VISTA PEDIR PERMISO PARA VERLO"]
[null,null,1,"SI"]
[null,null,2,"NO"]

{"sheet":"Resource","index":17,"n_rows":4011,"n_cols":3,"rows_kept":4011,"cut":false,"hidden":true,"merged":[]}
["ENGLISH","FRANÇAIS","ESPAÑOL"]
["Variable Properties","Propriétés de la variable","Propiedades de la variable"]
["Data entry range for the variable","Rang d'entrée de données pour la variable","Rango de entrada de datos de la variable"]
["Variable type","Type de variable","Tipo de la variable"]
["Quantitative","Quantitative","Cuantitativa"]
["Qualitative","Qualitative","Cualitativa"]
["Typographic","Typographique","Tipográfica"]
["Chronographic","Chronographique","Cronográfica"]
["Variable range","Rang de la variable","Rango de la variable"]
["Minimum:","Minimum:","Mínimo"]
["Maximum:","Maximum:","Máximo"]
["Variable categories","Categories de la variable","Categorías de la variable"]
["Category:","Categorie:","Categoría:"]
["Add","Ajouter","Agregar"]
["Remove","Supprimer","Eliminar"]
["Code:","Code:","Código:"]
["Name:","Nom:","Nombre:"]
["OK","OK","Aceptar"]
["Cancel","Annuler","Cancelar"]
["RT:","CE:","CR:"]
["New RT","Nouvelle CE","Nueva CR"]
["Name is blank.","Nom est en blanc.","El nombre está en blanco."]
["A variable with this name already exists.","Une variable avec ce nom existe dej","Una variable con este nombre ya existe."]
["Name is blank.",null,"El nombre está en blanco."]
["Size",null,"Largo"]
["Invalid entry.",null,"Entrada inválida"]
["The minimum cannot be greater than the maximum.",null,"El mínimo no puede ser mayor que el máximo."]
["Are you sure?",null,"¿Está seguro?"]
["Dictionary",null,"Diccionario"]
["Variable:",null,"Variable:"]
["Create new variable in RT",null,"Crear nueva variable en la CR"]
["Record Type",null,"Clase de Registro"]
["< Back",null,"< Atrás"]
["Next >",null,"Siguiente >"]
["Finish",null,"Terminar"]
["Name",null,"Nombre"]
["Description",null,"Descripción"]
["Unconditional skip",null,"Salto incondicional"]
["No",null,"No"]
["Yes",null,"Sí"]
["<Empty slot>",null,"<Casilla vacía>"]
["Enter a description for the new Record Type",null,"Ingrese una descripción para la nueva Clase de Registro"]
["Create…",null,"Crear…"]
["You cannot remove the first range unless you remove the subsequent ranges",null,"No se puede eliminar el primer rango sin haber eliminado los rangos subsiguientes"]
["Shape…",null,"Forma…"]
["&RT",null,"&CR"]
["Create or edit a Record Type definition (Ctrl+Shift+R)",null,"Crear o editar una definición de Clase de Registro (Ctrl+Shift+R)"]
["V&AR",null,"V&AR"]
["Create or edit a Variable definition (Ctrl+Shift+V)",null,"Crear o editar una definición de Variable (Ctrl+Shift+V)"]
["&DIC",null,"&DIC"]
["Edit the contents of the dictionary (Ctrl+Shift+D)",null,"Editar el contenido del diccionario (Ctrl+Shift+D)"]
["There are no Record Types defined.",null,"No hay Clases de Registro definidas."]
["Choose the Record Type of the variable:",null,"Escoja la Clase de Registro de la variable:"]
["Enter a name for the variable:",null,"Ingrese un nombre para la variable:"]
["Enter a description for the variable:",null,"Ingrese una descripción para la variable:"]
["Choose the type of the variable:",null,"Escoja el tipo de la variable:"]
["Enter the total size for the variable:",null,"Ingrese el largo total de la variable:"]
["Enter the number of decimals for the variable:",null,"Ingrese la cantidad de decimales de la variable:"]
["Cond.",null,"Cond."]
["If variable",null,"Si la variable"]
["in RT",null,"en la CR"]
["ranges from",null,"va desde"]
["to",null,"hasta"]
["skip to",null,"salta a"]
["in RT",null,"en la CR"]
["Another condition",null,"Otra condición"]
["Numeric ranges",null,"Rangos numéricos"]
["Categories",null,"Categorías"]
["Enter the numeric ranges that are valid for the variable:",null,"Ingrese los rangos numéricos que son válidos para la variable:"]
["Enter the category codes and names for the variable:",null,"Ingrese los códigos y nombres de las categorías para la variable:"]
["Summary",null,"Resumen"]
["Variable in RT",null,"Variable en la CR"]
["Type",null,"Tipo"]
["Temporary Dictionary",null,"Diccionario Temporal"]
["Type:",null,"Tipo:"]
["Total size:",null,"Largo total:"]
["Decimals:",null,"Decimales:"]
["Apply",null,"Aplicar"]
["Restore",null,"Restaurar"]
["There are no variables defined.",null,"No hay variables definidas."]
["Out of range: press Yes to force the entry, No to retry, or Cancel to restore the cell value.",null,"Fuera de rango: pulse Sí para forzar la entrada, No para reintentar, o Cancelar para restaurar el valor de la celda."]
["File not found.",null,"No se encuentra el archivo."]
["External File",null,"Archivo Externo"]
["Category code:",null,"Código de la categoría:"]
["Category name:",null,"Nombre de la categoría:"]
["Position",null,"Posición"]
["Length",null,"Largo"]
["Ext. File…",null,"Arch. Ext…"]
["File name:",null,"Nombre del archivo:"]
["Choose an external file",null,"Escoja un archivo externo"]
["&Skips",null,"&Saltos"]
["Edit variable in RT",null,"Editar variable en la CR"]
["You must select a data entry cell for the variable you want to edit.",null,"Se debe seleccionar una celda de entrada de datos para la variable que se quiere editar."]
["Skips",null,"Saltos"]
["Sheet",null,"Hoja"]
["Row",null,"Fila"]
["Column",null,"Columna"]
["Lines",null,"Líneas"]
["Data entry range offsets",null,"Offsets del rango de entrada de datos"]
["Record Type Shape",null,"Forma de la Clase de Registro"]
["Me",null,"Me"]
["End of RT",null,"End of RT"]
["RT",null,"CR"]
["Variable",null,"Variable"]
["Observation",null,"Observación"]
["From",null,"Desde"]
["To",null,"Hasta"]
["Variable",null,"Variable"]
["If",null,"Si"]
["Ranges",null,"Va"]
["Jump to",null,"Salta a"]
["You must select a data entry cell for the Record Type you want to check.",null,"Se debe seleccionar una celda de entrada de datos para la Clase de Registro que se quiere corregir."]
["Designer toolbar",null,"Barra del Diseñador"]
["Operator toolbar",null,"Barra del Operador"]
["&Check",null,"&Chequeo"]
["Check data entry (Ctrl+Shift+C)",null,"Chequea la entrada de datos (Ctrl+Shift+C)"]
["Inter",null,"Inter"]
["Check data entry across Record Types (Ctrl+Shift+E)",null,"Corrige la entrada de datos a través de las Clases de Registro (Ctrl+Shift+E)"]
["Variable",null,"Variable"]
["is not blank, in spite of variable",null,"no está en blanco, a pesar que la variable"]
["in",null,"en"]
["being",null,"es"]
["for record with code",null,"para el registro con código"]
["is blank",null,"está en blanco"]
["Do you wish to continue checking this record?",null,"¿Quiere seguir corrigiendo este registro?"]
[" - to continue checking the same record, click Yes,",null," - para seguir corrigiendo el mismo registro, presione Sí,"]
[" - to go on checking from the next record, click No,",null," - para continuar corrigiendo desde el siguiente registro, presione No,"]
[" - to quit checking, click Cancel.",null," - para dejar de corregir, presione Cancelar."]
["Initial conditions for",null,"Condiciones iniciales para"]
["Preprinted",null,"Preimpresa"]
["Range…",null,"Rango…"]
["Copy",null,"Copiar"]
["Delete",null,"Eliminar"]
["Use the keyboard to select the first cell of the data entry range, then click here.",null,"Use el teclado para seleccionar la primera celda del rango de entrada de datos, y luego presione aquí."]
["Distribute",null,"Distribuir"]
["Creates the data entry program for the operator (Ctrl+Shift+I)",null,"Crear el programa de entrada de datos para el operador (Ctrl+Shift+I)"]
["Create new Record Type",null,"Crear nueva Clase de Registro"]
["Enter a 3-digit code for the Record Type:",null,"Ingrese un código de 3 dígitos para la Clase de Registro:"]
["Enter a description for the Record Type:",null,"Ingrese una descripción para la Clase de Registro:"]
["Code",null,"Código"]
["Description",null,"Descripción"]
["Code:",null,"Código:"]
["Description:",null,"Descripción:"]
["blank",null,"en blanco"]
["This will save your work and create the Data Entry Program for the operator.",null,"Esto guardará su trabajo y creará el Programa de Entrada de Datos para el operador."]
["Do you wish to continue?",null,"¿Desea continuar?"]
["Duplicate name in Record Type:",null,"Nombre repetido en la Clase de Registro:"]
["already has name",null,"ya tiene el nombre"]
["You must define a Shape for the Record Type first.",null,"Debe definir la Forma de la Clase de Registro primero."]
["Duplicate Record Type code:",null,"Código de Clase de Registro repetido:"]
["already has code",null,"ya tiene el código"]
["Record Type",null,"Clase de Registro"]
["Range",null,"Rango"]
["Skips…",null,"Saltos…"]
["Continue?",null,"¿Continuar?"]
["Date format:",null,"Formato de fecha:"]
["Invalid date format.",null,"Formato de fecha inválido."]
["Date does not exist.",null,"La fecha no existe."]
["Date format",null,"Formato de fecha"]
["Enter the date formats for the variable, as it should be shown on the screen and written to the file:",null,"Ingrese los formatos cronográficos de la variable, tanto para mostrar en pantalla como para escribir al archivo:"]
["Screen format:",null,"Formato de pantalla:"]
["File format:",null,"Formato de archivo:"]
["Date ranges",null,"Rangos cronográficos"]
["Enter the date ranges that are valid for the variable (Write the dates using the screen format):",null,"Ingrese los rangos cronográficos que son válidos para la variable (Escriba la fecha utilizando el formato de pantalla):"]
["Date is out of range.",null,"La fecha está fuera de rango."]
[{"$f":"\"'*** Start of code block ***\"","v":"'*** Start of code block ***"},null,{"$f":"\"'*** Inicio del bloque de código ***\"","v":"'*** Inicio del bloque de código ***"}]
[{"$f":"\"'*** End of code block ***\"","v":"'*** End of code block ***"},null,{"$f":"\"'*** Fin del bloque de código ***\"","v":"'*** Fin del bloque de código ***"}]
["Questionnaire ID cannot contain blanks.",null,"Identificador del cuestionario no puede contener blancos."]
["Identifiers:",null,"Identificadores:"]
["Invalid code",null,"Código invalido"]
["Text too long",null,"Texto demasiado largo"]
["Move up",null,"Subir"]
["Move down",null,"Bajar"]
["Options…",null,"Opciones…"]
["Options for variable",null,"Opciones para la variable"]
["Address:",null,"Dirección:"]
["Data entry range",null,"Rango de entrada de datos"]
["Number of identifiers",null,"Cantidad de identificadores"]
["Number of records",null,"Cantidad de registros"]
["Enter the number of identifiers for the Record Type:",null,"Ingrese la cantidad de identificadores para la Clase de Registro:"]
["Enter the number of records for the Record Type:",null,"Ingrese la cantidad de registros para la Clase de Registro:"]
["Identifiers",null,"Identificadores"]
["Records",null,"Registros"]
["&Open",null,"&Abrir"]
["Open an existent questionnaire",null,"Abrir un cuestionario existente"]
["&Save",null,"&Guardar"]
["Save the current questionnaire",null,"Guardar el cuestionario actual"]
["This file contains invalid records.",null,"Este archivo contiene registros inválidos."]
["Edit…",null,"Editar…"]
["Record Types:",null,"Clases de Registro:"]
["Variables:",null,"Variables:"]
["Allow blanks",null,"Permitir blancos"]
["Data folder not found.",null,"No se encontró la carpeta de datos."]
["Data folder does not exist. Do you wish to create it?",null,"Carpeta de datos no existe. ¿Desea crearla?"]
["Data folder could not be created. Specify the complete path.",null,"Carpeta de datos no pudo ser creada. Especifique la ruta completa."]
["Invalid folder name.",null,"Nombre de carpeta inválido."]
["Data folder",null,"Carpeta de datos"]
["Enter the complete name of the folder where you want to store the data:",null,"Ingrese el nombre completo de la carpeta donde desea guardar los datos:"]
["Data entry program configuration",null,"Configuración del programa de entrada de datos"]
["Data",null,"Datos"]
["Data structure parameters (Ctrl+Shift+T)",null,"Parámetros de la estructura de datos (Ctrl+Shift+T)"]
["Questionnaire identification has not been defined.",null,"No se ha definido un identificador del cuestionario."]
["Main Record Type",null,"Clase de Registro principal"]
["The main Record Type contains the variables that will identify each questionnaire.",null,"La Clase de Registro principal contiene las variables que identificarán a cada cuestionario."]
["Edit Record Type",null,"Editar Clase de Registro"]
["A Record Type with more than one record must have at least one identifier.",null,"Una Clase de Registro con más de un registro debe tener al menos un identificador."]
["Questionnaire import",null,"Importación de cuestionario"]
["Choose the Excel workbook that contains the questionnaire sheets:",null,"Escoja el libro Excel que contiene las hojas del cuestionario:"]
["Code cannot be null.",null,"El código no puede ser nulo."]
["Name cannot be blank.",null,"El nombre no puede estar en blanco."]
["Address cannot be blank.",null,"La dirección no puede estar en blanco."]
["The questionnaire belongs to a LSD data entry program. Do you wish to import the variable definition dictionary as well?",null,"El cuestionario pertenece a un programa de entrada de datos LSD. ¿Desea importar además el diccionario de definición de variables?"]
["Data structure parameters",null,"Parámetros de la estructura de datos"]
["Identification",null,"Identificación"]
["The identification of each questionnaire is a combination of constant characters and variables in the main Record Type. Use Visual Basic syntax to define an ID string.",null,"La identificación de cada cuestionario es una combinación de caracteres constantes y de variables en la Clase de Registro principal. Use sintaxis Visual Basic para definir una cadena de ID."]
["Variables in the main RT:",null,"Variables en la CR principal:"]
["ID string:",null,"Cadena de ID:"]
["Hints: You may help yourself by adding variables from the list. You can also use path separators (\"\\\") to define subfolders relative to the root data folder.",null,"Pistas: Puede ayudarse agregando variables desde la lista. Puede también usar separadores de ruta (\"\\\") para definir subcarpetas relativas a la carpeta de datos raíz."]
["Peep",null,"Sapo"]
["View the internal dictionary (only for advanced users) (Ctrl+Shift+W)",null,"Ver el diccionario interno (sólo para usuarios avanzados) (Ctrl+Shift+W)"]
["A Record Type with only one record does not need identifiers.",null,"Una Clase de Registro con un sólo registro no necesita identificadores."]
["NOM",null,"NOM"]
["Show the nomenclature for a variable (Ctrl+Shift+N)",null,"Mostrar la nomenclatura para una variable (Ctrl+Shift+N)"]
["Record",null,"Registro"]
["Checking",null,"Chequeando"]
["Generating messages…",null,"Generando mensajes…"]
["Checking inter records…",null,"Chequeando entre registros…"]
["&Messages",null,"&Mensajes"]
["Show the list of check results (Ctrl+Shift+M)",null,"Mostrar la lista de resultados del chequeo (Ctrl+Shift+M)"]
["No messages",null,"No hay mensajes"]
["&New",null,"&Nuevo"]
["Create a new questionnaire",null,"Crear un nuevo cuestionario"]
["External",null,"Externa"]
["Smart copy",null,"Smart copy"]
["VB Intra",null,"VB Intra"]
["Show the Visual Basic for Applications Intra-Record checks module (Ctrl+Shift+A)",null,"Mostrar el módulo para chequeos Intra-Registros en Visual Basic for Applications (Ctrl+Shift+A)"]
["VB Inter",null,"VB Inter"]
["Show the Visual Basic for Applications Inter-Record checks module (Ctrl+Shift+E)",null,"Mostrar el módulo para chequeos Inter-Registros en Visual Basic for Applications (Ctrl+Shift+E)"]
["Select the range that contains the categories you want to copy:",null,"Seleccione el rango que contiene las categorías que desea copiar:"]
["Select the range for the variable:",null,"Seleccione el rango para la variable:"]
["Address",null,"Address"]
["External…",null,"Externa…"]
["External sheet",null,"Hoja externa"]
["Select the sheet that contains the external data:",null,"Seleccione la hoja que contiene los datos externos:"]
["New…",null,"Nueva…"]
["Enter the name of the new external sheet:",null,"Ingrese el nombre de la nueva hoja externa:"]
["No external data",null,"Sin datos externos"]
["External data on sheet",null,"Datos externos en la hoja"]
["Do you want to save the questionnaire data?",null,"¿Desea guardar los datos del cuestionario?"]
["Reorganize",null,"Reorganizar"]
["Reorganize data files into thematic files (Ctrl+Shift+O)",null,"Reorganizar los archivos de datos en archivos temáticos (Ctrl+Shift+O)"]
["Import",null,"Importar"]
["Import data files into Excel (Ctrl+Shift+X)",null,"Importar los archivos de datos hacia Excel (Ctrl+Shift+X)"]
["dBase",null,"dBase"]
["Generate .dbf data files",null,"Generar archivos de datos .dbf"]
["Ariel",null,"Ariel"]
["Generate .ari structure files",null,"Generar archivos de structura .ari"]
["Stata",null,"Stata"]
["Generate .do and .dct structure files",null,"Generar archivos de structura .do y .dct"]
["SPSS",null,"SPSS"]
["Generate .sps structure files",null,"Generar archivos de structura .sps"]
["SAS",null,"SAS"]
["Generate .sas structure files",null,"Generar archivos de structura .sas"]
["Databases",null,"Bases de datos"]
["Duplicate category code. Please check and retry.",null,"Código de categoría duplicado. Por favor verifique y reintente."]
["A questionnaire with this number is already saved. Do you wish to overwrite it?",null,"Un cuestionario con este número ya está guardado. ¿Desea sobreescribirlo?"]
["Variable",null,"Variable"]
["is out of range.",null,"está fuera de rango."]
["Re&fresh",null,"Actuali&zar"]
["Active sheet",null,"Hoja activa"]
[]
["All sheets",null,"Todas las hojas"]
["The first character must be a letter",null,"El primer caracter debe ser una letra."]
["The name must contain only letters, numbers, and underscores",null,"El nombre sólo puede contener letras, números o caracteres de subrayado."]
["LSD prefix is reserved.",null,"El prefijo LSD está reservado."]
[": reserved keyword.",null,": palabra reservada."]
["Intramessage",null,"Intramessage"]
["must contain at least one variable",null,"debe contener al menos una variable."]
["cannot be a String",null,"no puede ser un String"]
["Intermessage ",null," Intermessage "]
["Please close all other workbooks before running LSD_TemplateCreation",null,"Por favor, cierre todos los otros libros antes de ejecutar LSD_TemplateCreation"]
["Do you want to save changes?",null,"¿Desea guardar los cambios?"]
["Duplicate Name: ",null,"Nombre repetido: "]
[" is the questionnaire identifier . ",null," es el identificador del cuestionario. "]
[" Do you want continue?",null," ¿Desea continuar?"]
["Are you sure you want to delete a complete Record Type?",null,"¿Está seguro que desea borrar una Clase de Registo completa?"]
["The parameter is incorrect",null,"El parámetro es incorrecto"]
["Backup",null,"Respaldo"]
["Backup",null,"Respaldar"]
["Produce a backup copy of the database",null,"Producir una copia de respaldo de la base de datos"]
["Restore",null,"Restaurar"]
["Restore the database from a previous backup",null,"Restaurar la base de datos desde un respaldo previo"]
["A new backup with",null,"Se ha creado un nuevo respaldo con"]
["files has been created",null,"archivos"]
["Are you sure you want to restore from a backup made on",null,"¿Seguro que quiere restaurar a partir de un respaldo hecho el"]
["JanFebMarAprMayJunJulAugSepOctNovDec",null,"EneFebMarAbrMayJunJulAgoSepOctNovDic"]
["at",null,"a las"]
["Work done after that will be lost!",null,"¡El trabajo posterior se perderá!"]
["Do you want to backup again, before restoring?",null,"¿Quiere hacer otro respaldo antes de restaurar?"]
[null,null,"Se han restaurado"]
["files have been restored.",null,"archivos"]
["Each machine in this project must have a different number.",null,"Cada máquina de este proyecto debe tener un número distinto."]
["Enter this mahine's number (from 0000 to 9999):",null,"Ingrese el número de esta máquina (de 0000 a 9999):"]
[]
["LIST OF PROBLEMS IN QUESTIONNAIRE",null,"LISTA DE PROBLEMAS EN EL CUESTIONARIO"]
["Back to questionnaire",null,"Volver al cuestionario"]
[]
[]
[]
[]
[]
[]
[]
[]
[]
[]
[]
[]
[]
[]
[]
[]
[]
[]
[]
[]
[]
[]
[]
[]
[]
[]
[]
[]
[]
[]
[]
[]
[]
[]
[]
[]
[]
[]
[]
[]
[]
[]
[]
[]
[]
[]
[]
[]
[]
[]
[]
[]
[]
[]
[]
[]
[]
[]
[]
[]
[]
[]
[]
[]
[]
[]
[]
[]
[]
[]
[]
[]
[]
[]
[]
[]
[]
[]
[]
[]
[]
[]
[]
[]
[]
[]
[]
[]
[]
[]
[]
[]
[]
[]
[]
[]
[]
[]
[]
[]
[]
[]
[]
[]
[]
[]
[]
[]
[]
[]
[]
[]
[]
[]
[]
[]
[]
[]
[]
[]
[]
[]
[]
[]
[]
[]
[]
[]
[]
[]
[]
[]
[]
[]
[]
[]
[]
[]
[]
[]
[]
[]
[]
[]
[]
[]
[]
[]
[]
[]
[]
[]
[]
[]
[]
[]
[]
[]
[]
[]
[]
[]
[]
[]
[]
[]
[]
[]
[]
[]
[]
[]
[]
[]
[]
[]
[]
[]
[]
[]
[]
[]
[]
[]
[]
[]
[]
[]
[]
[]
[]
[]
[]
[]
[]
[]
[]
[]
[]
[]
[]
[]
[]
[]
[]
[]
[]
[]
[]
[]
[]
[]
[]
[]
[]
[]
[]
[]
[]
[]
[]
[]
[]
[]
[]
[]
[]
[]
[]
[]
[]
[]
[]
[]
[]
[]
[]
[]
[]
[]
[]
[]
[]
[]
[]
[]
[]
[]
[]
[]
[]
[]
[]
[]
[]
[]
[]
[]
[]
[]
[]
[]
[]
[]
[]
[]
[]
[]
[]
[]
[]
[]
[]
[]
[]
[]
[]
[]
[]
[]
[]
[]
[]
[]
[]
[]
[]
[]
[]
[]
[]
[]
[]
[]
[]
[]
[]
[]
[]
[]
[]
[]
[]
[]
[]
[]
[]
[]
[]
[]
[]
[]
[]
[]
[]
[]
[]
[]
[]
[]
[]
[]
[]
[]
[]
[]
[]
[]
[]
[]
[]
[]
[]
[]
[]
[]
[]
[]
[]
[]
[]
[]
[]
[]
[]
[]
[]
[]
[]
[]
[]
[]
[]
[]
[]
[]
[]
[]
[]
[]
[]
[]
[]
[]
[]
[]
[]
[]
[]
[]
[]
[]
[]
[]
[]
[]
[]
[]
[]
[]
[]
[]
[]
[]
[]
[]
[]
[]
[]
[]
[]
[]
[]
[]
[]
[]
[]
[]
[]
[]
[]
[]
[]
[]
[]
[]
[]
[]
[]
[]
[]
[]
[]
[]
[]
[]
[]
[]
[]
[]
[]
[]
[]
[]
[]
[]
[]
[]
[]
[]
[]
[]
[]
[]
[]
[]
[]
[]
[]
[]
[]
[]
[]
[]
[]
[]
[]
[]
[]
[]
[]
[]
[]
[]
[]
[]
[]
[]
[]
[]
[]
[]
[]
[]
[]
[]
[]
[]
[]
[]
[]
[]
[]
[]
[]
[]
[]
[]
[]
[]
[]
[]
[]
[]
[]
[]
[]
[]
[]
[]
[]
[]
[]
[]
[]
[]
[]
[]
[]
[]
[]
[]
[]
[]
[]
[]
[]
[]
[]
[]
[]
[]
[]
[]
[]
[]
[]
[]
[]
[]
[]
[]
[]
[]
[]
[]
[]
[]
[]
[]
[]
[]
[]
[]
[]
[]
[]
[]
[]
[]
[]
[]
[]
[]
[]
[]
[]
[]
[]
[]
[]
[]
[]
[]
[]
[]
[]
[]
[]
[]
[]
[]
[]
[]
[]
[]
[]
[]
[]
[]
[]
[]
[]
[]
[]
[]
[]
[]
[]
[]
[]
[]
[]
[]
[]
[]
[]
[]
[]
[]
[]
[]
[]
[]
[]
[]
[]
[]
[]
[]
[]
[]
[]
[]
[]
[]
[]
[]
[]
[]
[]
[]
[]
[]
[]
[]
[]
[]
[]
[]
[]
[]
[]
[]
[]
[]
[]
[]
[]
[]
[]
[]
[]
[]
[]
[]
[]
[]
[]
[]
[]
[]
[]
[]
[]
[]
[]
[]
[]
[]
[]
[]
[]
[]
[]
[]
[]
[]
[]
[]
[]
[]
[]
[]
[]
[]
[]
[]
[]
[]
[]
[]
[]
[]
[]
[]
[]
[]
[]
[]
[]
[]
[]
[]
[]
[]
[]
[]
[]
[]
[]
[]
[]
[]
["Number of records does not match.",null,"Cantidad de registros no coincide."]
["Invalid date format.",null,"Formato de fecha inválido."]
["Date does not exist.",null,"Fecha no existe."]
["Method not available.",null,"El método no está disponible."]
["Variable with this name does not exist:",null,"No existe una variable con este nombre:"]
["Address syntax error.",null,"Error de sintaxis en la dirección."]
["Property is read-only.",null,"Propiedad es de lectura solamente."]
["Code cannot be blank.",null,"Código no puede estar en blanco."]
[]
[]
[]
[]
[]
[]
[]
[]
[]
[]
[]
[]
[]
[]
[]
[]
[]
[]
[]
[]
[]
[]
[]
[]
[]
[]
[]
[]
[]
[]
[]
[]
[]
[]
[]
[]
[]
[]
[]
[]
[]
[]
[]
[]
[]
[]
[]
[]
[]
[]
[]
[]
[]
[]
[]
[]
[]
[]
[]
[]
[]
[]
[]
[]
[]
[]
[]
[]
[]
[]
[]
[]
[]
[]
[]
[]
[]
[]
[]
[]
[]
[]
[]
[]
[]
[]
[]
[]
[]
[]
[]
[]
[]
[]
[]
[]
[]
[]
[]
[]
[]
[]
[]
[]
[]
[]
[]
[]
[]
[]
[]
[]
[]
[]
[]
[]
[]
[]
[]
[]
[]
[]
[]
[]
[]
[]
[]
[]
[]
[]
[]
[]
[]
[]
[]
[]
[]
[]
[]
[]
[]
[]
[]
[]
[]
[]
[]
[]
[]
[]
[]
[]
[]
[]
[]
[]
[]
[]
[]
[]
[]
[]
[]
[]
[]
[]
[]
[]
[]
[]
[]
[]
[]
[]
[]
[]
[]
[]
[]
[]
[]
[]
[]
[]
[]
[]
[]
[]
[]
[]
[]
[]
[]
[]
[]
[]
[]
[]
[]
[]
[]
[]
[]
[]
[]
[]
[]
[]
[]
[]
[]
[]
[]
[]
[]
[]
[]
[]
[]
[]
[]
[]
[]
[]
[]
[]
[]
[]
[]
[]
[]
[]
[]
[]
[]
[]
[]
[]
[]
[]
[]
[]
[]
[]
[]
[]
[]
[]
[]
[]
[]
[]
[]
[]
[]
[]
[]
[]
[]
[]
[]
[]
[]
[]
[]
[]
[]
[]
[]
[]
[]
[]
[]
[]
[]
[]
[]
[]
[]
[]
[]
[]
[]
[]
[]
[]
[]
[]
[]
[]
[]
[]
[]
[]
[]
[]
[]
[]
[]
[]
[]
[]
[]
[]
[]
[]
[]
[]
[]
[]
[]
[]
[]
[]
[]
[]
[]
[]
[]
[]
[]
[]
[]
[]
[]
[]
[]
[]
[]
[]
[]
[]
[]
[]
[]
[]
[]
[]
[]
[]
[]
[]
[]
[]
[]
[]
[]
[]
[]
[]
[]
[]
[]
[]
[]
[]
[]
[]
[]
[]
[]
[]
[]
[]
[]
[]
[]
[]
[]
[]
[]
[]
[]
[]
[]
[]
[]
[]
[]
[]
[]
[]
[]
[]
[]
[]
[]
[]
[]
[]
[]
[]
[]
[]
[]
[]
[]
[]
[]
[]
[]
[]
[]
[]
[]
[]
[]
[]
[]
[]
[]
[]
[]
[]
[]
[]
[]
[]
[]
[]
[]
[]
[]
[]
[]
[]
[]
[]
[]
[]
[]
[]
[]
[]
[]
[]
[]
[]
[]
[]
[]
[]
[]
[]
[]
[]
[]
[]
[]
[]
[]
[]
[]
[]
[]
[]
[]
[]
[]
[]
[]
[]
[]
[]
[]
[]
[]
[]
[]
[]
[]
[]
[]
[]
[]
[]
[]
[]
[]
[]
[]
[]
[]
[]
[]
[]
[]
[]
[]
[]
[]
[]
[]
[]
[]
[]
[]
[]
[]
[]
[]
[]
[]
[]
[]
[]
[]
[]
[]
[]
[]
[]
[]
[]
[]
[]
[]
[]
[]
[]
[]
[]
[]
[]
[]
[]
[]
[]
[]
[]
[]
[]
[]
[]
[]
[]
[]
[]
[]
[]
[]
[]
[]
[]
[]
[]
[]
[]
[]
[]
[]
[]
[]
[]
[]
[]
[]
[]
[]
[]
[]
[]
[]
[]
[]
[]
[]
[]
[]
[]
[]
[]
[]
[]
[]
[]
[]
[]
[]
[]
[]
[]
[]
[]
[]
[]
[]
[]
[]
[]
[]
[]
[]
[]
[]
[]
[]
[]
[]
[]
[]
[]
[]
[]
[]
[]
[]
[]
[]
[]
[]
[]
[]
[]
[]
[]
[]
[]
[]
[]
[]
[]
[]
[]
[]
[]
[]
[]
[]
[]
[]
[]
[]
[]
[]
[]
[]
[]
[]
[]
[]
[]
[]
[]
[]
[]
[]
[]
[]
[]
[]
[]
[]
[]
[]
[]
[]
[]
[]
[]
[]
[]
[]
[]
[]
[]
[]
[]
[]
[]
[]
[]
[]
[]
[]
[]
[]
[]
[]
[]
[]
[]
[]
[]
[]
[]
[]
[]
[]
[]
[]
[]
[]
[]
[]
[]
[]
[]
[]
[]
[]
[]
[]
[]
[]
[]
[]
[]
[]
[]
[]
[]
[]
[]
[]
[]
[]
[]
[]
[]
[]
[]
[]
[]
[]
[]
[]
[]
[]
[]
[]
[]
[]
[]
[]
[]
[]
[]
[]
[]
[]
[]
[]
[]
[]
[]
[]
[]
[]
[]
[]
[]
[]
[]
[]
[]
[]
[]
[]
[]
[]
[]
[]
[]
[]
[]
[]
[]
[]
[]
[]
[]
[]
[]
[]
[]
[]
[]
[]
[]
[]
[]
[]
[]
[]
[]
[]
[]
[]
[]
[]
[]
[]
[]
[]
[]
[]
[]
[]
[]
[]
[]
[]
[]
[]
[]
[]
[]
[]
[]
[]
[]
[]
[]
[]
[]
[]
[]
[]
[]
[]
[]
[]
[]
[]
[]
[]
[]
[]
[]
[]
[]
[]
[]
[]
[]
[]
[]
[]
[]
[]
[]
[]
[]
[]
[]
[]
[]
[]
[]
[]
[]
[]
[]
[]
[]
[]
[]
[]
[]
[]
[]
[]
[]
[]
[]
[]
[]
[]
[]
[]
[]
[]
[]
[]
[]
[]
[]
[]
[]
[]
[]
[]
[]
[]
[]
[]
[]
[]
[]
[]
[]
[]
[]
[]
[]
[]
[]
[]
[]
[]
[]
[]
[]
[]
[]
[]
[]
[]
[]
[]
[]
[]
[]
[]
[]
[]
[]
[]
[]
[]
[]
[]
[]
[]
[]
[]
[]
[]
[]
[]
[]
[]
[]
[]
[]
[]
[]
[]
[]
[]
[]
[]
[]
[]
[]
[]
[]
[]
[]
[]
[]
[]
[]
[]
[]
[]
[]
[]
[]
[]
[]
[]
[]
[]
[]
[]
[]
[]
[]
[]
[]
[]
[]
[]
[]
[]
[]
[]
[]
[]
[]
[]
[]
[]
[]
[]
[]
[]
[]
[]
[]
["System Message",null,"Mensaje de sistema"]
["Critical Error",null,"Error crítico"]
["Inconsistency",null,"Inconsistencia"]
["Warning",null,"Advertencia"]
[]
[]
[]
[]
[]
[]
[]
[]
[]
[]
[]
[]
[]
[]
[]
[]
[]
[]
[]
[]
[]
[]
[]
[]
[]
[]
[]
[]
[]
[]
[]
[]
[]
[]
[]
[]
[]
[]
[]
[]
[]
[]
[]
[]
[]
[]
[]
[]
[]
[]
[]
[]
[]
[]
[]
[]
[]
[]
[]
[]
[]
[]
[]
[]
[]
[]
[]
[]
[]
[]
[]
[]
[]
[]
[]
[]
[]
[]
[]
[]
[]
[]
[]
[]
[]
[]
[]
[]
[]
[]
[]
[]
[]
[]
[]
[]
[]
[]
[]
[]
[]
[]
[]
[]
[]
[]
[]
[]
[]
[]
[]
[]
[]
[]
[]
[]
[]
[]
[]
[]
[]
[]
[]
[]
[]
[]
[]
[]
[]
[]
[]
[]
[]
[]
[]
[]
[]
[]
[]
[]
[]
[]
[]
[]
[]
[]
[]
[]
[]
[]
[]
[]
[]
[]
[]
[]
[]
[]
[]
[]
[]
[]
[]
[]
[]
[]
[]
[]
[]
[]
[]
[]
[]
[]
[]
[]
[]
[]
[]
[]
[]
[]
[]
[]
[]
[]
[]
[]
[]
[]
[]
[]
[]
[]
[]
[]
[]
[]
[]
[]
[]
[]
[]
[]
[]
[]
[]
[]
[]
[]
[]
[]
[]
[]
[]
[]
[]
[]
[]
[]
[]
[]
[]
[]
[]
[]
[]
[]
[]
[]
[]
[]
[]
[]
[]
[]
[]
[]
[]
[]
[]
[]
[]
[]
[]
[]
[]
[]
[]
[]
[]
[]
[]
[]
[]
[]
[]
[]
[]
[]
[]
[]
[]
[]
[]
[]
[]
[]
[]
[]
[]
[]
[]
[]
[]
[]
[]
[]
[]
[]
[]
[]
[]
[]
[]
[]
[]
[]
[]
[]
[]
[]
[]
[]
[]
[]
[]
[]
[]
[]
[]
[]
[]
[]
[]
[]
[]
[]
[]
[]
[]
[]
[]
[]
[]
[]
[]
[]
[]
[]
[]
[]
[]
[]
[]
[]
[]
[]
[]
[]
[]
[]
[]
[]
[]
[]
[]
[]
[]
[]
[]
[]
[]
[]
[]
[]
[]
[]
[]
[]
[]
[]
[]
[]
[]
[]
[]
[]
[]
[]
[]
[]
[]
[]
[]
[]
[]
[]
[]
[]
[]
[]
[]
[]
[]
[]
[]
[]
[]
[]
[]
[]
[]
[]
[]
[]
[]
[]
[]
[]
[]
[]
[]
[]
[]
[]
[]
[]
[]
[]
[]
[]
[]
[]
[]
[]
[]
[]
[]
[]
[]
[]
[]
[]
[]
[]
[]
[]
[]
[]
[]
[]
[]
[]
[]
[]
[]
[]
[]
[]
[]
[]
[]
[]
[]
[]
[]
[]
[]
[]
[]
[]
[]
[]
[]
[]
[]
[]
[]
[]
[]
[]
[]
[]
[]
[]
[]
[]
[]
[]
[]
[]
[]
[]
[]
[]
[]
[]
[]
[]
[]
[]
[]
[]
[]
[]
[]
[]
[]
[]
[]
[]
[]
[]
[]
[]
[]
[]
[]
[]
[]
[]
[]
[]
[]
[]
[]
[]
[]
[]
[]
[]
[]
[]
[]
[]
[]
[]
[]
[]
[]
[]
[]
[]
[]
[]
[]
[]
[]
[]
[]
[]
[]
[]
[]
[]
[]
[]
[]
[]
[]
[]
[]
[]
[]
[]
[]
[]
[]
[]
[]
[]
[]
[]
[]
[]
[]
[]
[]
[]
[]
[]
[]
[]
[]
[]
[]
[]
[]
[]
[]
[]
[]
[]
[]
[]
[]
[]
[]
[]
[]
[]
[]
[]
[]
[]
[]
[]
[]
[]
[]
[]
[]
[]
[]
[]
[]
[]
[]
[]
[]
[]
[]
[]
[]
[]
[]
[]
[]
[]
[]
[]
[]
[]
[]
[]
[]
[]
[]
[]
[]
[]
[]
[]
[]
[]
[]
[]
[]
[]
[]
[]
[]
[]
[]
[]
[]
[]
[]
[]
[]
[]
[]
[]
[]
[]
[]
[]
[]
[]
[]
[]
[]
[]
[]
[]
[]
[]
[]
[]
[]
[]
[]
[]
[]
[]
[]
[]
[]
[]
[]
[]
[]
[]
[]
[]
[]
[]
[]
[]
[]
[]
[]
[]
[]
[]
[]
[]
[]
[]
[]
[]
[]
[]
[]
[]
[]
[]
[]
[]
[]
[]
[]
[]
[]
[]
[]
[]
[]
[]
[]
[]
[]
[]
[]
[]
[]
[]
[]
[]
[]
[]
[]
[]
[]
[]
[]
[]
[]
[]
[]
[]
[]
[]
[]
[]
[]
[]
[]
[]
[]
[]
[]
[]
[]
[]
[]
[]
[]
[]
[]
[]
[]
[]
[]
[]
[]
[]
[]
[]
[]
[]
[]
[]
[]
[]
[]
[]
[]
[]
[]
[]
[]
[]
[]
[]
[]
[]
[]
[]
[]
[]
[]
[]
[]
[]
[]
[]
[]
[]
[]
[]
[]
[]
[]
[]
[]
[]
[]
[]
[]
[]
[]
[]
[]
[]
[]
[]
[]
[]
[]
[]
[]
[]
[]
[]
[]
[]
[]
[]
[]
[]
[]
[]
[]
[]
[]
[]
[]
[]
[]
[]
[]
[]
[]
[]
[]
[]
[]
[]
[]
[]
[]
[]
[]
[]
[]
[]
[]
[]
[]
[]
[]
[]
[]
[]
[]
[]
[]
[]
[]
[]
[]
[]
[]
[]
[]
[]
[]
[]
[]
[]
[]
[]
[]
[]
[]
[]
[]
[]
[]
[]
[]
[]
[]
[]
[]
[]
[]
[]
[]
[]
[]
[]
[]
[]
[]
[]
[]
[]
[]
[]
[]
[]
[]
[]
[]
[]
[]
[]
[]
[]
[]
[]
[]
[]
[]
[]
[]
[]
[]
[]
[]
[]
[]
[]
[]
[]
[]
[]
[]
[]
[]
[]
[]
[]
[]
[]
[]
[]
[]
[]
[]
[]
[]
[]
[]
[]
[]
[]
[]
[]
[]
[]
[]
[]
[]
[]
[]
[]
[]
[]
[]
[]
[]
[]
[]
[]
[]
[]
[]
[]
[]
[]
[]
[]
[]
[]
[]
[]
[]
[]
[]
[]
[]
[]
[]
[]
[]
[]
[]
[]
[]
[]
[]
[]
[]
[]
[]
[]
[]
[]
[]
[]
[]
[]
["must be a number",null,"debe ser un número"]
["and",null,"y"]
["must be TRUE or FALSE",null,"debe ser VERDADERO o FALSO"]
["Number of Record Types",null,"La cantidad de Clases de Registro"]
["The code of a Record Type",null,"El código de una Clase de Registro"]
["Number of identifiers",null,"La cantidad de identificadores"]
["Number of records",null,"La cantidad de registros"]
["Number of variables",null,"La cantidad de variables"]
["Allow blanks",null,"Permitir blancos"]
["Preprinted",null,"Preimpresa"]
["Variable type",null,"El tipo"]
["Length",null,"El largo"]
["Number of decimals",null,"La cantidad de decimales"]
["between",null,"entre"]
["Minimum",null,"El mínimo"]
["Maximum",null,"El máximo"]
["Number of minimums and maximums must be the same.",null,"La cantidad de mínimos y máximos debe ser igual."]
["Number of category codes and descriptions must be the same.",null,"La cantidad de códigos y descripciones de categorías debe ser igual."]
["Number of areas must be the same.",null,"La cantidad de áreas debe ser igual."]
["Sheet with this name does not exist.",null,"No existe una hoja con este nombre."]
["Row",null,"Fila"]
["Column",null,"Columna"]
["Number of rows",null,"Cantidad de filas"]
["Number of skips must be the same.",null,"La cantidad de saltos debe ser igual."]
["Address syntax is not valid.",null,"Sintaxis de dirección no es válida."]
["Length of category codes and variable must be the same",null,"El largo de la categoría debe ser igual al de la variable"]
[]
[]
[]
[]
[]
[]
[]
[]
[]
[]
[]
[]
[]
[]
[]
[]
[]
[]
[]
[]
[]
[]
[]
[]
[]
[]
[]
[]
[]
[]
[]
[]
[]
[]
[]
[]
[]
[]
[]
[]
[]
[]
[]
[]
[]
[]
[]
[]
[]
[]
[]
[]
[]
[]
[]
[]
[]
[]
[]
[]
[]
[]
[]
[]
[]
[]
[]
[]
[]
[]
[]
[]
[]
[]
[]
[]
[]
[]
[]
[]
[]
[]
[]
[]
[]
[]
[]
[]
[]
[]
[]
[]
[]
[]
[]
[]
[]
[]
[]
[]
[]
[]
[]
[]
[]
[]
[]
[]
[]
[]
[]
[]
[]
[]
[]
[]
[]
[]
[]
[]
[]
[]
[]
[]
[]
[]
[]
[]
[]
[]
[]
[]
[]
[]
[]
[]
[]
[]
[]
[]
[]
[]
[]
[]
[]
[]
[]
[]
[]
[]
[]
[]
[]
[]
[]
[]
[]
[]
[]
[]
[]
[]
[]
[]
[]
[]
[]
[]
[]
[]
[]
[]
[]
[]
[]
[]
[]
[]
[]
[]
[]
[]
[]
[]
[]
[]
[]
[]
[]
[]
[]
[]
[]
[]
[]
[]
[]
[]
[]
[]
[]
[]
[]
[]
[]
[]
[]
[]
[]
[]
[]
[]
[]
[]
[]
[]
[]
[]
[]
[]
[]
[]
[]
[]
[]
[]
[]
[]
[]
[]
[]
[]
[]
[]
[]
[]
[]
[]
[]
[]
[]
[]
[]
[]
[]
[]
[]
[]
[]
[]
[]
[]
[]
[]
[]
[]
[]
[]
[]
[]
[]
[]
[]
[]
[]
[]
[]
[]
[]
[]
[]
[]
[]
[]
[]
[]
[]
[]
[]
[]
[]
[]
[]
[]
[]
[]
[]
[]
[]
[]
[]
[]
[]
[]
[]
[]
[]
[]
[]
[]
[]
[]
[]
[]
[]
[]
[]
[]
[]
[]
[]
[]
[]
[]
[]
[]
[]
[]
[]
[]
[]
[]
[]
[]
[]
[]
[]
[]
[]
[]
[]
[]
[]
[]
[]
[]
[]
[]
[]
[]
[]
[]
[]
[]
[]
[]
[]
[]
[]
[]
[]
[]
[]
[]
[]
[]
[]
[]
[]
[]
[]
[]
[]
[]
[]
[]
[]
[]
[]
[]
[]
[]
[]
[]
[]
[]
[]
[]
[]
[]
[]
[]
[]
[]
[]
[]
[]
[]
[]
[]
[]
[]
[]
[]
[]
[]
[]
[]
[]
[]
[]
[]
[]
[]
[]
[]
[]
[]
[]
[]
[]
[]
[]
[]
[]
[]
[]
[]
[]
[]
[]
[]
[]
[]
[]
[]
[]
[]
[]
[]
[]
[]
[]
[]
[]
[]
[]
[]
[]
[]
[]
[]
[]
[]
[]
[]
[]
[]
[]
[]
[]
[]
[]
[]
[]
[]
[]
[]
[]
[]
[]
[]
[]
[]
[]
[]
[]
[]
[]
[]
[]
[]
[]
[]
[]
[]
[]
[]
[]
[]
[]
[]
[]
[]
[]
[]
[]
[]
[]
[]
[]
[]
[]
[]
[]
[]
[]
[]
[]
[]
[]
[]
[]
[]
[]
[]
[]
[]
[]
[]
[]
[]
[]
[]
[]
[]
[]
[]
[]
[]
[]
[]
[]
[]
[]
[]
[]
[]
[]
[]
[]
[]
[]
[]
[]
[]
[]
[]
[]
[]
[]
[]
[]
[]
[]
[]
[]
[]
[]
[]
[]
[]
[]
[]
[]
[]
[]
[]
[]
[]
[]
[]
[]
[]
[]
[]
[]
[]
[]
[]
[]
[]
[]
[]
[]
[]
[]
[]
[]
[]
[]
[]
[]
[]
[]
[]
[]
[]
[]
[]
[]
[]
[]
[]
[]
[]
[]
[]
[]
[]
[]
[]
[]
[]
[]
[]
[]
[]
[]
[]
[]
[]
[]
[]
[]
[]
[]
[]
[]
[]
[]
[]
[]
[]
[]
[]
[]
[]
[]
[]
[]
[]
[]
[]
[]
[]
[]
[]
[]
[]
[]
[]
[]
[]
[]
[]
[]
[]
[]
[]
[]
[]
[]
[]
[]
[]
[]
[]
[]
[]
[]
[]
[]
[]
[]
[]
[]
[]
[]
[]
[]
[]
[]
[]
[]
[]
[]
[]
[]
[]
[]
[]
[]
[]
[]
[]
[]
[]
[]
[]
[]
[]
[]
[]
[]
[]
[]
[]
[]
[]
[]
[]
[]
[]
[]
[]
[]
[]
[]
[]
[]
[]
[]
[]
[]
[]
[]
[]
[]
[]
[]
[]
[]
[]
[]
[]
[]
[]
[]
[]
[]
[]
[]
[]
[]
[]
[]
[]
[]
[]
[]
[]
[]
[]
[]
[]
[]
[]
[]
[]
[]
[]
[]
[]
[]
[]
[]
[]
[]
[]
[]
[]
[]
[]
[]
[]
[]
[]
[]
[]
[]
[]
[]
[]
[]
[]
[]
[]
[]
[]
[]
[]
[]
[]
[]
[]
[]
[]
[]
[]
[]
[]
[]
[]
[]
[]
[]
[]
[]
[]
[]
[]
[]
[]
[]
[]
[]
[]
[]
[]
[]
[]
[]
[]
[]
[]
[]
[]
[]
[]
[]
[]
[]
[]
[]
[]
[]
[]
[]
[]
[]
[]
[]
[]
[]
[]
[]
[]
[]
[]
[]
[]
[]
[]
[]
[]
[]
[]
[]
[]
[]
[]
[]
[]
[]
[]
[]
[]
[]
[]
[]
[]
[]
[]
[]
[]
[]
[]
[]
[]
[]
[]
[]
[]
[]
[]
[]
[]
[]
[]
[]
[]
[]
[]
[]
[]
[]
[]
[]
[]
[]
[]
[]
[]
[]
[]
[]
[]
[]
[]
[]
[]
[]
[]
[]
[]
[]
[]
[]
[]
[]
[]
[]
[]
[]
[]
[]
[]
[]
[]
[]
[]
[]
[]
[]
[]
[]
[]
[]
[]
[]
[]
[]
[]
[]
[]
[]
[]
[]
[]
[]
[]
[]
[]
[]
[]
[]
[]
[]
[]
[]
[]
[]
[]
[]
[]
[]
[]
[]
[]
[]
[]
[]
[]
[]
[]
[]
[]
[]
[]
[]
[]
[]
[]
["Variable not defined:",null,"La variable no está definida:"]
["This cell currently contains data. ¿Are you sure that you want to insert a black?",null,"Actualmente esta celda contiene datos. ¿Está seguro/a que desea insertar un negro?"]
["Summary",null,"Resumen"]
["Details",null,"Detalles"]
["Filename",null,"Archivo"]
["Messages",null,"Mensajes"]
["Date modified",null,"Fecha modificación"]
["Data entry session",null,"Sesión de digitación"]
["Start date and time",null,"Fecha y hora de inicio"]
["End date and time",null,"Fecha y hora de término"]
["Number of error messages",null,"Cantidad de mensajes de error"]

{"sheet":"Parameters","index":18,"n_rows":57,"n_cols":7,"rows_kept":57,"cut":false,"hidden":true,"merged":[]}
["DATAENTRYCELLBGCOLOR","PRINTEDCELLBGCOLOR","FORCEDCELLBGCOLOR","DATESCREENFORMATS","DATEFILEFORMATS","LANGUAGE","BLACK"]
[null,null,null,"MM-DD-YYYY","MM-DD-YYYY",3,"*"]
[null,null,null,"MM-DD-YYYY hh:mm","MM-DD-YYYY hh:mm"]
[null,null,null,"MM-DD-YYYY hh:mm:ss","MM-DD-YYYY hh:mm:ss"]
[null,null,null,"DD-MM-YYYY","DD-MM-YYYY"]
[null,null,null,"DD-MM-YYYY hh:mm","DD-MM-YYYY hh:mm"]
[null,null,null,"DD-MM-YYYY hh:mm:ss","DD-MM-YYYY hh:mm:ss"]
[null,null,null,"MM-YYYY","MM-YYYY"]
[null,null,null,"MM-DD-YY","MM-DD-YY"]
[null,null,null,"MM-DD-YY hh:mm","MM-DD-YY hh:mm"]
[null,null,null,"MM-DD-YY hh:mm:ss","MM-DD-YY hh:mm:ss"]
[null,null,null,"DD-MM-YY","DD-MM-YY"]
[null,null,null,"DD-MM-YY hh:mm","DD-MM-YY hh:mm"]
[null,null,null,"DD-MM-YY hh:mm:ss","DD-MM-YY hh:mm:ss"]
[null,null,null,"MM-YY","MM-YY"]
[null,null,null,"MM/DD/YYYY","MM/DD/YYYY"]
[null,null,null,"MM/DD/YYYY hh:mm","MM/DD/YYYY hh:mm"]
[null,null,null,"MM/DD/YYYY hh:mm:ss","MM/DD/YYYY hh:mm:ss"]
[null,null,null,"DD/MM/YYYY","DD/MM/YYYY"]
[null,null,null,"DD/MM/YYYY hh:mm","DD/MM/YYYY hh:mm"]
[null,null,null,"DD/MM/YYYY hh:mm:ss","DD/MM/YYYY hh:mm:ss"]
[null,null,null,"MM/YYYY","MM/YYYY"]
[null,null,null,"MM/DD/YY","MM/DD/YY"]
[null,null,null,"MM/DD/YY hh:mm","MM/DD/YY hh:mm"]
[null,null,null,"MM/DD/YY hh:mm:ss","MM/DD/YY hh:mm:ss"]
[null,null,null,"DD/MM/YY","DD/MM/YY"]
[null,null,null,"DD/MM/YY hh:mm","DD/MM/YY hh:mm"]
[null,null,null,"DD/MM/YY hh:mm:ss","DD/MM/YY hh:mm:ss"]
[null,null,null,"MM/YY","MM/YY"]
[null,null,null,null,"MMDDYYYY"]
[null,null,null,null,"MMDDYYYYhhmm"]
[null,null,null,null,"MMDDYYYYhhmmss"]
[null,null,null,null,"DDMMYYYY"]
[null,null,null,null,"DDMMYYYYhhmm"]
[null,null,null,null,"DDMMYYYYhhmmss"]
[null,null,null,null,"MMYYYY"]
[null,null,null,null,"MMDDYY"]
[null,null,null,null,"MMDDYYhhmm"]
[null,null,null,null,"MMDDYYhhmmss"]
[null,null,null,null,"DDMMYY"]
[null,null,null,null,"DDMMYYhhmm"]
[null,null,null,null,"DDMMYYhhmmss"]
[null,null,null,null,"MMYY"]
[null,null,null,null,"YYYYMMDD"]
[null,null,null,null,"YYYYMMDDhhmm"]
[null,null,null,null,"YYYYMMDDhhmmss"]
[null,null,null,null,"YYYYDDMM"]
[null,null,null,null,"YYYYDDMMhhmm"]
[null,null,null,null,"YYYYDDMMhhmmss"]
[null,null,null,null,"YYYYMM"]
[null,null,null,null,"YYMMDD"]
[null,null,null,null,"YYMMDDhhmm"]
[null,null,null,null,"YYMMDDhhmmss"]
[null,null,null,null,"YYDDMM"]
[null,null,null,null,"YYDDMMhhmm"]
[null,null,null,null,"YYDDMMhhmmss"]
[null,null,null,null,"YYMM"]

{"sheet":"Dictionary","index":19,"n_rows":197,"n_cols":19,"rows_kept":197,"cut":false,"hidden":true,"merged":[]}
[null,null,8,null,null,"c:\\PeI_PED\\Salud\\Datos\\",1,"\"S\" & id_est"]
[1,"001: Establecimiento Salud",159,0,1]
["id_est","Identificador Establecimiento",false,false,0,4,0,"1~","200~","Portada~","5~","29~","1~"]
["s00_p01","Nombre del establecimiento",false,false,2,50,0,null,null,"Portada~","5~","11~","1~"]
["s00_p02","Región/Estado",false,false,0,3,0,"0~","999~","Portada~","9~","16~","1~"]
["s00_p03","Provincia",false,false,0,3,0,"0~","999~","Portada~","11~","16~","1~"]
["s00_p04","Municipio",false,false,0,3,0,"0~","999~","Portada~","13~","16~","1~"]
["s00_p05","Localidad",false,false,0,3,0,"0~","999~","Portada~","15~","16~","1~"]
["s00_p06","Zona/Barrio",false,false,2,50,0,null,null,"Portada~","17~","7~","1~"]
["s00_p07","Calle",false,false,2,50,0,null,null,"Portada~","19~","7~","1~"]
["s00_p08","Número",false,false,2,50,0,null,null,"Portada~","21~","7~","1~"]
["s00_p09","Otras referencias",false,false,2,50,0,null,null,"Portada~","23~","8~","1~"]
["s00_p10_g","06: Latitud Geográfica (grados)",false,false,0,2,0,"0~","56~","Portada~","26~","6~","1~"]
["s00_p10_m","06: Latitud Geográfica (minutos)",false,false,0,2,0,"0~","59~","Portada~","26~","9~","1~"]
["s00_p10_s","06: Latitud Geográfica (segundos)",false,false,0,5,2,"0~","59~","Portada~","26~","12~","1~"]
["s00_p11_g","07: Longitud Geográfica (grados)",false,false,0,2,0,"0~","99~","Portada~","28~","6~","1~"]
["s00_p11_m","07: Longitud Geográfica (minutos)",false,false,0,2,0,"0~","59~","Portada~","28~","9~","1~"]
["s00_p11_s","07: Longitud Geográfica (segundos)",false,false,0,5,2,"0~","59~","Portada~","28~","12~","1~"]
["s00_p12","Tipo",false,false,1,1,0,"1~2~3~4~5~6~","HOSPITAL BÁSICO~CLINICA PRIVADA~CENTRO DE SALUD~PUESTO DE SALUD~OPCIÓN 5~OPCIÓN 6~","Portada~","9~","26~","1~"]
["s00_p13","Nombre del director",false,false,2,50,0,null,null,"Portada~","19~","22~","1~"]
["s00_p14_1","Teléfono 1",false,false,0,9,0,"1111111~","9999999~","Portada~","23~","25~","1~"]
["s00_p14_2","Teléfono 2",true,false,0,9,0,"1111111~","9999999~","Portada~","25~","25~","1~"]
["s00_p14_3","Teléfono 3",true,false,0,9,0,"1111111~","9999999~","Portada~","28~","25~","1~"]
["s00_p15","Encuestador/a",false,false,0,3,0,"1~","40~","Portada~","34~","12~","1~"]
["s00_p16","Supervisor/a",false,false,0,3,0,"1~","20~","Portada~","36~","12~","1~"]
["s00_p17","Otro Personal 1",true,false,0,3,0,"1~","10~","Portada~","38~","12~","1~"]
["s00_p18","Otro Personal 2",true,false,0,3,0,"1~","10~","Portada~","40~","12~","1~"]
["s00_p19","Otro Personal 3",true,false,0,3,0,"1~","10~","Portada~","42~","12~","1~"]
["s00_p20_1_d","Fecha Visita (día)",false,false,0,2,0,"1~","31~","Portada~","38~","18~","1~"]
["s00_p20_1_m","Fecha visita 1 (mes)",false,false,0,2,0,"1~","12~","Portada~","38~","19~","1~"]
["s00_p20_1_a","Fecha visita 1 (año)",false,false,0,4,0,"2012~","2020~","Portada~","38~","20~","1~"]
["s00_p20_1_r","Resultado visita 1",false,false,1,1,0,"1~2~3~4~5~6~","COMPLETA~PARCIAL~RECHAZO~NO CONTACTÓ~NO LO ENCONTRÓ~OTRO~","Portada~","38~","22~","1~"]
["s00_p20_1_i_h","Hora inicio visita 1 (horas)",false,false,0,2,0,"0~","23~","Portada~","38~","23~","1~"]
["s00_p20_1_i_m","Hora inicio visita 1 (minutos)",false,false,0,2,0,"0~","59~","Portada~","38~","24~","1~"]
["s00_p20_1_f_h","Hora fin visita 1 (horas)",false,false,0,2,0,"0~","23~","Portada~","38~","25~","1~"]
["s00_p20_1_f_m","Hora fin visita 1 (minutos)",false,false,0,2,0,"0~","59~","Portada~","38~","26~","1~"]
["s00_p20_2_d","Fecha Visita 2 (día)",true,false,0,2,0,"1~","31~","Portada~","39~","18~","1~"]
["s00_p20_2_m","Fecha visita 2 (mes)",true,false,0,2,0,"1~","12~","Portada~","39~","19~","1~"]
["s00_p20_2_a","Fecha visita 2 (año)",true,false,0,4,0,"2012~","2020~","Portada~","39~","20~","1~"]
["s00_p20_2_r","Resultado visita 2",true,false,1,1,0,"1~2~3~4~5~6~","COMPLETA~PARCIAL~RECHAZO~NO CONTACTÓ~NO LO ENCONTRÓ~OTRO~","Portada~","39~","22~","1~"]
["s00_p20_2_i_h","Hora inicio visita 2 (horas)",true,false,0,2,0,"0~","23~","Portada~","39~","23~","1~"]
["s00_p20_2_i_m","Hora inicio visita 2 (minutos)",true,false,0,2,0,"0~","59~","Portada~","39~","24~","1~"]
["s00_p20_2_f_h","Hora fin visita 2 (horas)",true,false,0,2,0,"0~","23~","Portada~","39~","25~","1~"]
["s00_p20_2_f_m","Hora fin visita 2 (minutos)",true,false,0,2,0,"0~","59~","Portada~","39~","26~","1~"]
["s00_p20_3_d","Fecha Visita 3 (día)",true,false,0,2,0,"1~","31~","Portada~","40~","18~","1~"]
["s00_p20_3_m","Fecha visita 3 (mes)",true,false,0,2,0,"1~","12~","Portada~","40~","19~","1~"]
["s00_p20_3_a","Fecha visita 3 (año)",true,false,0,4,0,"2012~","2020~","Portada~","40~","20~","1~"]
["s00_p20_3_r","Resultado visita 3",true,false,1,1,0,"1~2~3~4~5~6~","COMPLETA~PARCIAL~RECHAZO~NO CONTACTÓ~NO LO ENCONTRÓ~OTRO~","Portada~","40~","22~","1~"]
["s00_p20_3_i_h","Hora inicio visita 3 (horas)",true,false,0,2,0,"0~","23~","Portada~","40~","23~","1~"]
["s00_p20_3_i_m","Hora inicio visita 3 (minutos)",true,false,0,2,0,"0~","59~","Portada~","40~","24~","1~"]
["s00_p20_3_f_h","Hora fin visita 3 (horas)",true,false,0,2,0,"0~","23~","Portada~","40~","25~","1~"]
["s00_p20_3_f_m","Hora fin visita 3 (minutos)",true,false,0,2,0,"0~","59~","Portada~","40~","26~","1~"]
["s00_p20_4_d","Fecha Visita 4 (día)",true,false,0,2,0,"1~","31~","Portada~","41~","18~","1~"]
["s00_p20_4_m","Fecha visita 4 (mes)",true,false,0,2,0,"1~","12~","Portada~","41~","19~","1~"]
["s00_p20_4_a","Fecha visita 4 (año)",true,false,0,4,0,"2012~","2020~","Portada~","41~","20~","1~"]
["s00_p20_4_r","Resultado visita 4",true,false,1,1,0,"1~2~3~4~5~6~","COMPLETA~PARCIAL~RECHAZO~NO CONTACTÓ~NO LO ENCONTRÓ~OTRO~","Portada~","41~","22~","1~"]
["s00_p20_4_i_h","Hora inicio visita 4 (horas)",true,false,0,2,0,"0~","23~","Portada~","41~","23~","1~"]
["s00_p20_4_i_m","Hora inicio visita 4 (minutos)",true,false,0,2,0,"0~","59~","Portada~","41~","24~","1~"]
["s00_p20_4_f_h","Hora fin visita 4 (horas)",true,false,0,2,0,"0~","23~","Portada~","41~","25~","1~"]
["s00_p20_4_f_m","Hora fin visita 4 (minutos)",true,false,0,2,0,"0~","59~","Portada~","41~","26~","1~"]
["s00_p22","Idioma de la entrevista",false,false,1,1,0,"1~2~3~4~5~6~","CASTELLANO~OPCIÓN 2~OPCIÓN 3~OPCIÓN 4~OPCIÓN 5~OPCIÓN 6~","Portada~","34~","34~","1~"]
["s01_p01_a","(1,01): Nombre del entrevistado",false,false,2,50,0,null,null,"1.General~","5~","6~","1~"]
["s01_p01_b","(1,01): Teléfono del entrevistado",false,false,2,50,0,null,null,"1.General~","7~","6~","1~"]
["s01_p02","(1,02): Cargo en el establecimiento",false,false,1,1,0,"1~2~3~","DIRECTOR/A~SUB-DIRECTOR/A~OTRO (ESPECIFIQUE)~","1.General~","10~","14~","1~","001~","s01_p02~","~","1~","2~","s01_p03~"]
["s01_p02_otra","(1,02): Otra",false,false,2,50,0,null,null,"1.General~","12~","8~","1~"]
["s01_p03","(1,03): ¿De quién depende el establecimiento?",false,false,1,1,0,"1~2~3~4~5~6~","MINISTERIO DE SALUD~ENTIDAD PRIVADA~ORGANIZACIÓN NO-GUBERNAMENTAL (ONG)~MISIÓN/ORGANIZACIÓN RELIGIOSA~MILITAR~OTRA (ESPECIFIQUE)~","1.General~","15~","14~","1~","001~","s01_p03~","~","1~","5~","s01_p04~"]
["s01_p03_otra","(1,03): Otra",false,false,2,50,0,null,null,"1.General~","20~","8~","1~"]
["s01_p04","(1,04): Año de inicio de actividades",false,false,0,4,0,"1950~","2012~","1.General~","23~","14~","1~"]
["s01_p05","(1,05): Población en zona de influencia",false,false,0,4,0,"1~","9999~","1.General~","28~","14~","1~"]
["s01_p06","(1,06): % de población con cobertura de salud",false,false,0,3,0,"0~","100~","1.General~","32~","14~","1~"]
["s01_p07","(1,07): Principal fuente de electricidad",false,false,1,1,0,"1~2~","SI~NO TIENEN ELECTRICIDAD~","1.General~","7~","32~","1~","001~","s01_p07~","~","2~","2~","s01_p13~"]
["s01_p08","(1,08): Frecuencia de interrupción de electricidad",false,false,1,1,0,"1~2~3~4~5~","Casi a diario~Algunas veces por semana~Algunas veces al mes~Algunas veces al año~Nunca o casi nunca~","1.General~","10~","32~","1~"]
["s01_p09","(1,09): Fuente de abastecimiento de agua",false,false,1,1,0,"1~2~3~4~5~6~","RED PÚBLICA (AGUA CORRIENTE)~DE PERFORACIÓN CON BOMBA MOTOR~DE PERFORACIÓN CON BOMBA MANUAL~DE POZO CON BOMBA~DE POZO SIN BOMBA~OPCIÓN 6~","1.General~","19~","32~","1~"]
["s01_p10","(1,10): ¿La fuente está adentro?",false,false,1,1,0,"1~2~","SI~NO~","1.General~","27~","32~","1~","001~","s01_p10~","~","1~","1~","s01_p12~"]
["s01_p11_d","(1,11): Distancia a la fuente de agua",false,false,0,2,0,"0~","99~","1.General~","32~","24~","1~"]
["s01_p11_ud","(1,11): Unidad de distancia",false,false,1,1,0,"1~2~","KILÓMETROS~METROS~","1.General~","32~","32~","1~"]
["s01_p12","(1,12): Servicio sanitario disponible",false,false,1,1,0,"1~2~3~4~","INODORO CONECTADO AL SISTEMA DE DRENAJE~INODORO CONECTADO A FOSA SÉPTICA~LETRINA~OPCIÓN 4~","1.General~","36~","32~","1~"]
["s01_p13","(1,13): Forma de comunicación principal",false,false,1,1,0,"1~2~3~4~5~6~7~8~","TELEFONÍA FIJA~TELEFONÍA CELULAR~RADIO/HANDY~INTERNET~TELÉFONO SEMIPÚBLICO~LÍNEA CENTREX~NO POSEE~OPCIÓN 8~","1.General~","45~","14~","1~"]
["s01_p14_1","(1,14): ¿Desechan agujas en descartador?",false,false,1,1,0,"1~2~","SI~NO~","1.General~","59~","14~","1~"]
["s01_p14_2","(1,14): ¿Desechan agujas en bolsas rojas?",false,false,1,1,0,"1~2~","SI~NO~","1.General~","60~","14~","1~"]
["s01_p14_3","(1,14): ¿Desechan agujas junto con la basura?",false,false,1,1,0,"1~2~","SI~NO~","1.General~","61~","14~","1~"]
["s01_p14_4","(1,14): ¿Desechan agujas (otra)?",false,false,1,1,0,"1~2~","SI~NO~","1.General~","62~","14~","1~","001~","s01_p14_4~","~","2~","2~","s01_p15_1~"]
["s01_p14_otra","(1,14): Otra",false,false,2,50,0,null,null,"1.General~","62~","8~","1~"]
["s01_p15_1","(1,15): ¿Eliminan residuos por recolector especial?",false,false,1,1,0,"1~2~","SI~NO~","1.General~","67~","14~","1~"]
["s01_p15_2","(1,15): ¿Eliminan residuos por traslado a centro?",false,false,1,1,0,"1~2~","SI~NO~","1.General~","68~","14~","1~"]
["s01_p15_3","(1,15): ¿Eliminan residuos por recolector público?",false,false,1,1,0,"1~2~","SI~NO~","1.General~","69~","14~","1~"]
["s01_p15_4","(1,15): ¿Eliminan residuos por incineración?",false,false,1,1,0,"1~2~","SI~NO~","1.General~","70~","14~","1~"]
["s01_p15_5","(1,15): ¿Eliminan residuos enterrándolos?",false,false,1,1,0,"1~2~","SI~NO~","1.General~","71~","14~","1~"]
["s01_p15_6","(1,15): ¿Eliminan residuos por (otra)?",false,false,1,1,0,"1~2~","SI~NO~","1.General~","72~","14~","1~","001~","s01_p15_6~","~","2~","2~","s01_p16~"]
["s01_p15_otra","(1,15): Otra",false,false,2,50,0,null,null,"1.General~","72~","8~","1~"]
["s01_p16","(1,16): Frecuencia con que reutilizan agujas",false,false,1,1,0,"1~2~3~4~","NUNCA~RARA VEZ~ALGUNAS VECES~FRECUENTEMENTE~","1.General~","75~","14~","1~"]
["s01_p17","(1,17): ¿Visita de supervisión últimos 6 meses?",false,false,1,1,0,"1~2~","SI~NO~","1.General~","46~","32~","1~","001~","s01_p17~","~","2~","2~","s01_p22~"]
["s01_p18","(1,18): ¿Cuántas visitas recibió?",false,false,0,2,0,"0~","99~","1.General~","49~","32~","1~"]
["s01_p19","(1,19): ¿Fue visitado por la (red de salud)?",false,false,1,1,0,"1~2~","SI~NO~","1.General~","51~","32~","1~"]
["s01_p20","(1,20): ¿Fue visitado por el (nivel central)?",false,false,1,1,0,"1~2~","SI~NO~","1.General~","54~","32~","1~"]
["s01_p21","(1,12): ¿Hubo atención de menores de 5 en visita?",false,false,1,1,0,"1~2~","SI~NO~","1.General~","57~","32~","1~"]
["s01_p22","(1,22): ¿Existe Gestor de Calidad como personal?",false,false,1,1,0,"1~2~","SI~NO~","1.General~","62~","32~","1~"]
["s01_p23","(1,23): ¿Hubo auditoría interna en útlima gestión?",false,false,1,1,0,"1~2~","SI~NO~","1.General~","65~","32~","1~"]
["s01_p24","(1,24): ¿Han habido quejas el último mes?",false,false,1,1,0,"1~2~","SI~NO~","1.General~","69~","32~","1~"]
["s01_p25","(1,25): ¿Cuentan con plan de gestión de riesgos?",false,false,1,1,0,"1~2~","SI~NO~","1.General~","73~","32~","1~"]
["s01_p26","(1,26): ¿Quién realiza mantención de equipos médicos?",false,false,1,1,0,"1~2~3~4~","SERVICIO PRIVADO~SERVICIO PÚBLICO~PERSONAL DEL ESTABLECIMIENTO DE SALUD~OTRO (ESPECIFIQUE)~","1.General~","77~","32~","1~","001~","s01_p26~","~","1~","3~","s01_p27~"]
["s01_p26_otra","(1,26): Otra",false,false,2,50,0,null,null,"1.General~","80~","27~","1~"]
["s01_p27","(1,27): ¿Derivan pacientes a otros establecimientos?",false,false,1,1,0,"1~2~","SI~NO~","1.General~","86~","14~","1~","001~","s01_p27~","~","2~","2~","s01_p30_1~"]
["s01_p28","(1,28): ¿Dónde se derivan los pacientes?",false,false,1,1,0,"1~2~3~4~5~","A UN HOSPITAL~A UNA CLÍNICA PRIVADA~A UN CENTRO DE SALUD~A UN PUESTO DE SALUD~OTRO (ESPECIFIQUE)~","1.General~","90~","14~","1~","001~","s01_p28~","~","1~","4~","s01_p29~"]
["s01_p28_otra","(1,28): Otra",false,false,2,50,0,null,null,"1.General~","94~","9~","1~"]
["s01_p29","(1,29): Distancia al centro de derivación",false,false,0,2,0,"0~","99~","1.General~","98~","14~","1~"]
["s01_p30_1","(1,30): ¿Recibió ingresos del ministerio de salud?",false,false,1,1,0,"1~2~","SI~NO~","1.General~","94~","26~","1~","001~","s01_p30_1~","~","2~","2~","s01_p30_2~"]
["s01_p31_1","(1,31): ¿Cuánto recibio del ministerio de salud?",false,false,0,5,0,"1~","99999~","1.General~","94~","30~","1~"]
["s01_p30_2","(1,30): ¿Recibió ingresos de cargos a usuarios?",false,false,1,1,0,"1~2~","SI~NO~","1.General~","95~","26~","1~","001~","s01_p30_2~","~","2~","2~","s01_p30_3~"]
["s01_p31_2","(1,31): ¿Cuánto recibio por cargos a usuarios?",false,false,0,5,0,"0~","99999~","1.General~","95~","30~","1~"]
["s01_p30_3","(1,30): ¿Recibió ingresos de venta de medicamentos?",false,false,1,1,0,"1~2~","SI~NO~","1.General~","96~","26~","1~","001~","s01_p30_3~","~","2~","2~","s01_p30_4~"]
["s01_p31_3","(1,31): ¿Cuánto recibio por venta de medicamentos?",false,false,0,5,0,"0~","99999~","1.General~","96~","30~","1~"]
["s01_p30_4","(1,30): ¿Recibió ingresos de entidad privada?",false,false,1,1,0,"1~2~","SI~NO~","1.General~","97~","26~","1~","001~","s01_p30_4~","~","2~","2~","s01_p30_5~"]
["s01_p31_4","(1,31): ¿Cuánto recibio por entidad privada?",false,false,0,5,0,"0~","99999~","1.General~","97~","30~","1~"]
["s01_p30_5","(1,30): ¿Recibió ingresos de ONG?",false,false,1,1,0,"1~2~","SI~NO~","1.General~","98~","26~","1~","001~","s01_p30_5~","~","2~","2~","s01_p30_6~"]
["s01_p31_5","(1,31): ¿Cuánto recibio por ONG?",false,false,0,5,0,"0~","99999~","1.General~","98~","30~","1~"]
["s01_p30_6","(1,30): ¿Recibió ingresos de organización religiosa?",false,false,1,1,0,"1~2~","SI~NO~","1.General~","99~","26~","1~","001~","s01_p30_6~","~","2~","2~","s01_p30_7~"]
["s01_p31_6","(1,31): ¿Cuánto recibio por organización religiosa?",false,false,0,5,0,"0~","99999~","1.General~","99~","30~","1~"]
["s01_p30_7","(1,30): ¿Recibió ingresos de (otra fuente 1)?",false,false,1,1,0,"1~2~","SI~NO~","1.General~","100~","26~","1~","001~","s01_p30_7~","~","2~","2~","s01_p30_8~"]
["s01_p31_7","(1,31): ¿Cuánto recibio por (otra fuente 1)?",false,false,0,5,0,"0~","99999~","1.General~","100~","30~","1~"]
["s01_p30_8","(1,30): ¿Recibió ingresos de (otra fuente 2)?",false,false,1,1,0,"1~2~","SI~NO~","1.General~","101~","26~","1~","001~","s01_p30_8~","~","2~","2~","s01_p31_9~"]
["s01_p31_8","(1,31): ¿Cuánto recibio por (otra fuente 2)?",false,false,0,5,0,"0~","99999~","1.General~","101~","30~","1~"]
["s01_p31_9","(1,31): ¿Cuánto recibio en total?",false,false,0,6,0,"0~","999999~","1.General~","102~","30~","1~"]
["s01_p32","(1,32): Fuente de información de (1,31)",false,false,1,1,0,"1~2~","REGISTROS OFICIALES DEL ESTABLECIMIENTO~INFORME VERBAL~","1.General~","106~","32~","1~"]
["s02_p01_1","(2,01): Horas servicio de consulta externa (Lu)",false,false,0,2,0,"0~","24~","2.Prestaciones~","11~","5~","1~"]
["s02_p01_2","(2,01): Horas servicio de consulta externa (Ma)",false,false,0,2,0,"0~","24~","2.Prestaciones~","12~","5~","1~"]
["s02_p01_3","(2,01): Horas servicio de consulta externa (Mi)",false,false,0,2,0,"0~","24~","2.Prestaciones~","13~","5~","1~"]
["s02_p01_4","(2,01): Horas servicio de consulta externa (Jue)",false,false,0,2,0,"0~","24~","2.Prestaciones~","14~","5~","1~"]
["s02_p01_5","(2,01): Horas servicio de consulta externa (Vie)",false,false,0,2,0,"0~","24~","2.Prestaciones~","15~","5~","1~"]
["s02_p01_6","(2,01): Horas servicio de consulta externa (Sab)",false,false,0,2,0,"0~","24~","2.Prestaciones~","16~","5~","1~"]
["s02_p01_7","(2,01): Horas servicio de consulta externa (Dom)",false,false,0,2,0,"0~","24~","2.Prestaciones~","17~","5~","1~"]
["s02_p02_1","(2,02): Horas servicio de urgencias (Lu)",false,false,0,2,0,"0~","24~","2.Prestaciones~","11~","11~","1~"]
["s02_p02_2","(2,02): Horas servicio de urgencias (Ma)",false,false,0,2,0,"0~","24~","2.Prestaciones~","12~","11~","1~"]
["s02_p02_03","(2,02): Horas servicio de urgencias (Mi)",false,false,0,2,0,"0~","24~","2.Prestaciones~","13~","11~","1~"]
["s02_p02_4","(2,02): Horas servicio de urgencias (Jue)",false,false,0,2,0,"0~","24~","2.Prestaciones~","14~","11~","1~"]
["s02_p02_5","(2,02): Horas servicio de urgencias (Vie)",false,false,0,2,0,"0~","24~","2.Prestaciones~","15~","11~","1~"]
["s02_p02_6","(2,02): Horas servicio de urgencias (Sab)",false,false,0,2,0,"0~","24~","2.Prestaciones~","16~","11~","1~"]
["s02_p02_7","(2,02): Horas servicio de urgencias (Dom)",false,false,0,2,0,"0~","24~","2.Prestaciones~","17~","11~","1~"]
["s02_p06","(2,06): ¿Hay personal médico las 24 horas?",false,false,1,1,0,"1~2~","SI~NO~","2.Prestaciones~","20~","14~","1~"]
["s02_p07","(2,07): ¿Atienden partos de bajo riesgo?",false,false,1,1,0,"1~2~","SI~NO~","2.Prestaciones~","23~","14~","1~"]
["s02_p08","(2,08): ¿Atienden partos de alto riesgo?",false,false,1,1,0,"1~2~","SI~NO~","2.Prestaciones~","26~","14~","1~"]
["s02_p09","(2,09): ¿Existe atención de alta complejidad para niños?",false,false,1,1,0,"1~2~","SI~NO~","2.Prestaciones~","30~","14~","1~"]
["s02_p10","(2,10): ¿Se ofrece análisis clínico?",false,false,1,1,0,"1~2~","SI~NO~","2.Prestaciones~","33~","14~","1~"]
["s02_p11","(2,11): ¿Dónde procesan las muestras?",false,false,1,1,0,"1~2~","EN UN LABORATORIO DE ESTE ESTABLECIMIENTO~EN UN LABORATORIO FUERA~","2.Prestaciones~","36~","14~","1~"]
["s02_p12","(2,12): ¿Ofrecen servicio de imágenes?",false,false,1,1,0,"1~2~","SI~NO~","2.Prestaciones~","39~","14~","1~"]
["s03_p01_1","(3,01): ¿Hay médicos en el establecimiento?",false,false,1,1,0,"1~2~","SI~NO~","3.Personal~","11~","6~","1~"]
["s03_p01_2","(3,01): ¿Hay otros profesionales en el establecimiento?",false,false,1,1,0,"1~2~","SI~NO~","3.Personal~","17~","6~","1~"]
["s03_p01_3","(3,01): ¿Hay enfermería en el establecimiento?",false,false,1,1,0,"1~2~","SI~NO~","3.Personal~","25~","6~","1~"]
["s03_p01_4","(3,01): ¿Hay otros en el establecimiento?",false,false,1,1,0,"1~2~","SI~NO~","3.Personal~","29~","6~","1~"]
["s07_p01","(7,01): ¿Está el piso limpio?",false,false,1,1,0,"1~2~3~4~5~","MUY LIMPIO~LIMPIO~REGULAR~SUCIO~MUY SUCIO~","7.Observ~","6~","15~","1~"]
["s07_p02","(7,02): ¿Están las paredes limpias?",false,false,1,1,0,"1~2~3~4~5~","MUY LIMPIO~LIMPIO~REGULAR~SUCIO~MUY SUCIO~","7.Observ~","14~","15~","1~"]
["s07_p03","(7,03): ¿Hay privacidad para exámen de pacientes?",false,false,1,1,0,"1~2~","SI~NO~","7.Observ~","22~","15~","1~"]
["s07_p04","(7,04): ¿Están limpias las cortinas?",false,false,1,1,0,"1~2~3~4~5~6~","MUY LIMPIAS~LIMPIAS~REGULAR~SUCIAS~MUY SUCIAS~NO EXISTEN CORTINAS~","7.Observ~","26~","15~","1~"]
["s07_p05","(7,05): Implementos para aseo de manos",false,false,1,1,0,"1~2~3~4~","PILETA O FREGADERO O LAVABO CON AGUA ENTUBADA~PILETA O FREGADERO O LAVABO CON RECIPIENTE PARA AGUA~NO CUENTA CON NINGÚN ELEMENTO~OTRO~","7.Observ~","34~","16~","1~"]
["s07_p06","(7,06): ¿Existen tachos para basura?",false,false,1,1,0,"1~2~","SI~NO~","7.Observ~","41~","16~","1~"]
["s07_p07","(7,07): ¿Sala tiene mesa de exploración?",false,false,1,1,0,"1~2~","SI~NO~","7.Observ~","6~","34~","1~"]
["s07_p08","(7,08): ¿Sala tiene mesa de exploración ginecológica?",false,false,1,1,0,"1~2~","SI~NO~","7.Observ~","11~","34~","1~"]
["s07_p09","(7,09): ¿Dónde almacenan vacunas?",false,false,1,1,0,"1~2~3~4~5~","HELADERA O REFRIGERADOR EXCLUSIVO PARA VACUNAS~HELADERA O REFRIGERADOR DE USOS MÚLTIPLES~HIELERA NO ELÉCTRICA~NO APLICABLE~OTRO~","7.Observ~","16~","34~","1~"]
["s07_p10","(7,10): ¿Refrigerador cuenta con medidor?",false,false,1,1,0,"1~2~","SI~NO~","7.Observ~","24~","34~","1~"]
["s07_p11","(7,11): ¿Se observa descartador de agujas?",false,false,1,1,0,"1~2~3~","SI~NO~NO HAY DESCARTADOR~","7.Observ~","30~","34~","1~"]
["s07_p12","(7,12): ¿Bolsa roja cubre recipiente de basura?",false,false,1,1,0,"1~2~3~","SI~NO~NO HAY RECIPIENTE~","7.Observ~","35~","34~","1~"]
[2,"002: Servicio",4,1,20]
["id_servicio","Número de Servicio",false,true,1,2,0,"01~02~03~04~05~06~07~08~09~10~11~12~13~14~15~16~17~18~19~20~","Consulta externa para niños~Consulta externa para adultos~Consulta dental~Consulta de especialidad~Hospitalización~Cirugía menor~Urgencias (sutura)~Atención de parto normal~Control neonatal~Vacunación / Inmunizaciones~Transfusión sanguínea~Consulta pre-natal~Ecografías~Rayos X~Hormonales orales~Hormonales inyectables~Inserción de DIU~Retiro de DIU~Preservativos (condones)~Otros:~","2.Prestaciones~","15~","18~","20~"]
["s02_p03","(2,03): ¿Ofrecen ... en este establecimiento?",false,false,1,1,0,"1~2~","SI~NO~","2.Prestaciones~","15~","24~","20~","002~","s02_p03~","Me~","2~","2~","End of RT~"]
["s02_p04","(2,04): Días a la semana que ofrecen ...",false,false,0,1,0,"1~","7~","2.Prestaciones~","15~","27~","20~"]
["s02_p05","(2,05): Precio cobrado por ...",false,false,0,5,0,"0~","100~","2.Prestaciones~","15~","29~","20~"]
[3,"003: Función",4,1,29]
["id_funcion","Código Función",false,true,1,3,0,"101~102~103~104~105~106~201~202~203~204~205~206~207~208~301~302~303~304~401~402~403~404~405~406~407~408~409~410~411~","Clínica Médica~Medicina General~Ginecología~Pediatría~Obstetricia~OTRA OPCIÓN MEDICOS~Nutricionista~Odontólogo~Oftalmólogo~Kinesiólogo~Psicólogo~Asistente social~Traumatólogo~OTRA OPCIÓN OTROS PROFESIONALES~Licenciadas~Enfermeras~Auxiliares de enfermería~OTRA OPCIÓN ENFERMERÍA~Técnico de Laboratorio~Técnico de Radiología / imágenes~Alimentación/nutrición~Agente sanitario~Mucama (personal de limpieza)~Responsable de archivo/fichero~Telefonistas~Administrativos~Personal de mantenimiento~Otros (agregar):~OTRA OPCIÓN OTROS~","3.Personal~","11~","12~","29~"]
["s03_p02","(3,02): N° de ... trabajando en el lugar",false,false,0,3,0,"0~","10~","3.Personal~","11~","17~","29~","003~","s03_p02~","Me~","0~","0~","End of RT~"]
["s03_p03","(3,03): Salario de bolsillo de un ...",false,false,0,5,0,"50~","1000~","3.Personal~","11~","22~","29~"]
["s03_p04","(3,04): Horas semanales que trabaja un...",false,false,0,2,0,"0~","60~","3.Personal~","11~","26~","29~"]
[4,"004: Equipamiento",5,1,40]
["id_equipo","Código de Equipo",false,true,1,2,0,"01~02~03~04~05~06~07~08~09~10~11~12~13~14~15~16~17~18~19~20~21~22~23~24~25~26~27~28~29~30~31~32~33~34~35~36~37~38~39~40~","Estetoscopio auricular~Balanza infantil~Balanza de adultos~Cinta métrica~Cinta métrica para medir altura uterina~Tensiómetro~Termómetro~Termo o hielera~Instrumental para prueba de desarrollo~Balanza con estadímetro~Estetoscopio de Pinard~Colposcopio~Lámpara de hendidura~Oftalmoscopio~Otoscopio~Mesa de curación~Equipo de cirugía menor~Mesa de mayo~Autoclave o esterilizador~Juego de instrumental y campos para parto vaginal~Mesa o cama para parto~Juego de ropa de cama~Camilla~Heladera o Refrigerador~Incubadora~Ambú/ Balón de resucitación autoinflable~Aspirador para secreciones~Cilindro de oxigeno~Teléfono o radio~Ambulancia de traslado~Ambulancia de terapia intensiva~Computadora~Biblioteca~Silla/sillón~Escritorio~Vitrinas~Otro Equipo 1~Otro Equipo 2~Otro Equipo 3~Otro Equipo 4~","4.Equip~","15~","2~","40~"]
["s04_p01_n","(4,01): ¿Personal tuvo acceso a equipo? (NO)",true,false,1,1,0,"x~X~","NO~NO~","4.Equip~","15~","17~","40~","004~004~","s04_p01_n~s04_p01_n~","Me~Me~","x~X~","x~X~","End of RT~End of RT~"]
["s04_p01_s","(4,01): ¿Personal tuvo acceso a equipo? (SI)",true,false,1,1,0,"x~X~","SI~SI~","4.Equip~","15~","18~","40~"]
["s04_p02","(4,02): N° de días sin ... último mes",false,false,0,2,0,"0~","30~","4.Equip~","15~","19~","40~"]
["s04_p03","(4,03): N° de ... en funcionamiento",false,false,0,3,0,"0~","50~","4.Equip~","15~","25~","40~"]
[5,"005: Insumo 1",4,1,16]
["id_insumo_1","Número Insumo 1",false,true,1,2,0,"01~02~03~04~05~06~07~08~09~10~11~12~13~14~15~16~","Tallímetro/infantómetro de madera apropiado (3 cuerpos, madera sólida, cinta métrica en buen estado sobre todo en las uniones de los cuerpos, con tope fijo, con tope móvil ‘sin juego’)~Balanza pediátrica de bandeja (escala mínima de 10 g) o balanza madre-bebé en buen estado~Balanza de pie, escala mínima 100 gs, en buen estado~Aerocámara espaciadora para salbutamol (puede ser elaborada artesanalmente con un vaso o un envase de suero)~Agua destilada para inyecciones~Alcohol~Algodón~Balón de oxígeno con manómetro listo para el uso y accesible~Cateter nasofaríngeo para niños/as~Carnet de Salud Infantil con hitos del desarrollo~Formularios de registro niños/as de 2 meses a menor de 5 años~Formularios de registro niños/as de 7 días a menores de 2 meses~Formularios de registro niños/as menores de 7 días~Jeringas de 1 cc y 5 cc, con agujas~Refrigerador funcionando exclusivo para vacunas~Sonda Nasogástrica para niños/as~","5.Insumos~","16~","1~","16~"]
["s05_p01","(5,01): ¿Cuentan con ... el día de hoy?",false,false,1,1,0,"1~2~","SI~NO~","5.Insumos~","16~","20~","16~","005~005~005~","s05_p01~id_insumo_1~id_insumo_1~","Me~Me~Me~","2~5~9~","2~7~14~","End of RT~s05_p03~s05_p03~"]
["s05_p02","(5,02): Cantidad de ... el día de hoy",false,false,0,4,0,"1~","100~","5.Insumos~","16~","25~","16~"]
["s05_p03","(5,03): ¿Cuántos días estuvieron sin ...?",false,false,0,2,0,"0~","30~","5.Insumos~","16~","29~","16~"]
[6,"006: Insumo 2",4,1,14]
["id_insumo_2","Número Insumo 2",false,true,1,2,0,"17~18~19~20~21~22~23~24~25~26~27~28~29~30~","Formulario Historia Clínica Perinatal~Carnet Perinatal~Partograma~Tensiómetro en buen estado~Estetoscopio en buen estado~Cinta métrica~Antimarílica~Antipolio~BCG~Antirotavirus~Pentavalente~SRP~TT (Toxoide Tetánico)~dT (difteria y Tétanos)~","5.Insumos~5.Insumos~","46~53~","1~1~","6~8~"]
["s05_p04","(5,04): ¿Cuentan con ... el día de hoy?",false,false,1,1,0,"1~2~","SI~NO~","5.Insumos~5.Insumos~","46~53~","20~20~","6~8~","006~006~","s05_p04~id_insumo_2~","Me~Me~","2~17~","2~18~","End of RT~s05_p06~"]
["s05_p05","(5,05): ¿Qué cantidad hay aproximadamente?",false,false,0,4,0,"1~","100~","5.Insumos~5.Insumos~","46~53~","25~25~","6~8~"]
["s05_p06","(5,06): ¿Es suficiente esa cantidad?",false,false,1,1,0,"1~2~","SI~NO~","5.Insumos~5.Insumos~","46~53~","29~29~","6~8~"]
[7,"007: Medicamento 1",4,1,24]
["id_medicamento_1","Número Medicamento 1",false,true,1,2,0,"01~02~03~04~05~06~07~08~09~10~11~12~13~14~15~16~17~18~19~20~21~22~23~24~","Alimento Terapéutico Nutricional Listo para el Uso (ATLU), Plumpy Nut o BP100~Ceftriaxona fcos/amp. 500 mg o 1 g~Chispitas Nutricionales (Sobres)~Ciprofloxacina comp.250 mg~Cloranfenicol amp.1 g~Cotrimoxazol jarabe pediátrico (200/40/5mL)~Cotrimoxazol, tab de 100/20 mg~Dextrosa 5% 500 o 1000 mL~Gentamicina, amp.20, 40 mg o 80 mg~Hierro Gts 25 mg/mL de hierro elemental o 125 mg de sulfato ferroso (Ferrasol)~Mebendazol,tab 500 mg o tab.de 100 mg~Nistatina suspensión (1mL=100,000 UI)~Paracetamol jarabe 120 mg(5mL)~Paracetamol tab. de 100 mg~Pen.procaínica, 1.000,000 ó 800,000 ó 400,000 UI~Ringer lactato, 500 o 1000 mL~Salbutamol en aerosol 100 mcg/dosis~Suero de la Vida o SRO de baja osmolaridad (245 mOsm/L)~Suero de la Vida o SRO estándar (311 mOsm/L)~Suero fisiológico 0.9% 500 ó 1.000 mL~Vitamina A 100.000 UI~Vitamina A 200.000 UI~Zinc , tabletas ‘dispersables’ de 20mg~Zinc , jarabe de 20 mg/5mL~","6.Medicamentos~","14~","1~","24~"]
["s06_p01","(6,01): ¿Cuentan con ... el día de hoy?",false,false,1,1,0,"1~2~","SI~NO~","6.Medicamentos~","14~","18~","24~","007~","s06_p01~","Me~","2~","2~","End of RT~"]
["s06_p02","(6,02): Cantidad de ... el día de hoy",false,false,0,5,0,"1~","200~","6.Medicamentos~","14~","25~","24~"]
["s06_p03","(6,03): ¿Cuántos días estuvieron sin ...?",false,false,0,2,0,"0~","30~","6.Medicamentos~","14~","30~","24~"]
[8,"008: Medicamento 2",4,1,19]
["id_medicamento_2","Número Medicamento 2",false,true,1,2,0,"25~26~27~28~29~30~31~32~33~34~35~36~37~38~39~40~41~42~43~","Alfametildopa tab. 500 mg~Amoxicilina comp. 500 mg o 1g~Ampicilina amp. 1g~Ciprofloxacina comp. 500 mg~Doxiciclina tab. 100 mg~Eritromicina comp. 500 mg~Metronidazol tab.500 mg~Nifedipino tab. 10 mg~Paracetamol tab. 500 mg~Peniicilina benzatínica amp. 1,200.000 UI o 2,400.000 UI~Sulfato ferroso tab, 60 mg~Artesunato comp.50mg~Clindamicina susp.75mg/5mL~Cloroquina, tab.150 mg~Diclorhidrato de quinina, amp 300 mg/2mL~Mefloquina tab 250 mg~Primaquina, tab.5 mg~Quinina, amp.600 mg~Quinina sulfato, tab.300 mg~","6.Medicamentos~6.Medicamentos~","53~65~","1~1~","11~8~"]
["s06_p04","(6,04): ¿Cuentan con ...?",false,false,1,1,0,"1~2~","SI~NO~","6.Medicamentos~6.Medicamentos~","53~65~","18~18~","11~8~"]
["s06_p05","(6,05): Cantidad de ...",false,false,0,5,0,"1~","200~","6.Medicamentos~6.Medicamentos~","53~65~","25~25~","11~8~"]
["s06_p06","(6,06): ¿Es suficiente esa cantidad?",false,false,1,1,0,"1~2~","SI~NO~","6.Medicamentos~6.Medicamentos~","53~65~","30~30~","11~8~"]

{"sheet":"Messages","index":20,"n_rows":1,"n_cols":3,"rows_kept":1,"cut":false,"hidden":false,"merged":[]}
[null,null,"No hay mensajes"]

{"sheet":"Dictionary_AUX","index":21,"n_rows":191,"n_cols":19,"rows_kept":191,"cut":false,"hidden":true,"merged":[]}
[null,null,8,null,null,"c:\\PeI_PED\\Salud\\Datos\\",1,"\"S\" & id_est"]
[1,"001: Establecimiento Salud",153,0,1]
["id_est","Identificador Establecimiento",false,false,0,4,0,"1~","200~","Portada~","5~","29~","1~"]
["s00_p01","Nombre del establecimiento",false,false,2,50,0,null,null,"Portada~","5~","11~","1~"]
["s00_p02","Región/Estado",false,false,0,3,0,"0~","999~","Portada~","9~","16~","1~"]
["s00_p03","Provincia",false,false,0,3,0,"0~","999~","Portada~","11~","16~","1~"]
["s00_p04","Municipio",false,false,0,3,0,"0~","999~","Portada~","13~","16~","1~"]
["s00_p05","Localidad",false,false,0,3,0,"0~","999~","Portada~","15~","16~","1~"]
["s00_p06","Zona/Barrio",false,false,2,50,0,null,null,"Portada~","17~","7~","1~"]
["s00_p07","Calle",false,false,2,50,0,null,null,"Portada~","19~","7~","1~"]
["s00_p08","Número",false,false,2,50,0,null,null,"Portada~","21~","7~","1~"]
["s00_p09","Otras referencias",false,false,2,50,0,null,null,"Portada~","23~","8~","1~"]
["s00_p12","Tipo",false,false,1,1,0,"1~2~3~4~5~6~","HOSPITAL BÁSICO~CLINICA PRIVADA~CENTRO DE SALUD~PUESTO DE SALUD~OPCIÓN 5~OPCIÓN 6~","Portada~","9~","26~","1~"]
["s00_p13","Nombre del director",false,false,2,50,0,null,null,"Portada~","19~","22~","1~"]
["s00_p14_1","Teléfono 1",false,false,0,9,0,"0~","999999999~","Portada~","23~","25~","1~"]
["s00_p14_2","Teléfono 2",false,false,0,9,0,"0~","999999999~","Portada~","25~","25~","1~"]
["s00_p14_3","Teléfono 3",false,false,0,9,0,"0~","999999999~","Portada~","28~","25~","1~"]
["s00_p15","Encuestador/a",false,false,0,3,0,"1~","40~","Portada~","34~","12~","1~"]
["s00_p16","Supervisor/a",false,false,0,3,0,"1~","20~","Portada~","36~","12~","1~"]
["s00_p17","Otro Personal 1",false,false,0,3,0,"1~","10~","Portada~","38~","12~","1~"]
["s00_p18","Otro Personal 2",false,false,0,3,0,"1~","10~","Portada~","40~","12~","1~"]
["s00_p19","Otro Personal 3",false,false,0,3,0,"1~","10~","Portada~","42~","12~","1~"]
["s00_p20_1_d","Fecha Visita (día)",false,false,0,2,0,"1~","31~","Portada~","38~","18~","1~"]
["s00_p20_1_m","Fecha visita 1 (mes)",false,false,0,2,0,"1~","12~","Portada~","38~","19~","1~"]
["s00_p20_1_a","Fecha visita 1 (año)",false,false,0,4,0,"2012~","2020~","Portada~","38~","20~","1~"]
["s00_p20_1_r","Resultado visita 1",false,false,1,1,0,"1~2~3~4~5~6~","COMPLETA~PARCIAL~RECHAZO~NO CONTACTÓ~NO LO ENCONTRÓ~OTRO~","Portada~","38~","22~","1~"]
["s00_p20_1_i_h","Hora inicio visita 1 (horas)",false,false,0,2,0,"0~","23~","Portada~","38~","23~","1~"]
["s00_p20_1_i_m","Hora inicio visita 1 (minutos)",false,false,0,2,0,"0~","59~","Portada~","38~","24~","1~"]
["s00_p20_1_f_h","Hora fin visita 1 (horas)",false,false,0,2,0,"0~","23~","Portada~","38~","25~","1~"]
["s00_p20_1_f_m","Hora fin visita 1 (minutos)",false,false,0,2,0,"0~","59~","Portada~","38~","26~","1~"]
["s00_p20_2_d","Fecha Visita 2 (día)",true,false,0,2,0,"1~","31~","Portada~","39~","18~","1~"]
["s00_p20_2_m","Fecha visita 2 (mes)",true,false,0,2,0,"1~","12~","Portada~","39~","19~","1~"]
["s00_p20_2_a","Fecha visita 2 (año)",true,false,0,4,0,"2012~","2020~","Portada~","39~","20~","1~"]
["s00_p20_2_r","Resultado visita 2",true,false,1,1,0,"1~2~3~4~5~6~","COMPLETA~PARCIAL~RECHAZO~NO CONTACTÓ~NO LO ENCONTRÓ~OTRO~","Portada~","39~","22~","1~"]
["s00_p20_2_i_h","Hora inicio visita 2 (horas)",true,false,0,2,0,"0~","23~","Portada~","39~","23~","1~"]
["s00_p20_2_i_m","Hora inicio visita 2 (minutos)",true,false,0,2,0,"0~","59~","Portada~","39~","24~","1~"]
["s00_p20_2_f_h","Hora fin visita 2 (horas)",true,false,0,2,0,"0~","23~","Portada~","39~","25~","1~"]
["s00_p20_2_f_m","Hora fin visita 2 (minutos)",true,false,0,2,0,"0~","59~","Portada~","39~","26~","1~"]
["s00_p20_3_d","Fecha Visita 3 (día)",true,false,0,2,0,"1~","31~","Portada~","40~","18~","1~"]
["s00_p20_3_m","Fecha visita 3 (mes)",true,false,0,2,0,"1~","12~","Portada~","40~","19~","1~"]
["s00_p20_3_a","Fecha visita 3 (año)",true,false,0,4,0,"2012~","2020~","Portada~","40~","20~","1~"]
["s00_p20_3_r","Resultado visita 3",true,false,1,1,0,"1~2~3~4~5~6~","COMPLETA~PARCIAL~RECHAZO~NO CONTACTÓ~NO LO ENCONTRÓ~OTRO~","Portada~","40~","22~","1~"]
["s00_p20_3_i_h","Hora inicio visita 3 (horas)",true,false,0,2,0,"0~","23~","Portada~","40~","23~","1~"]
["s00_p20_3_i_m","Hora inicio visita 3 (minutos)",true,false,0,2,0,"0~","59~","Portada~","40~","24~","1~"]
["s00_p20_3_f_h","Hora fin visita 3 (horas)",true,false,0,2,0,"0~","23~","Portada~","40~","25~","1~"]
["s00_p20_3_f_m","Hora fin visita 3 (minutos)",true,false,0,2,0,"0~","59~","Portada~","40~","26~","1~"]
["s00_p20_4_d","Fecha Visita 4 (día)",true,false,0,2,0,"1~","31~","Portada~","41~","18~","1~"]
["s00_p20_4_m","Fecha visita 4 (mes)",true,false,0,2,0,"1~","12~","Portada~","41~","19~","1~"]
["s00_p20_4_a","Fecha visita 4 (año)",true,false,0,4,0,"2012~","2020~","Portada~","41~","20~","1~"]
["s00_p20_4_r","Resultado visita 4",true,false,1,1,0,"1~2~3~4~5~6~","COMPLETA~PARCIAL~RECHAZO~NO CONTACTÓ~NO LO ENCONTRÓ~OTRO~","Portada~","41~","22~","1~"]
["s00_p20_4_i_h","Hora inicio visita 4 (horas)",true,false,0,2,0,"0~","23~","Portada~","41~","23~","1~"]
["s00_p20_4_i_m","Hora inicio visita 4 (minutos)",true,false,0,2,0,"0~","59~","Portada~","41~","24~","1~"]
["s00_p20_4_f_h","Hora fin visita 4 (horas)",true,false,0,2,0,"0~","23~","Portada~","41~","25~","1~"]
["s00_p20_4_f_m","Hora fin visita 4 (minutos)",true,false,0,2,0,"0~","59~","Portada~","41~","26~","1~"]
["s00_p22","Idioma de la entrevista",false,false,1,1,0,"1~2~3~4~5~6~","CASTELLANO~OPCIÓN 2~OPCIÓN 3~OPCIÓN 4~OPCIÓN 5~OPCIÓN 6~","Portada~","34~","34~","1~"]
["s01_p01_a","(1,01): Nombre del entrevistado",false,false,2,50,0,null,null,"1.General~","5~","6~","1~"]
["s01_p01_b","(1,01): Teléfono del entrevistado",false,false,2,50,0,null,null,"1.General~","7~","6~","1~"]
["s01_p02","(1,02): Cargo en el establecimiento",false,false,1,1,0,"1~2~3~","DIRECTOR/A~SUB-DIRECTOR/A~OTRO (ESPECIFIQUE)~","1.General~","10~","14~","1~","001~","s01_p02~","~","1~","2~","s01_p03~"]
["s01_p02_otra","(1,02): Otra",false,false,2,50,0,null,null,"1.General~","12~","8~","1~"]
["s01_p03","(1,03): ¿De quién depende el establecimiento?",false,false,1,1,0,"1~2~3~4~5~6~","MINISTERIO DE SALUD~ENTIDAD PRIVADA~ORGANIZACIÓN NO-GUBERNAMENTAL (ONG)~MISIÓN/ORGANIZACIÓN RELIGIOSA~MILITAR~OTRA (ESPECIFIQUE)~","1.General~","15~","14~","1~","001~","s01_p03~","~","1~","5~","s01_p04~"]
["s01_p03_otra","(1,03): Otra",false,false,2,50,0,null,null,"1.General~","20~","8~","1~"]
["s01_p04","(1,04): Año de inicio de actividades",false,false,0,4,0,"1950~","2012~","1.General~","23~","14~","1~"]
["s01_p05","(1,05): Población en zona de influencia",false,false,0,4,0,"1~","9999~","1.General~","28~","14~","1~"]
["s01_p06","(1,06): % de población con cobertura de salud",false,false,0,3,0,"0~","100~","1.General~","32~","14~","1~"]
["s01_p07","(1,07): Principal fuente de electricidad",false,false,1,1,0,"1~2~","SI~NO TIENEN ELECTRICIDAD~","1.General~","7~","32~","1~","001~","s01_p07~","~","2~","2~","s01_p13~"]
["s01_p08","(1,08): Frecuencia de interrupción de electricidad",false,false,1,1,0,"1~2~3~4~5~","Casi a diario~Algunas veces por semana~Algunas veces al mes~Algunas veces al año~Nunca o casi nunca~","1.General~","10~","32~","1~"]
["s01_p09","(1,09): Fuente de abastecimiento de agua",false,false,1,1,0,"1~2~3~4~5~6~","RED PÚBLICA (AGUA CORRIENTE)~DE PERFORACIÓN CON BOMBA MOTOR~DE PERFORACIÓN CON BOMBA MANUAL~DE POZO CON BOMBA~DE POZO SIN BOMBA~OPCIÓN 6~","1.General~","19~","32~","1~"]
["s01_p10","(1,10): ¿La fuente está adentro?",false,false,1,1,0,"1~2~","SI~NO~","1.General~","27~","32~","1~","001~","s01_p10~","~","1~","1~","s01_p12~"]
["s01_p11_d","(1,11): Distancia a la fuente de agua",false,false,0,2,0,"0~","99~","1.General~","32~","24~","1~"]
["s01_p11_ud","(1,11): Unidad de distancia",false,false,1,1,0,"1~2~","KILÓMETROS~METROS~","1.General~","32~","32~","1~"]
["s01_p12","(1,12): Servicio sanitario disponible",false,false,1,1,0,"1~2~3~4~","INODORO CONECTADO AL SISTEMA DE DRENAJE~INODORO CONECTADO A FOSA SÉPTICA~LETRINA~OPCIÓN 4~","1.General~","36~","32~","1~"]
["s01_p13","(1,13): Forma de comunicación principal",false,false,1,1,0,"1~2~3~4~5~6~7~8~","TELEFONÍA FIJA~TELEFONÍA CELULAR~RADIO/HANDY~INTERNET~TELÉFONO SEMIPÚBLICO~LÍNEA CENTREX~NO POSEE~OPCIÓN 8~","1.General~","45~","14~","1~"]
["s01_p14_1","(1,14): ¿Desechan agujas en descartador?",false,false,1,1,0,"1~2~","SI~NO~","1.General~","59~","14~","1~"]
["s01_p14_2","(1,14): ¿Desechan agujas en bolsas rojas?",false,false,1,1,0,"1~2~","SI~NO~","1.General~","60~","14~","1~"]
["s01_p14_3","(1,14): ¿Desechan agujas junto con la basura?",false,false,1,1,0,"1~2~","SI~NO~","1.General~","61~","14~","1~"]
["s01_p14_4","(1,14): ¿Desechan agujas (otra)?",false,false,1,1,0,"1~2~","SI~NO~","1.General~","62~","14~","1~","001~","s01_p14_4~","~","2~","2~","s01_p15_1~"]
["s01_p14_otra","(1,14): Otra",false,false,2,50,0,null,null,"1.General~","62~","8~","1~"]
["s01_p15_1","(1,15): ¿Eliminan residuos por recolector especial?",false,false,1,1,0,"1~2~","SI~NO~","1.General~","67~","14~","1~"]
["s01_p15_2","(1,15): ¿Eliminan residuos por traslado a centro?",false,false,1,1,0,"1~2~","SI~NO~","1.General~","68~","14~","1~"]
["s01_p15_3","(1,15): ¿Eliminan residuos por recolector público?",false,false,1,1,0,"1~2~","SI~NO~","1.General~","69~","14~","1~"]
["s01_p15_4","(1,15): ¿Eliminan residuos por incineración?",false,false,1,1,0,"1~2~","SI~NO~","1.General~","70~","14~","1~"]
["s01_p15_5","(1,15): ¿Eliminan residuos enterrándolos?",false,false,1,1,0,"1~2~","SI~NO~","1.General~","71~","14~","1~"]
["s01_p15_6","(1,15): ¿Eliminan residuos por (otra)?",false,false,1,1,0,"1~2~","SI~NO~","1.General~","72~","14~","1~","001~","s01_p15_6~","~","2~","2~","s01_p16~"]
["s01_p15_otra","(1,15): Otra",false,false,2,50,0,null,null,"1.General~","72~","8~","1~"]
["s01_p16","(1,16): Frecuencia con que reutilizan agujas",false,false,1,1,0,"1~2~3~4~","NUNCA~RARA VEZ~ALGUNAS VECES~FRECUENTEMENTE~","1.General~","75~","14~","1~"]
["s01_p17","(1,17): ¿Visita de supervisión últimos 6 meses?",false,false,1,1,0,"1~2~","SI~NO~","1.General~","46~","32~","1~","001~","s01_p17~","~","2~","2~","s01_p22~"]
["s01_p18","(1,18): ¿Cuántas visitas recibió?",false,false,0,2,0,"0~","99~","1.General~","49~","32~","1~"]
["s01_p19","(1,19): ¿Fue visitado por la (red de salud)?",false,false,1,1,0,"1~2~","SI~NO~","1.General~","51~","32~","1~"]
["s01_p20","(1,20): ¿Fue visitado por el (nivel central)?",false,false,1,1,0,"1~2~","SI~NO~","1.General~","54~","32~","1~"]
["s01_p21","(1,12): ¿Hubo atención de menores de 5 en visita?",false,false,1,1,0,"1~2~","SI~NO~","1.General~","57~","32~","1~"]
["s01_p22","(1,22): ¿Existe Gestor de Calidad como personal?",false,false,1,1,0,"1~2~","SI~NO~","1.General~","62~","32~","1~"]
["s01_p23","(1,23): ¿Hubo auditoría interna en útlima gestión?",false,false,1,1,0,"1~2~","SI~NO~","1.General~","65~","32~","1~"]
["s01_p24","(1,24): ¿Han habido quejas el último mes?",false,false,1,1,0,"1~2~","SI~NO~","1.General~","69~","32~","1~"]
["s01_p25","(1,25): ¿Cuentan con plan de gestión de riesgos?",false,false,1,1,0,"1~2~","SI~NO~","1.General~","73~","32~","1~"]
["s01_p26","(1,26): ¿Quién realiza mantención de equipos médicos?",false,false,1,1,0,"1~2~3~4~","SERVICIO PRIVADO~SERVICIO PÚBLICO~PERSONAL DEL ESTABLECIMIENTO DE SALUD~OTRO (ESPECIFIQUE)~","1.General~","77~","32~","1~","001~","s01_p26~","~","1~","3~","s01_p27~"]
["s01_p26_otra","(1,26): Otra",false,false,2,50,0,null,null,"1.General~","80~","27~","1~"]
["s01_p27","(1,27): ¿Derivan pacientes a otros establecimientos?",false,false,1,1,0,"1~2~","SI~NO~","1.General~","86~","14~","1~","001~","s01_p27~","~","2~","2~","s01_p30_1~"]
["s01_p28","(1,28): ¿Dónde se derivan los pacientes?",false,false,1,1,0,"1~2~3~4~5~","A UN HOSPITAL~A UNA CLÍNICA PRIVADA~A UN CENTRO DE SALUD~A UN PUESTO DE SALUD~OTRO (ESPECIFIQUE)~","1.General~","90~","14~","1~","001~","s01_p28~","~","1~","4~","s01_p29~"]
["s01_p28_otra","(1,28): Otra",false,false,2,50,0,null,null,"1.General~","94~","9~","1~"]
["s01_p29","(1,29): Distancia al centro de derivación",false,false,0,2,0,"0~","99~","1.General~","98~","14~","1~"]
["s01_p30_1","(1,30): ¿Recibió ingresos del ministerio de salud?",false,false,1,1,0,"1~2~","SI~NO~","1.General~","94~","26~","1~","001~","s01_p30_1~","~","2~","2~","s01_p30_2~"]
["s01_p31_1","(1,31): ¿Cuánto recibio del ministerio de salud?",false,false,0,5,0,"1~","99999~","1.General~","94~","30~","1~"]
["s01_p30_2","(1,30): ¿Recibió ingresos de cargos a usuarios?",false,false,1,1,0,"1~2~","SI~NO~","1.General~","95~","26~","1~","001~","s01_p30_2~","~","2~","2~","s01_p30_3~"]
["s01_p31_2","(1,31): ¿Cuánto recibio por cargos a usuarios?",false,false,0,5,0,"0~","99999~","1.General~","95~","30~","1~"]
["s01_p30_3","(1,30): ¿Recibió ingresos de venta de medicamentos?",false,false,1,1,0,"1~2~","SI~NO~","1.General~","96~","26~","1~","001~","s01_p30_3~","~","2~","2~","s01_p30_4~"]
["s01_p31_3","(1,31): ¿Cuánto recibio por venta de medicamentos?",false,false,0,5,0,"0~","99999~","1.General~","96~","30~","1~"]
["s01_p30_4","(1,30): ¿Recibió ingresos de entidad privada?",false,false,1,1,0,"1~2~","SI~NO~","1.General~","97~","26~","1~","001~","s01_p30_4~","~","2~","2~","s01_p30_5~"]
["s01_p31_4","(1,31): ¿Cuánto recibio por entidad privada?",false,false,0,5,0,"0~","99999~","1.General~","97~","30~","1~"]
["s01_p30_5","(1,30): ¿Recibió ingresos de ONG?",false,false,1,1,0,"1~2~","SI~NO~","1.General~","98~","26~","1~","001~","s01_p30_5~","~","2~","2~","s01_p30_6~"]
["s01_p31_5","(1,31): ¿Cuánto recibio por ONG?",false,false,0,5,0,"0~","99999~","1.General~","98~","30~","1~"]
["s01_p30_6","(1,30): ¿Recibió ingresos de organización religiosa?",false,false,1,1,0,"1~2~","SI~NO~","1.General~","99~","26~","1~","001~","s01_p30_6~","~","2~","2~","s01_p30_7~"]
["s01_p31_6","(1,31): ¿Cuánto recibio por organización religiosa?",false,false,0,5,0,"0~","99999~","1.General~","99~","30~","1~"]
["s01_p30_7","(1,30): ¿Recibió ingresos de (otra fuente 1)?",false,false,1,1,0,"1~2~","SI~NO~","1.General~","100~","26~","1~","001~","s01_p30_7~","~","2~","2~","s01_p30_8~"]
["s01_p31_7","(1,31): ¿Cuánto recibio por (otra fuente 1)?",false,false,0,5,0,"0~","99999~","1.General~","100~","30~","1~"]
["s01_p30_8","(1,30): ¿Recibió ingresos de (otra fuente 2)?",false,false,1,1,0,"1~2~","SI~NO~","1.General~","101~","26~","1~","001~","s01_p30_8~","~","2~","2~","s01_p31_9~"]
["s01_p31_8","(1,31): ¿Cuánto recibio por (otra fuente 2)?",false,false,0,5,0,"0~","99999~","1.General~","101~","30~","1~"]
["s01_p31_9","(1,31): ¿Cuánto recibio en total?",false,false,0,6,0,"0~","999999~","1.General~","102~","30~","1~"]
["s01_p32","(1,32): Fuente de información de (1,31)",false,false,1,1,0,"1~2~","REGISTROS OFICIALES DEL ESTABLECIMIENTO~INFORME VERBAL~","1.General~","106~","32~","1~"]
["s02_p01_1","(2,01): Horas servicio de consulta externa (Lu)",false,false,0,2,0,"0~","24~","2.Prestaciones~","11~","5~","1~"]
["s02_p01_2","(2,01): Horas servicio de consulta externa (Ma)",false,false,0,2,0,"0~","24~","2.Prestaciones~","12~","5~","1~"]
["s02_p01_3","(2,01): Horas servicio de consulta externa (Mi)",false,false,0,2,0,"0~","24~","2.Prestaciones~","13~","5~","1~"]
["s02_p01_4","(2,01): Horas servicio de consulta externa (Jue)",false,false,0,2,0,"0~","24~","2.Prestaciones~","14~","5~","1~"]
["s02_p01_5","(2,01): Horas servicio de consulta externa (Vie)",false,false,0,2,0,"0~","24~","2.Prestaciones~","15~","5~","1~"]
["s02_p01_6","(2,01): Horas servicio de consulta externa (Sab)",false,false,0,2,0,"0~","24~","2.Prestaciones~","16~","5~","1~"]
["s02_p01_7","(2,01): Horas servicio de consulta externa (Dom)",false,false,0,2,0,"0~","24~","2.Prestaciones~","17~","5~","1~"]
["s02_p02_1","(2,02): Horas servicio de urgencias (Lu)",false,false,0,2,0,"0~","24~","2.Prestaciones~","11~","11~","1~"]
["s02_p02_2","(2,02): Horas servicio de urgencias (Ma)",false,false,0,2,0,"0~","24~","2.Prestaciones~","12~","11~","1~"]
["s02_p02_03","(2,02): Horas servicio de urgencias (Mi)",false,false,0,2,0,"0~","24~","2.Prestaciones~","13~","11~","1~"]
["s02_p02_4","(2,02): Horas servicio de urgencias (Jue)",false,false,0,2,0,"0~","24~","2.Prestaciones~","14~","11~","1~"]
["s02_p02_5","(2,02): Horas servicio de urgencias (Vie)",false,false,0,2,0,"0~","24~","2.Prestaciones~","15~","11~","1~"]
["s02_p02_6","(2,02): Horas servicio de urgencias (Sab)",false,false,0,2,0,"0~","24~","2.Prestaciones~","16~","11~","1~"]
["s02_p02_7","(2,02): Horas servicio de urgencias (Dom)",false,false,0,2,0,"0~","24~","2.Prestaciones~","17~","11~","1~"]
["s02_p06","(2,06): ¿Hay personal médico las 24 horas?",false,false,1,1,0,"1~2~","SI~NO~","2.Prestaciones~","20~","14~","1~"]
["s02_p07","(2,07): ¿Atienden partos de bajo riesgo?",false,false,1,1,0,"1~2~","SI~NO~","2.Prestaciones~","23~","14~","1~"]
["s02_p08","(2,08): ¿Atienden partos de alto riesgo?",false,false,1,1,0,"1~2~","SI~NO~","2.Prestaciones~","26~","14~","1~"]
["s02_p09","(2,09): ¿Existe atención de alta complejidad para niños?",false,false,1,1,0,"1~2~","SI~NO~","2.Prestaciones~","30~","14~","1~"]
["s02_p10","(2,10): ¿Se ofrece análisis clínico?",false,false,1,1,0,"1~2~","SI~NO~","2.Prestaciones~","33~","14~","1~"]
["s02_p11","(2,11): ¿Dónde procesan las muestras?",false,false,1,1,0,"1~2~","EN UN LABORATORIO DE ESTE ESTABLECIMIENTO~EN UN LABORATORIO FUERA~","2.Prestaciones~","36~","14~","1~"]
["s02_p12","(2,12): ¿Ofrecen servicio de imágenes?",false,false,1,1,0,"1~2~","SI~NO~","2.Prestaciones~","39~","14~","1~"]
["s03_p01_1","(3,01): ¿Hay médicos en el establecimiento?",false,false,1,1,0,"1~2~","SI~NO~","3.Personal~","11~","6~","1~"]
["s03_p01_2","(3,01): ¿Hay otros profesionales en el establecimiento?",false,false,1,1,0,"1~2~","SI~NO~","3.Personal~","17~","6~","1~"]
["s03_p01_3","(3,01): ¿Hay enfermería en el establecimiento?",false,false,1,1,0,"1~2~","SI~NO~","3.Personal~","25~","6~","1~"]
["s03_p01_4","(3,01): ¿Hay otros en el establecimiento?",false,false,1,1,0,"1~2~","SI~NO~","3.Personal~","29~","6~","1~"]
["s07_p01","(7,01): ¿Está el piso limpio?",false,false,1,1,0,"1~2~3~4~5~","MUY LIMPIO~LIMPIO~REGULAR~SUCIO~MUY SUCIO~","7.Observ~","6~","15~","1~"]
["s07_p02","(7,02): ¿Están las paredes limpias?",false,false,1,1,0,"1~2~3~4~5~","MUY LIMPIO~LIMPIO~REGULAR~SUCIO~MUY SUCIO~","7.Observ~","14~","15~","1~"]
["s07_p03","(7,03): ¿Hay privacidad para exámen de pacientes?",false,false,1,1,0,"1~2~","SI~NO~","7.Observ~","22~","15~","1~"]
["s07_p04","(7,04): ¿Están limpias las cortinas?",false,false,1,1,0,"1~2~3~4~5~6~","MUY LIMPIAS~LIMPIAS~REGULAR~SUCIAS~MUY SUCIAS~NO EXISTEN CORTINAS~","7.Observ~","26~","15~","1~"]
["s07_p05","(7,05): Implementos para aseo de manos",false,false,1,1,0,"1~2~3~4~","PILETA O FREGADERO O LAVABO CON AGUA ENTUBADA~PILETA O FREGADERO O LAVABO CON RECIPIENTE PARA AGUA~NO CUENTA CON NINGÚN ELEMENTO~OTRO~","7.Observ~","34~","16~","1~"]
["s07_p06","(7,06): ¿Existen tachos para basura?",false,false,1,1,0,"1~2~","SI~NO~","7.Observ~","41~","16~","1~"]
["s07_p07","(7,07): ¿Sala tiene mesa de exploración?",false,false,1,1,0,"1~2~","SI~NO~","7.Observ~","6~","34~","1~"]
["s07_p08","(7,08): ¿Sala tiene mesa de exploración ginecológica?",false,false,1,1,0,"1~2~","SI~NO~","7.Observ~","11~","34~","1~"]
["s07_p09","(7,09): ¿Dónde almacenan vacunas?",false,false,1,1,0,"1~2~3~4~5~","HELADERA O REFRIGERADOR EXCLUSIVO PARA VACUNAS~HELADERA O REFRIGERADOR DE USOS MÚLTIPLES~HIELERA NO ELÉCTRICA~NO APLICABLE~OTRO~","7.Observ~","16~","34~","1~"]
["s07_p10","(7,10): ¿Refrigerador cuenta con medidor?",false,false,1,1,0,"1~2~","SI~NO~","7.Observ~","24~","34~","1~"]
["s07_p11","(7,11): ¿Se observa descartador de agujas?",false,false,1,1,0,"1~2~3~","SI~NO~NO HAY DESCARTADOR~","7.Observ~","30~","34~","1~"]
["s07_p12","(7,12): ¿Bolsa roja cubre recipiente de basura?",false,false,1,1,0,"1~2~3~","SI~NO~NO HAY RECIPIENTE~","7.Observ~","35~","34~","1~"]
[2,"002: Servicio",4,1,20]
["id_servicio","Número de Servicio",false,true,1,2,0,"01~02~03~04~05~06~07~08~09~10~11~12~13~14~15~16~17~18~19~20~","Consulta externa para niños~Consulta externa para adultos~Consulta dental~Consulta de especialidad~Hospitalización~Cirugía menor~Urgencias (sutura)~Atención de parto normal~Control neonatal~Vacunación / Inmunizaciones~Transfusión sanguínea~Consulta pre-natal~Ecografías~Rayos X~Hormonales orales~Hormonales inyectables~Inserción de DIU~Retiro de DIU~Preservativos (condones)~Otros:~","2.Prestaciones~","15~","18~","20~"]
["s02_p03","(2,03): ¿Ofrecen ... en este establecimiento?",false,false,1,1,0,"1~2~","SI~NO~","2.Prestaciones~","15~","24~","20~","002~","s02_p03~","Me~","2~","2~","End of RT~"]
["s02_p04","(2,04): Días a la semana que ofrecen ...",false,false,0,1,0,"1~","7~","2.Prestaciones~","15~","27~","20~"]
["s02_p05","(2,05): Precio cobrado por ...",false,false,0,5,0,"0~","100~","2.Prestaciones~","15~","29~","20~"]
[3,"003: Función",4,1,29]
["id_funcion","Código Función",false,true,1,3,0,"101~102~103~104~105~106~201~202~203~204~205~206~207~208~301~302~303~304~401~402~403~404~405~406~407~408~409~410~411~","Clínica Médica~Medicina General~Ginecología~Pediatría~Obstetricia~OTRA OPCIÓN MEDICOS~Nutricionista~Odontólogo~Oftalmólogo~Kinesiólogo~Psicólogo~Asistente social~Traumatólogo~OTRA OPCIÓN OTROS PROFESIONALES~Licenciadas~Enfermeras~Auxiliares de enfermería~OTRA OPCIÓN ENFERMERÍA~Técnico de Laboratorio~Técnico de Radiología / imágenes~Alimentación/nutrición~Agente sanitario~Mucama (personal de limpieza)~Responsable de archivo/fichero~Telefonistas~Administrativos~Personal de mantenimiento~Otros (agregar):~OTRA OPCIÓN OTROS~","3.Personal~","11~","12~","29~"]
["s03_p02","(3,02): N° de ... trabajando en el lugar",false,false,0,3,0,"0~","10~","3.Personal~","11~","17~","29~","003~","s03_p02~","Me~","0~","0~","End of RT~"]
["s03_p03","(3,03): Salario de bolsillo de un ...",false,false,0,5,0,"50~","1000~","3.Personal~","11~","22~","29~"]
["s03_p04","(3,04): Horas semanales que trabaja un...",false,false,0,2,0,"0~","60~","3.Personal~","11~","26~","29~"]
[4,"004: Equipamiento",5,1,40]
["id_equipo","Código de Equipo",false,true,1,2,0,"01~02~03~04~05~06~07~08~09~10~11~12~13~14~15~16~17~18~19~20~21~22~23~24~25~26~27~28~29~30~31~32~33~34~35~36~37~38~39~40~","Estetoscopio auricular~Balanza infantil~Balanza de adultos~Cinta métrica~Cinta métrica para medir altura uterina~Tensiómetro~Termómetro~Termo o hielera~Instrumental para prueba de desarrollo~Balanza con estadímetro~Estetoscopio de Pinard~Colposcopio~Lámpara de hendidura~Oftalmoscopio~Otoscopio~Mesa de curación~Equipo de cirugía menor~Mesa de mayo~Autoclave o esterilizador~Juego de instrumental y campos para parto vaginal~Mesa o cama para parto~Juego de ropa de cama~Camilla~Heladera o Refrigerador~Incubadora~Ambú/ Balón de resucitación autoinflable~Aspirador para secreciones~Cilindro de oxigeno~Teléfono o radio~Ambulancia de traslado~Ambulancia de terapia intensiva~Computadora~Biblioteca~Silla/sillón~Escritorio~Vitrinas~Otro Equipo 1~Otro Equipo 2~Otro Equipo 3~Otro Equipo 4~","4.Equip~","15~","2~","40~"]
["s04_p01_n","(4,01): ¿Personal tuvo acceso a equipo? (NO)",true,false,1,1,0,"x~X~","NO~NO~","4.Equip~","15~","17~","40~","004~004~","s04_p01_n~s04_p01_n~","Me~Me~","x~X~","x~X~","End of RT~End of RT~"]
["s04_p01_s","(4,01): ¿Personal tuvo acceso a equipo? (SI)",true,false,1,1,0,"x~X~","SI~SI~","4.Equip~","15~","18~","40~"]
["s04_p02","(4,02): N° de días sin ... último mes",false,false,0,2,0,"0~","30~","4.Equip~","15~","19~","40~"]
["s04_p03","(4,03): N° de ... en funcionamiento",false,false,0,3,0,"0~","50~","4.Equip~","15~","25~","40~"]
[5,"005: Insumo 1",4,1,16]
["id_insumo_1","Número Insumo 1",false,true,1,2,0,"01~02~03~04~05~06~07~08~09~10~11~12~13~14~15~16~","Tallímetro/infantómetro de madera apropiado (3 cuerpos, madera sólida, cinta métrica en buen estado sobre todo en las uniones de los cuerpos, con tope fijo, con tope móvil ‘sin juego’)~Balanza pediátrica de bandeja (escala mínima de 10 g) o balanza madre-bebé en buen estado~Balanza de pie, escala mínima 100 gs, en buen estado~Aerocámara espaciadora para salbutamol (puede ser elaborada artesanalmente con un vaso o un envase de suero)~Agua destilada para inyecciones~Alcohol~Algodón~Balón de oxígeno con manómetro listo para el uso y accesible~Cateter nasofaríngeo para niños/as~Carnet de Salud Infantil con hitos del desarrollo~Formularios de registro niños/as de 2 meses a menor de 5 años~Formularios de registro niños/as de 7 días a menores de 2 meses~Formularios de registro niños/as menores de 7 días~Jeringas de 1 cc y 5 cc, con agujas~Refrigerador funcionando exclusivo para vacunas~Sonda Nasogástrica para niños/as~","5.Insumos~","16~","1~","16~"]
["s05_p01","(5,01): ¿Cuentan con ... el día de hoy?",false,false,1,1,0,"1~2~","SI~NO~","5.Insumos~","16~","20~","16~","005~005~005~","s05_p01~id_insumo_1~id_insumo_1~","Me~Me~Me~","2~5~9~","2~7~14~","End of RT~s05_p03~s05_p03~"]
["s05_p02","(5,02): Cantidad de ... el día de hoy",false,false,0,4,0,"1~","100~","5.Insumos~","16~","25~","16~"]
["s05_p03","(5,03): ¿Cuántos días estuvieron sin ...?",false,false,0,2,0,"0~","30~","5.Insumos~","16~","29~","16~"]
[6,"006: Insumo 2",4,1,14]
["id_insumo_2","Número Insumo 2",false,true,1,2,0,"17~18~19~20~21~22~23~24~25~26~27~28~29~30~","Formulario Historia Clínica Perinatal~Carnet Perinatal~Partograma~Tensiómetro en buen estado~Estetoscopio en buen estado~Cinta métrica~Antimarílica~Antipolio~BCG~Antirotavirus~Pentavalente~SRP~TT (Toxoide Tetánico)~dT (difteria y Tétanos)~","5.Insumos~5.Insumos~","46~53~","1~1~","6~8~"]
["s05_p04","(5,04): ¿Cuentan con ... el día de hoy?",false,false,1,1,0,"1~2~","SI~NO~","5.Insumos~5.Insumos~","46~53~","20~20~","6~8~","006~006~","s05_p04~id_insumo_2~","Me~Me~","2~17~","2~18~","End of RT~s05_p06~"]
["s05_p05","(5,05): ¿Qué cantidad hay aproximadamente?",false,false,0,4,0,"1~","100~","5.Insumos~5.Insumos~","46~53~","25~25~","6~8~"]
["s05_p06","(5,06): ¿Es suficiente esa cantidad?",false,false,1,1,0,"1~2~","SI~NO~","5.Insumos~5.Insumos~","46~53~","29~29~","6~8~"]
[7,"007: Medicamento 1",4,1,24]
["id_medicamento_1","Número Medicamento 1",false,true,1,2,0,"01~02~03~04~05~06~07~08~09~10~11~12~13~14~15~16~17~18~19~20~21~22~23~24~","Alimento Terapéutico Nutricional Listo para el Uso (ATLU), Plumpy Nut o BP100~Ceftriaxona fcos/amp. 500 mg o 1 g~Chispitas Nutricionales (Sobres)~Ciprofloxacina comp.250 mg~Cloranfenicol amp.1 g~Cotrimoxazol jarabe pediátrico (200/40/5mL)~Cotrimoxazol, tab de 100/20 mg~Dextrosa 5% 500 o 1000 mL~Gentamicina, amp.20, 40 mg o 80 mg~Hierro Gts 25 mg/mL de hierro elemental o 125 mg de sulfato ferroso (Ferrasol)~Mebendazol,tab 500 mg o tab.de 100 mg~Nistatina suspensión (1mL=100,000 UI)~Paracetamol jarabe 120 mg(5mL)~Paracetamol tab. de 100 mg~Pen.procaínica, 1.000,000 ó 800,000 ó 400,000 UI~Ringer lactato, 500 o 1000 mL~Salbutamol en aerosol 100 mcg/dosis~Suero de la Vida o SRO de baja osmolaridad (245 mOsm/L)~Suero de la Vida o SRO estándar (311 mOsm/L)~Suero fisiológico 0.9% 500 ó 1.000 mL~Vitamina A 100.000 UI~Vitamina A 200.000 UI~Zinc , tabletas ‘dispersables’ de 20mg~Zinc , jarabe de 20 mg/5mL~","6.Medicamentos~","14~","1~","24~"]
["s06_p01","(6,01): ¿Cuentan con ... el día de hoy?",false,false,1,1,0,"1~2~","SI~NO~","6.Medicamentos~","14~","18~","24~","007~","s06_p01~","Me~","2~","2~","End of RT~"]
["s06_p02","(6,02): Cantidad de ... el día de hoy",false,false,0,5,0,"1~","200~","6.Medicamentos~","14~","25~","24~"]
["s06_p03","(6,03): ¿Cuántos días estuvieron sin ...?",false,false,0,2,0,"0~","30~","6.Medicamentos~","14~","30~","24~"]
[8,"008: Medicamento 2",4,1,19]
["id_medicamento_2","Número Medicamento 2",false,true,1,2,0,"25~26~27~28~29~30~31~32~33~34~35~36~37~38~39~40~41~42~43~","Alfametildopa tab. 500 mg~Amoxicilina comp. 500 mg o 1g~Ampicilina amp. 1g~Ciprofloxacina comp. 500 mg~Doxiciclina tab. 100 mg~Eritromicina comp. 500 mg~Metronidazol tab.500 mg~Nifedipino tab. 10 mg~Paracetamol tab. 500 mg~Peniicilina benzatínica amp. 1,200.000 UI o 2,400.000 UI~Sulfato ferroso tab, 60 mg~Artesunato comp.50mg~Clindamicina susp.75mg/5mL~Cloroquina, tab.150 mg~Diclorhidrato de quinina, amp 300 mg/2mL~Mefloquina tab 250 mg~Primaquina, tab.5 mg~Quinina, amp.600 mg~Quinina sulfato, tab.300 mg~","6.Medicamentos~6.Medicamentos~","53~65~","1~1~","11~8~"]
["s06_p04","(6,04): ¿Cuentan con ...?",false,false,1,1,0,"1~2~","SI~NO~","6.Medicamentos~6.Medicamentos~","53~65~","18~18~","11~8~"]
["s06_p05","(6,05): Cantidad de ...",false,false,0,5,0,"1~","200~","6.Medicamentos~6.Medicamentos~","53~65~","25~25~","11~8~"]
["s06_p06","(6,06): ¿Es suficiente esa cantidad?",false,false,1,1,0,"1~2~","SI~NO~","6.Medicamentos~6.Medicamentos~","53~65~","30~30~","11~8~"]

{"sheet":"TAXI","index":22,"n_rows":2,"n_cols":4,"rows_kept":2,"cut":false,"hidden":true,"merged":[]}
["SESSION","START","13-04-2011 17:35:41",-1]
[1,"26/04/2011 11:54:17"]